﻿Body_Name,Service_Label,Service_Code,Division_Code,Division_Description,Organisational_Unit,Expenditure_Category,Expenditure_Category_Code,Activity_Description,Activity_Code,Date_Received,Date_Paid,Reference,Net_Amount_in_Sterling,Capital_Revenue,Customer_Supplier_Description,FID
Tunbridge Wells Borough Council,Housing Services,108,HO,Housing,Properties On Loan,Rents/Hire Of Premises,2200,-,-,2022/04/12 00:00:00+00,2022/04/12 00:00:00+00,219561,2475,Revenue,Premier Kent Properties Ltd  T/A Kings,1
Tunbridge Wells Borough Council,Cultural and related services,104,MU,Museum,Culture & Learning Hub,Capital Fees External,8315,-,-,2022/04/12 00:00:00+00,2022/04/12 00:00:00+00,219481,2225,Capital,Dauphin Acrylic Design Ltd,2
Tunbridge Wells Borough Council,Environmental and regulatory services ,105,FI,Finance,Refuse Collection Services,It Software,3590,-,-,2022/04/12 00:00:00+00,2022/04/12 00:00:00+00,219551,2220,Revenue,Civica Uk Ltd,3
Tunbridge Wells Borough Council,Housing Services,108,HO,Housing,Housing Needs Service,Projects & Initiatives,3910,Covid-19 Comf Housing,EV0530,2022/04/12 00:00:00+00,2022/04/12 00:00:00+00,219564,2153,Revenue,Martin And Co,4
Tunbridge Wells Borough Council,Central Services,102,CE,Chief Executive,Chief Executive,Subscriptions S E Employers,3732,-,-,2022/04/07 00:00:00+00,2022/04/12 00:00:00+00,219382,1791.63,Revenue,South East England Councils (Seec),5
Tunbridge Wells Borough Council,Housing Services,108,DS,Sundry Customer,Housing Needs Service,Projects & Initiatives,3910,Covid-19 Comf Housing,EV0530,2022/04/11 00:00:00+00,2022/04/12 00:00:00+00,219519,1761,Revenue,Bulb Energy Revenue Account,6
Tunbridge Wells Borough Council,Environmental and regulatory services ,105,CS,Client Services (Depot),Cleaner Borough,External Contract Payments,3220,-,-,2022/04/12 00:00:00+00,2022/04/12 00:00:00+00,219492,1750.88,Revenue,Viking Oak Kennels,7
Tunbridge Wells Borough Council,Cultural and Related Services,104,PS,Property Services,A-Hall Technical,Planned Maintenance Property,2009,-,-,2022/04/07 00:00:00+00,2022/04/12 00:00:00+00,219471,1750,Revenue,Artisan Plastercraft Ltd,8
Tunbridge Wells Borough Council,Housing Services,108,HO,Housing,Housing Needs Service,Projects & Initiatives,3910,Covid-19 Comf Housing,EV0530,2022/04/11 00:00:00+00,2022/04/12 00:00:00+00,219503,1533.12,Revenue,South East Water Plc,9
Tunbridge Wells Borough Council,Central Services,102,CE,Chief Executive,Electoral Registration,Postage,3500,-,-,2022/04/12 00:00:00+00,2022/04/12 00:00:00+00,219513,1532.25,Revenue,Financial Data Management Ltd,10
Tunbridge Wells Borough Council,Cultural and Related Services,104,AH,Assembly Hall,Tw Ice Rink,Hire Of Facilities,5550,-,-,2022/04/07 00:00:00+00,2022/04/12 00:00:00+00,219478,1447.93,Revenue,Ground Zero Coffee Ltd,11
Tunbridge Wells Borough Council,Housing Services,108,HO,Housing,Housing Needs Service,Projects & Initiatives,3910,Covid-19 Comf Housing,EV0530,2022/04/11 00:00:00+00,2022/04/12 00:00:00+00,219487,1440.94,Revenue,Town And Country Housing Group,12
Tunbridge Wells Borough Council,Central Services,102,FI,Finance,Revs & Bens Administration,It Software,3590,-,-,2022/04/07 00:00:00+00,2022/04/12 00:00:00+00,219485,1400,Revenue,Maidstone Borough Council,13
Tunbridge Wells Borough Council,Central Services,102,CE,Chief Executive,Electoral Registration,Postage,3500,-,-,2022/04/12 00:00:00+00,2022/04/12 00:00:00+00,219508,1365,Revenue,Financial Data Management Ltd,14
Tunbridge Wells Borough Council,Housing Services,108,HO,Housing,Housing Needs Service,Projects & Initiatives,3910,Covid-19 Comf Housing,EV0530,2022/04/11 00:00:00+00,2022/04/12 00:00:00+00,219518,1276.83,Revenue,Town And Country Housing Group,15
Tunbridge Wells Borough Council,Housing Services,108,FM,Facilities Management,Dowding House,Contract Cleaning,2510,-,-,2022/04/12 00:00:00+00,2022/04/12 00:00:00+00,219534,1208.33,Revenue,Chameleon Service (Se) Ltd,16
Tunbridge Wells Borough Council,Housing Services,108,HP,Housing (Private Sector),Temporary Accommodation,Water Supply,2300,-,-,2022/04/11 00:00:00+00,2022/04/12 00:00:00+00,219346,1023.66,Revenue,South East Water Plc,17
Tunbridge Wells Borough Council,Central Services,102,RB,Revs & Bens,Revs & Bens Administration,Business Rates/Council Tax,2250,-,-,2022/04/08 00:00:00+00,2022/04/12 00:00:00+00,219470,1000,Revenue,Ashford Borough Council,18
Tunbridge Wells Borough Council,Housing Services,108,HO,Housing,Housing Needs Service,Agency Staff,100,Covid-19 Containment Outbreak,EV0496,2022/04/08 00:00:00+00,2022/04/12 00:00:00+00,219482,962,Revenue,G2 Recruitment Solutions Limited,19
Tunbridge Wells Borough Council,Housing Services,108,HO,Housing,Housing Needs Service,Projects & Initiatives,3910,Homelessness Prevention Top-Up,EV0635,2022/04/12 00:00:00+00,2022/04/12 00:00:00+00,219563,900,Revenue,Vue Properties,20
Tunbridge Wells Borough Council,Housing Services,108,PS,Property Services,Property,Planned Maintenance Property,2009,-,-,2022/04/07 00:00:00+00,2022/04/12 00:00:00+00,219289,895,Revenue,Vertex Air Ltd,21
Tunbridge Wells Borough Council,Cultural and Related Services,104,AH,Assembly Hall,A-Hall Box Office,Ticket Protection-Expenditure,3193,-,-,2022/04/12 00:00:00+00,2022/04/12 00:00:00+00,219515,836,Revenue,Booking Protect Ltd,22
Tunbridge Wells Borough Council,Environmental and regulatory services ,105,EN,Environment & Street Scene,Public Conveniences,Water Supply,2300,Paddock Wood Wc,PH0511,2022/03/22 00:00:00+00,2022/04/06 00:00:00+00,218226,253.28,Revenue,Castle Water Ltd,23
Tunbridge Wells Borough Council,Central Services,102,IT,Information & Communications Technology,Human Resources,In House Training,201,-,-,2022/04/08 00:00:00+00,2022/04/12 00:00:00+00,219345,758.84,Revenue,Ccs Media Limited,24
Tunbridge Wells Borough Council,Central Services,102,CE,Chief Executive,Electoral Registration,Printing,3150,-,-,2022/04/12 00:00:00+00,2022/04/12 00:00:00+00,219511,593.42,Revenue,Financial Data Management Ltd,25
Tunbridge Wells Borough Council,Cultural and Related Services,104,PK,Parks,Parks & Grounds,Ground Maint Non Contract,2060,-,-,2022/04/07 00:00:00+00,2022/04/12 00:00:00+00,219344,587.5,Revenue,Mainwaring Ditch Associates,26
Tunbridge Wells Borough Council,Central Services,102,CE,Chief Executive,Electoral Registration,Printing,3150,-,-,2022/04/12 00:00:00+00,2022/04/12 00:00:00+00,219505,551.04,Revenue,Financial Data Management Ltd,27
Tunbridge Wells Borough Council,Central Services,102,CE,Chief Executive,Democratic Management,Conferences/Seminars,205,-,-,2022/04/11 00:00:00+00,2022/04/12 00:00:00+00,219516,545,Revenue,Local Government Association,28
Tunbridge Wells Borough Council,Environmental and regulatory services ,105,CU,Community Safty Unit,Cctv,Equipment Purchase/Mtce,3000,-,-,2022/04/08 00:00:00+00,2022/04/12 00:00:00+00,219469,536.33,Revenue,Chroma Vision Limited,29
Tunbridge Wells Borough Council,Central Services,102,CE,Chief Executive,Electoral Registration,Postage,3500,-,-,2022/04/12 00:00:00+00,2022/04/12 00:00:00+00,219509,529.67,Revenue,Financial Data Management Ltd,30
Tunbridge Wells Borough Council,Housing Services,108,FM,Facilities Management,Dowding House,Contract Cleaning,2510,-,-,2022/04/12 00:00:00+00,2022/04/12 00:00:00+00,219535,498.76,Revenue,Chameleon Service (Se) Ltd,31
Tunbridge Wells Borough Council,Central Services,102,CE,Chief Executive,Electoral Registration,Printing,3150,-,-,2022/04/12 00:00:00+00,2022/04/12 00:00:00+00,219507,347,Revenue,Financial Data Management Ltd,32
Tunbridge Wells Borough Council,Housing Services,108,HP,Housing (Private Sector),Cinderhill Wood Caravan Site,Water Supply,2300,-,-,2022/04/08 00:00:00+00,2022/04/12 00:00:00+00,219219,330,Revenue,Topupmeters Ltd,33
Tunbridge Wells Borough Council,Planning Services,110,PL,Planning,Planning Management,Land Registry Fees,3264,-,-,2022/04/12 00:00:00+00,2022/04/12 00:00:00+00,219532,253.74,Revenue,Kent County Council,34
Tunbridge Wells Borough Council,Housing Services,108,PS,Property Services,Dowding House,Responsive Repairs Property,2029,Property Contracts,PH0600,2022/04/20 00:00:00+00,2022/04/20 00:00:00+00,219661,81776.26,Revenue,Dcb (Kent) Ltd,35
Tunbridge Wells Borough Council,Cultural and Related Services,104,FM,Facilities Management,A-Hall Management,Contract Cleaning,2510,-,-,2022/04/14 00:00:00+00,2022/04/20 00:00:00+00,219237,38279.13,Revenue,Churchill Contract Services Limited,36
Tunbridge Wells Borough Council,Housing Services,108,HP,Housing (Private Sector),Disabled Facilities Grants,Capital Grants Payable,8355,-,-,2022/04/13 00:00:00+00,2022/04/20 00:00:00+00,219655,30632.4,Capital,Access And Automation Ltd,37
Tunbridge Wells Borough Council,Housing Services,108,PS,Property Services,Temporary Accommodation,Responsive Repairs Property,2029,Property Contracts,PH0600,2022/04/20 00:00:00+00,2022/04/20 00:00:00+00,219217,25695.27,Revenue,G M Monk Ltd,38
Tunbridge Wells Borough Council,Highways and Transport Services,107,PA,Parking,Surface Car Parks,Pay On Exit Charges,3892,Pantiles Car Park,PT0108,2022/04/19 00:00:00+00,2022/04/20 00:00:00+00,219236,23055.6,Revenue,Flowbird Smart City Uk Ltd,39
Tunbridge Wells Borough Council,Cultural and Related Services,104,PK,Parks,Tw Ice Rink,Grounds Maint. Sodexo Contract,2054,-,-,2022/04/20 00:00:00+00,2022/04/20 00:00:00+00,219525,20770,Revenue,Arnold Tarmac Limited,40
Tunbridge Wells Borough Council,Central Services,102,FM,Facilities Management,Town Hall,Contract Cleaning,2510,Property Cleaning Contract,PH0590,2022/04/20 00:00:00+00,2022/04/20 00:00:00+00,219268,20017.29,Revenue,Churchill Contract Services Limited,41
Tunbridge Wells Borough Council,Central Services,102,MU,Museum,Gateway,Equipment Purchase/Mtce,3000,-,-,2022/04/19 00:00:00+00,2022/04/20 00:00:00+00,219234,19654.46,Revenue,Amcorp Group Ltd,42
Tunbridge Wells Borough Council,Cultural and Related Services,104,AH,Assembly Hall,A-Hall Council Shows,Show Fees,3380,220327 Henning Wehn,A22C04,2022/04/19 00:00:00+00,2022/04/20 00:00:00+00,219670,18832.43,Revenue,Imwp (Uk) Limited,43
Tunbridge Wells Borough Council,Cultural and related services,104,MU,Museum,Culture & Learning Hub,Capital Fees External,8315,-,-,2022/04/13 00:00:00+00,2022/04/20 00:00:00+00,219351,17845,Capital,Elbow Productions Ltd,44
Tunbridge Wells Borough Council,Environmental and regulatory services ,105,EH,Environmental Health,Environmental Protection,Projects & Initiatives,3910,Defra Grant Air Quality,EV0411,2022/04/14 00:00:00+00,2022/04/20 00:00:00+00,219521,13645,Revenue,Tmc Strategic Communications,45
Tunbridge Wells Borough Council,Highways and Transport Services,107,PS,Property Services,Crescent Road Car Park,Planned Maintenance Property,2009,Property Contracts,PH0600,2022/04/20 00:00:00+00,2022/04/20 00:00:00+00,219214,10774.48,Revenue,G M Monk Ltd,46
Tunbridge Wells Borough Council,Environmental and regulatory services ,105,LI,Licensing,Licensing,Partnership Agreement,202,-,-,2022/04/13 00:00:00+00,2022/04/20 00:00:00+00,219283,10333,Revenue,Sevenoaks District Council,47
Tunbridge Wells Borough Council,Cultural and Related Services,104,AH,Assembly Hall,A-Hall Council Shows,Show Fees,3380,220318 That'Ll Be The Day,A22C05,2022/04/13 00:00:00+00,2022/04/20 00:00:00+00,219473,8913.85,Revenue,T C Productions Ltd,48
Tunbridge Wells Borough Council,Housing Services,108,PS,Property Services,Dowding House,Maint/Serv Plant Property,2039,Property Contracts,PH0600,2022/04/20 00:00:00+00,2022/04/20 00:00:00+00,219215,6894.12,Revenue,G M Monk Ltd,49
Tunbridge Wells Borough Council,Central Services,102,FI,Finance,I T Service,It Software,3590,Software Maintenance,EV0328,2022/04/19 00:00:00+00,2022/04/20 00:00:00+00,219494,6301,Revenue,Maidstone Borough Council,50
Tunbridge Wells Borough Council,Central Services,102,FI,Finance,It Strategy,Computer Software,8341,-,-,2022/04/19 00:00:00+00,2022/04/20 00:00:00+00,219565,5252.5,Capital,Maidstone Borough Council,51
Tunbridge Wells Borough Council,Central Services,102,FI,Finance,Revs & Bens Administration,It Software,3590,-,-,2022/04/01 00:00:00+00,2022/04/01 00:00:00+00,218814,1400,Revenue,Maidstone Borough Council,52
Tunbridge Wells Borough Council,Central Services,102,FI,Finance,Revs & Bens Administration,It Software,3590,-,-,2022/04/04 00:00:00+00,2022/04/04 00:00:00+00,218848,114313.25,Revenue,Maidstone Borough Council,53
Tunbridge Wells Borough Council,Central Services,102,FI,Finance,I T Service,It Software,3590,Software Maintenance,EV0328,2022/04/05 00:00:00+00,2022/04/05 00:00:00+00,213206,10545.85,Revenue,Civica Uk Ltd,54
Tunbridge Wells Borough Council,Cultural and Related Services,104,AH,Assembly Hall,A-Hall Marketing,Promotion,3450,-,-,2022/04/05 00:00:00+00,2022/04/05 00:00:00+00,219356,428.4,Revenue,Kms Media,55
Tunbridge Wells Borough Council,Cultural and related services,104,MU,Museum,Culture & Learning Hub,"Construction, Renovation, Etc",8311,-,-,2022/04/01 00:00:00+00,2022/04/06 00:00:00+00,219264,101010,Capital,Factory Settings Ltd,56
Tunbridge Wells Borough Council,Housing Services,108,HP,Housing (Private Sector),Disabled Facilities Grants,Capital Grants Payable,8355,-,-,2022/04/01 00:00:00+00,2022/04/06 00:00:00+00,219110,29370.63,Capital,Town And Country Housing Group,57
Tunbridge Wells Borough Council,Cultural and related services,104,MU,Museum,Culture & Learning Hub,Furniture And Equipment,8326,-,-,2022/04/06 00:00:00+00,2022/04/06 00:00:00+00,219332,22173.06,Capital,Ground Zero Coffee,58
Tunbridge Wells Borough Council,Housing Services,108,HP,Housing (Private Sector),Disabled Facilities Grants,Capital Grants Payable,8355,-,-,2022/04/01 00:00:00+00,2022/04/06 00:00:00+00,219107,20960.44,Capital,Town And Country Housing Group,59
Tunbridge Wells Borough Council,Housing Services,108,HO,Housing,Housing Needs Service,Projects & Initiatives,3910,Covid-19 Comf Housing,EV0530,2022/04/06 00:00:00+00,2022/04/06 00:00:00+00,219369,10800,Revenue,Oh Goodlord Ltd,60
Tunbridge Wells Borough Council,Housing Services,108,HP,Housing (Private Sector),Disabled Facilities Grants,Capital Grants Payable,8355,-,-,2022/04/01 00:00:00+00,2022/04/06 00:00:00+00,219218,10165.64,Capital,Town And Country Housing Group,61
Tunbridge Wells Borough Council,Cultural and Related Services,104,AH,Assembly Hall,A-Hall Council Shows,Show Fees,3380,220312 King Is Back,A22C13,2022/04/06 00:00:00+00,2022/04/06 00:00:00+00,219354,8526.48,Revenue,Abbey Apple A Ltd,62
Tunbridge Wells Borough Council,Housing Services,108,HP,Housing (Private Sector),Disabled Facilities Grants,Capital Grants Payable,8355,-,-,2022/04/01 00:00:00+00,2022/04/06 00:00:00+00,219221,8107.12,Capital,Town And Country Housing Group,63
Tunbridge Wells Borough Council,Housing Services,108,HP,Housing (Private Sector),Disabled Facilities Grants,Capital Grants Payable,8355,-,-,2022/04/01 00:00:00+00,2022/04/06 00:00:00+00,219108,7950.18,Capital,Town And Country Housing Group,64
Tunbridge Wells Borough Council,Cultural and related services,104,MU,Museum,Culture & Learning Hub,Furniture And Equipment,8326,-,-,2022/04/06 00:00:00+00,2022/04/06 00:00:00+00,219329,7585,Capital,Ground Zero Coffee,65
Tunbridge Wells Borough Council,Cultural and related services,104,MU,Museum,Culture & Learning Hub,Furniture And Equipment,8326,-,-,2022/04/06 00:00:00+00,2022/04/06 00:00:00+00,219330,7156,Capital,Ground Zero Coffee,66
Tunbridge Wells Borough Council,Housing Services,108,HP,Housing (Private Sector),Disabled Facilities Grants,Capital Grants Payable,8355,-,-,2022/04/01 00:00:00+00,2022/04/06 00:00:00+00,219106,7097.64,Capital,Town And Country Housing Group,67
Tunbridge Wells Borough Council,Cultural and Related Services,104,MU,Museum,Cultural Hub,Consultants Fees,3292,-,-,2022/04/06 00:00:00+00,2022/04/06 00:00:00+00,219271,6808,Revenue,Focus Consultants 2010 Llp,68
Tunbridge Wells Borough Council,Cultural and Related Services,104,MU,Museum,Cultural Hub,Museum Exhibits - Maintenance,3041,-,-,2022/04/06 00:00:00+00,2022/04/06 00:00:00+00,219310,6297.36,Revenue,The Textile Conservancy Company Limited,69
Tunbridge Wells Borough Council,Housing Services,108,HP,Housing (Private Sector),Disabled Facilities Grants,Capital Grants Payable,8355,-,-,2022/04/01 00:00:00+00,2022/04/06 00:00:00+00,219105,5507.12,Capital,Town And Country Housing Group,70
Tunbridge Wells Borough Council,Housing Services,108,HO,Housing,Housing Needs Service,Projects & Initiatives,3910,Homelessness Prevention Top-Up,EV0635,2022/04/01 00:00:00+00,2022/04/06 00:00:00+00,219248,4950,Revenue,This Data Has Been Redacted Under The Data Protection Act,71
Tunbridge Wells Borough Council,Cultural and Related Services,104,MU,Museum,Cultural Hub,Office Move/Refurbishment,2040,-,-,2022/04/06 00:00:00+00,2022/04/06 00:00:00+00,219308,4950,Revenue,Hendley Removals & Storage Limited,72
Tunbridge Wells Borough Council,Highways and Transport Services,107,CU,Community Safty Unit,Parking Admin & Enforcement,External Contract Payments,3220,-,-,2022/04/06 00:00:00+00,2022/04/06 00:00:00+00,219290,4947.36,Revenue,Tunbridge Wells Safe Town Partnership Ltd,73
Tunbridge Wells Borough Council,Housing Services,108,HP,Housing (Private Sector),Disabled Facilities Grants,Capital Grants Payable,8355,-,-,2022/04/01 00:00:00+00,2022/04/06 00:00:00+00,219205,4252.81,Capital,Town And Country Housing Group,74
Tunbridge Wells Borough Council,Cultural and related services,104,MU,Museum,Culture & Learning Hub,Furniture And Equipment,8326,-,-,2022/04/06 00:00:00+00,2022/04/06 00:00:00+00,219331,3815,Capital,Ground Zero Coffee,75
Tunbridge Wells Borough Council,Housing Services,108,HO,Housing,Bed & Breakfast Costs,Rents/Hire Of Premises,2200,-,-,2022/04/05 00:00:00+00,2022/04/06 00:00:00+00,219307,3479,Revenue,Paramount Independent Property Services Llp,76
Tunbridge Wells Borough Council,Cultural and related services,104,MU,Museum,Culture & Learning Hub,Furniture And Equipment,8326,-,-,2022/04/06 00:00:00+00,2022/04/06 00:00:00+00,219327,3368,Capital,Ground Zero Coffee,77
Tunbridge Wells Borough Council,Cultural and Related Services,104,AH,Assembly Hall,A-Hall Technical,Water Supply,2300,-,-,2022/04/01 00:00:00+00,2022/04/06 00:00:00+00,219209,3311.52,Revenue,Castle Water Ltd,78
Tunbridge Wells Borough Council,Environmental and regulatory services ,105,CR,Crematorium,Crematorium,Webcast Costs,3550,-,-,2022/04/05 00:00:00+00,2022/04/06 00:00:00+00,219305,3073,Revenue,Vivedia Ltd,79
Tunbridge Wells Borough Council,Cultural and Related Services,104,MU,Museum,Npo - Arts Development,Consultants Fees,3292,-,-,2022/04/06 00:00:00+00,2022/04/06 00:00:00+00,219243,3000,Revenue,This Data Has Been Redacted Under The Data Protection Act,80
Tunbridge Wells Borough Council,Housing Services,108,HO,Housing,Housing Needs Service,Projects & Initiatives,3910,Homelessness Prevention Top-Up,EV0635,2022/04/06 00:00:00+00,2022/04/06 00:00:00+00,219360,3000,Revenue,The Lettings Company,81
Tunbridge Wells Borough Council,Cultural and Related Services,104,PK,Parks,Parks & Grounds,Projects & Initiatives,3910,Active Sports,EV0295,2022/04/06 00:00:00+00,2022/04/06 00:00:00+00,219363,3000,Revenue,Kent County Council,82
Tunbridge Wells Borough Council,Housing Services,108,HO,Housing,Housing Needs Service,Projects & Initiatives,3910,Homelessness Prevention Top-Up,EV0635,2022/04/06 00:00:00+00,2022/04/06 00:00:00+00,219359,2925,Revenue,This Data Has Been Redacted Under The Data Protection Act,83
Tunbridge Wells Borough Council,Housing Services,108,HP,Housing (Private Sector),Disabled Facilities Grants,Capital Grants Payable,8355,-,-,2022/04/01 00:00:00+00,2022/04/06 00:00:00+00,219109,2773.75,Capital,Town And Country Housing Group,84
Tunbridge Wells Borough Council,Central Services,102,FM,Facilities Management,Postal Charges Account,Cash Transfers,9100,-,-,2022/04/06 00:00:00+00,2022/04/06 00:00:00+00,219321,2612.63,Revenue,Royal Mail  Group Plc,85
Tunbridge Wells Borough Council,Housing Services,108,HO,Housing,Housing Needs Service,Projects & Initiatives,3910,Homelessness Prevention Top-Up,EV0635,2022/04/05 00:00:00+00,2022/04/06 00:00:00+00,219265,2524.8,Revenue,This Data Has Been Redacted Under The Data Protection Act,86
Tunbridge Wells Borough Council,Central Services,102,HR,Human Resources,Staff Welfare,Employee Assistance,3337,-,-,2022/04/01 00:00:00+00,2022/04/06 00:00:00+00,219269,2359.04,Revenue,Health Assured Ltd,87
Tunbridge Wells Borough Council,Highways and Transport Services,107,PA,Parking,Crescent Road Car Park,External Contract Security,3225,-,-,2022/04/05 00:00:00+00,2022/04/06 00:00:00+00,219317,2293.5,Revenue,Right Guard Security Uk Ltd,88
Tunbridge Wells Borough Council,Cultural and related services,104,MU,Museum,Culture & Learning Hub,Furniture And Equipment,8326,-,-,2022/04/06 00:00:00+00,2022/04/06 00:00:00+00,219328,2114.99,Capital,Ground Zero Coffee,89
Tunbridge Wells Borough Council,Housing Services,108,HO,Housing,Housing Needs Service,Projects & Initiatives,3910,Homelessness Prevention Top-Up,EV0635,2022/04/01 00:00:00+00,2022/04/06 00:00:00+00,219247,1658.78,Revenue,D R Lettings Ltd,90
Tunbridge Wells Borough Council,Environmental and regulatory services ,105,CR,Crematorium,Crematorium,Agency Staff,100,-,-,2022/04/05 00:00:00+00,2022/04/06 00:00:00+00,219322,1650,Revenue,Lee Snashfold Crematoria Mgmt & Consultancy,91
Tunbridge Wells Borough Council,Environmental and regulatory services ,105,CS,Client Services (Depot),Refuse Collection Services,Equipment Purchase/Mtce,3000,-,-,2022/04/04 00:00:00+00,2022/04/06 00:00:00+00,219260,1630,Revenue,Onsite Wheelie Washers Ltd,92
Tunbridge Wells Borough Council,Environmental and regulatory services ,105,CR,Crematorium,Crematorium,Agency Staff,100,-,-,2022/04/06 00:00:00+00,2022/04/06 00:00:00+00,219361,1492.16,Revenue,Lee Snashfold Crematoria Mgmt & Consultancy,93
Tunbridge Wells Borough Council,Cultural and Related Services,104,PK,Parks,Woodlands,Management Fees,3310,-,-,2022/04/04 00:00:00+00,2022/04/06 00:00:00+00,219276,1447.25,Revenue,Tilhill Forestry Limited,94
Tunbridge Wells Borough Council,Cultural and Related Services,104,PK,Parks,Parks & Grounds,Ground Maint.Infrastructure,2063,-,-,2022/04/04 00:00:00+00,2022/04/06 00:00:00+00,219241,1172.05,Revenue,Streetmaster (South Wales) Ltd,95
Tunbridge Wells Borough Council,Housing Services,108,HP,Housing (Private Sector),Disabled Facilities Grants,Capital Grants Payable,8355,-,-,2022/04/01 00:00:00+00,2022/04/06 00:00:00+00,219250,1170,Capital,Peabody South East Limited,96
Tunbridge Wells Borough Council,Cultural and Related Services,104,PK,Parks,Parks & Grounds,Ground Maint.Infrastructure,2063,-,-,2022/04/04 00:00:00+00,2022/04/06 00:00:00+00,219240,1159.95,Revenue,Streetmaster (South Wales) Ltd,97
Tunbridge Wells Borough Council,Cultural and Related Services,104,PK,Parks,Parks & Grounds,Ground Maint.Infrastructure,2063,-,-,2022/04/04 00:00:00+00,2022/04/06 00:00:00+00,219242,1140.75,Revenue,Streetmaster (South Wales) Ltd,98
Tunbridge Wells Borough Council,Cultural and Related Services,104,MU,Museum,A-Hall Marketing,Events,3420,-,-,2022/04/06 00:00:00+00,2022/04/06 00:00:00+00,219230,1120,Revenue,Kms Media,99
Tunbridge Wells Borough Council,Central Services,102,FI,Finance,Accountancy,Qualifications Training,207,-,-,2022/04/05 00:00:00+00,2022/04/06 00:00:00+00,219286,1033.33,Revenue,First Intuition Limited,100
Tunbridge Wells Borough Council,Environmental and regulatory services ,105,FM,Facilities Management,Public Conveniences,Wastewater & Drainage,2340,Crescent Road Car Park Wc,PH0505,2022/04/12 00:00:00+00,2022/05/04 00:00:00+00,219566,489.74,Revenue,Business Stream,101
Tunbridge Wells Borough Council,Highways and Transport Services,107,PA,Parking,Parking Admin & Enforcement,Natnl Parking Adjudctn Service,3331,-,-,2022/04/28 00:00:00+00,2022/05/04 00:00:00+00,220071,420.3,Revenue,Patrol,102
Tunbridge Wells Borough Council,Environmental and regulatory services ,105,EH,Environmental Health,Health Improvement,External Training,204,-,-,2022/04/29 00:00:00+00,2022/05/04 00:00:00+00,219943,320,Revenue,Kent Community Health Nhs Trust,103
Tunbridge Wells Borough Council,Cultural and Related Services,104,AH,Assembly Hall,Cultural Hub,Promotion,3450,-,-,2022/04/29 00:00:00+00,2022/05/04 00:00:00+00,220056,300,Revenue,The Tn Card,104
Tunbridge Wells Borough Council,Cultural and Related Services,104,PK,Parks,Dunorlan Park,Ground Maint.Infrastructure,2063,-,-,2022/04/28 00:00:00+00,2022/05/04 00:00:00+00,219883,274.5,Revenue,D S Restoration,105
Tunbridge Wells Borough Council,Cultural and Related Services,104,AH,Assembly Hall,A-Hall Marketing,Promotion,3450,220503 Dreamboats & Petticoats,A22E03,2022/04/29 00:00:00+00,2022/05/04 00:00:00+00,220042,250,Revenue,Kms Media,106
Tunbridge Wells Borough Council,Central Services,102,FM,Facilities Management,Town Hall,Wastewater & Drainage,2340,-,-,2022/03/22 00:00:00+00,2022/05/04 00:00:00+00,218623,269.95,Revenue,Business Stream,107
Tunbridge Wells Borough Council,Central Services,102,FM,Facilities Management,Town Hall,Wastewater & Drainage,2340,-,-,2022/03/22 00:00:00+00,2022/05/04 00:00:00+00,218622,254.19,Revenue,Business Stream,108
Tunbridge Wells Borough Council,Central Services,102,PL,Planning,Community Hubs,Projects & Initiatives,3910,Southborough Hub,EV0280,2022/05/04 00:00:00+00,2022/05/04 00:00:00+00,220112,14891,Revenue,Southborough Town Council,109
Tunbridge Wells Borough Council,Central Services,102,FI,Finance,Civica Upgrade,Computer Software,8341,-,-,2022/05/03 00:00:00+00,2022/05/04 00:00:00+00,219690,13500,Capital,Civica Uk Ltd,110
Tunbridge Wells Borough Council,Planning Services,110,PL,Planning,Planning Policy,Planning Consultant Fees,3270,New Local Plan,EV0589,2022/05/03 00:00:00+00,2022/05/04 00:00:00+00,219945,11900,Revenue,Sweco Uk Ltd,111
Tunbridge Wells Borough Council,Cultural and Related Services,104,AH,Assembly Hall,A-Hall Council Shows,Show Fees,3380,220404 Rumours Of Fleetwood Ma,A22D09,2022/05/04 00:00:00+00,2022/05/04 00:00:00+00,220125,11077.84,Revenue,Cmp Entertainment,112
Tunbridge Wells Borough Council,Planning Services,110,PL,Planning,Planning Policy,Planning Consultant Fees,3270,New Local Plan,EV0589,2022/05/03 00:00:00+00,2022/05/04 00:00:00+00,219946,8402.2,Revenue,Public Interest Planning Limited,113
Tunbridge Wells Borough Council,Housing Services,108,HO,Housing,Housing Needs Service,Projects & Initiatives,3910,Covid-19 Comf Housing,EV0530,2022/05/04 00:00:00+00,2022/05/04 00:00:00+00,220149,8100,Revenue,This Data Has Been Redacted Under The Data Protection Act,114
Tunbridge Wells Borough Council,Housing Services,108,HP,Housing (Private Sector),Disabled Facilities Grants,Capital Grants Payable,8355,-,-,2022/05/03 00:00:00+00,2022/05/04 00:00:00+00,220094,5755.79,Capital,Lifestyle (Kent) Ltd,115
Tunbridge Wells Borough Council,Central Services,102,RB,Revs & Bens,Revs & Bens Administration,Computer Software,8341,-,-,2022/05/03 00:00:00+00,2022/05/04 00:00:00+00,219905,5638.02,Revenue,Capita Business Services Ltd,116
Tunbridge Wells Borough Council,Cultural and Related Services,104,MU,Museum,The Amelia Scott,Grants,3750,-,-,2022/05/04 00:00:00+00,2022/05/04 00:00:00+00,219727,5000,Revenue,This Data Has Been Redacted Under The Data Protection Act,117
Tunbridge Wells Borough Council,Central Services,102,FI,Finance,Covid-19 Coronavirus Support,Projects & Initiatives,3910,Covid-19 Containment Outbreak,EV0496,2022/05/04 00:00:00+00,2022/05/04 00:00:00+00,220121,5000,Revenue,Kent County Council,118
Tunbridge Wells Borough Council,Central Services,102,PU,Publications,Single Customer Account,Computer Software,8341,-,-,2022/05/03 00:00:00+00,2022/05/04 00:00:00+00,220041,3750,Capital,Granicus-Firmstep Ltd,119
Tunbridge Wells Borough Council,Central Services,102,FI,Finance,I T Service,It Software,3590,Software Maintenance,EV0328,2022/05/03 00:00:00+00,2022/05/04 00:00:00+00,219687,3735,Revenue,Mhr International Uk Limited,120
Tunbridge Wells Borough Council,Central Services,102,FI,Finance,Gateway,Equipment Purchase/Mtce,3000,Channel Shift Drive,EV0347,2022/05/03 00:00:00+00,2022/05/04 00:00:00+00,219686,3514.96,Revenue,Radiotronics Limited,121
Tunbridge Wells Borough Council,Cultural and related services,104,MU,Museum,Culture & Learning Hub,Capital Fees External,8315,-,-,2022/05/03 00:00:00+00,2022/05/04 00:00:00+00,219693,3500,Capital,Metaphor Commuincations Ltd,122
Tunbridge Wells Borough Council,Central Services,102,GW,Gateway Customer Services,Gateway,Agency Staff,100,-,-,2022/05/04 00:00:00+00,2022/05/04 00:00:00+00,219520,3404,Revenue,Recruitment Solutions,123
Tunbridge Wells Borough Council,Cultural and Related Services,104,AH,Assembly Hall,A-Hall Council Shows,Show Fees,3380,220407 Count Arthur Strong,A22D01,2022/05/04 00:00:00+00,2022/05/04 00:00:00+00,220124,3071.43,Revenue,Live Nation (Music) Uk Ltd,124
Tunbridge Wells Borough Council,Cultural and Related Services,104,MU,Museum,Npo - Arts Development,Consultants Fees,3292,-,-,2022/05/04 00:00:00+00,2022/05/04 00:00:00+00,219864,3000,Revenue,This Data Has Been Redacted Under The Data Protection Act,125
Tunbridge Wells Borough Council,Central Services,102,EL,Elections,Borough Elections,Rents/Hire Of Premises,2200,Borough Elections 220505,CS0424,2022/05/03 00:00:00+00,2022/05/04 00:00:00+00,220075,2750,Revenue,Hendley Removals & Storage Limited,126
Tunbridge Wells Borough Council,Planning Services,110,ED,Economic Development,Economic Development,It Software,3590,-,-,2022/05/04 00:00:00+00,2022/05/04 00:00:00+00,220103,2750,Revenue,Yoyo Design Ltd,127
Tunbridge Wells Borough Council,Planning Services,110,PL,Planning,Development Management,Planning Consultant Fees,3270,-,-,2022/05/04 00:00:00+00,2022/05/04 00:00:00+00,220117,2550,Revenue,Dixon Searle Partnership Ltd,128
Tunbridge Wells Borough Council,Cultural and Related Services,104,AB,Assembly Hall Bar,A-Hall Front Of House,Cogs - Drink,3091,-,-,2022/05/04 00:00:00+00,2022/05/04 00:00:00+00,220134,2281.38,Revenue,Lw Drinks     (Formerly Ht White),129
Tunbridge Wells Borough Council,Environmental and regulatory services ,105,CR,Crematorium,Crematorium,Agency Staff,100,-,-,2022/05/04 00:00:00+00,2022/05/04 00:00:00+00,220147,1891,Revenue,Lee Snashfold Crematoria Mgmt & Consultancy,130
Tunbridge Wells Borough Council,Environmental and regulatory services ,105,CR,Crematorium,Crematorium,Agency Staff,100,-,-,2022/05/04 00:00:00+00,2022/05/04 00:00:00+00,220146,1650,Revenue,Lee Snashfold Crematoria Mgmt & Consultancy,131
Tunbridge Wells Borough Council,Cultural and related services,104,MU,Museum,Culture & Learning Hub,Capital Fees External,8315,-,-,2022/05/04 00:00:00+00,2022/05/04 00:00:00+00,220050,1550,Capital,Ground Zero Coffee,132
Tunbridge Wells Borough Council,Planning Services,110,PL,Planning,Planning Policy,Planning Consultant Fees,3270,New Local Plan,EV0589,2022/05/04 00:00:00+00,2022/05/04 00:00:00+00,220128,1481.6,Revenue,This Data Has Been Redacted Under The Data Protection Act,133
Tunbridge Wells Borough Council,Central Services,102,FM,Facilities Management,Postal Charges Account,Cash Transfers,9100,-,-,2022/05/04 00:00:00+00,2022/05/04 00:00:00+00,220113,1456.58,Revenue,Royal Mail  Group Plc,134
Tunbridge Wells Borough Council,Central Services,102,FM,Facilities Management,Postal Charges Account,Cash Transfers,9100,-,-,2022/05/04 00:00:00+00,2022/05/04 00:00:00+00,220114,1207.48,Revenue,Royal Mail  Group Plc,135
Tunbridge Wells Borough Council,Housing Services,108,HO,Housing,Housing Needs Service,Homelessness Expenses,3912,Homelessness Prevention Suppor,EV0592,2022/05/04 00:00:00+00,2022/05/04 00:00:00+00,220115,900,Revenue,This Data Has Been Redacted Under The Data Protection Act,136
Tunbridge Wells Borough Council,Housing Services,108,HP,Housing (Private Sector),Disabled Facilities Grants,Capital Grants Payable,8355,-,-,2022/05/04 00:00:00+00,2022/05/04 00:00:00+00,219928,895.72,Capital,Peabody South East Limited,137
Tunbridge Wells Borough Council,Cultural and Related Services,104,AH,Assembly Hall,Cultural Hub,Promotion,3450,-,-,2022/05/04 00:00:00+00,2022/05/04 00:00:00+00,220118,848,Revenue,My Tunbridge Wells,138
Tunbridge Wells Borough Council,Housing Services,108,HO,Housing,Bed & Breakfast Costs,Rents/Hire Of Premises,2200,-,-,2022/05/03 00:00:00+00,2022/05/04 00:00:00+00,220084,758.33,Revenue,The Russell Hotel,139
Tunbridge Wells Borough Council,Environmental and regulatory services ,105,PK,Parks,Crematorium,Grounds Maint. Tivoli Contract,2054,-,-,2022/05/04 00:00:00+00,2022/05/04 00:00:00+00,220126,702,Revenue,How Green Nursery Ltd,140
Tunbridge Wells Borough Council,Environmental and regulatory services ,105,CS,Client Services (Depot),North Farm Depot,Fire & Security Property,2089,-,-,2022/05/03 00:00:00+00,2022/05/04 00:00:00+00,220105,528.64,Revenue,Atlas Facilities Management Ltd (Was Emprise),141
Tunbridge Wells Borough Council,Highways and Transport Services,107,PK,Parks,Crescent Road Car Park,Projects & Initiatives,3910,-,-,2022/05/04 00:00:00+00,2022/05/04 00:00:00+00,220127,374.7,Revenue,How Green Nursery Ltd,142
Tunbridge Wells Borough Council,Housing Services,108,FI,Finance,Tn2 Community Centre,Wastewater & Drainage,2340,-,-,2022/05/04 00:00:00+00,2022/05/04 00:00:00+00,219718,323.01,Revenue,Business Stream,143
Tunbridge Wells Borough Council,Housing Services,108,HO,Housing,Temporary Accommodation,Contract Cleaning,2510,-,-,2022/05/04 00:00:00+00,2022/05/04 00:00:00+00,220106,310.5,Revenue,Chameleon Service (Se) Ltd,144
Tunbridge Wells Borough Council,Housing Services,108,HO,Housing,Disabled Facilities Grants,Capital Grants Payable,8355,-,-,2022/05/04 00:00:00+00,2022/05/04 00:00:00+00,219675,292.8,Capital,Peabody South East Limited,145
Tunbridge Wells Borough Council,Environmental and regulatory services ,105,HE,Healthy Communities,Health Improvement,Projects & Initiatives,3910,-,-,2022/05/03 00:00:00+00,2022/05/04 00:00:00+00,219923,282,Revenue,Counterweight Limited,146
Tunbridge Wells Borough Council,Housing Services,108,HP,Housing (Private Sector),Disabled Facilities Grants,Capital Grants Payable,8355,-,-,2022/05/04 00:00:00+00,2022/05/04 00:00:00+00,219929,274.92,Capital,Peabody South East Limited,147
Tunbridge Wells Borough Council,Central Services,102,FI,Finance,Business Grants Creditor,Creditors,9009,Covid-19 Lrsg 16 Feb 31 Mar,EV0527,2022/05/09 00:00:00+00,2022/05/11 00:00:00+00,219896,1241814,Revenue,This Data Has Been Redacted Under The Data Protection Act,148
Tunbridge Wells Borough Council,Central Services,102,LG,Legal Services,Legal Services,Partnership Agreement,202,-,-,2022/05/10 00:00:00+00,2022/05/11 00:00:00+00,219726,155291.15,Revenue,Swale Borough Council,149
Tunbridge Wells Borough Council,Central Services,102,LG,Legal Services,Legal Services,Partnership Agreement,202,-,-,2022/05/09 00:00:00+00,2022/05/11 00:00:00+00,219725,121397.32,Revenue,Swale Borough Council,150
Tunbridge Wells Borough Council,Central Services,102,FI,Finance,Childcare Vouchers Scheme,Creditors,9009,-,-,2022/04/05 00:00:00+00,2022/04/06 00:00:00+00,219288,1019.7,Revenue,Fideliti Ltd,151
Tunbridge Wells Borough Council,Cultural and Related Services,104,MU,Museum,Cultural Hub,Consultants Fees,3292,-,-,2022/04/04 00:00:00+00,2022/04/06 00:00:00+00,219287,1000,Revenue,Alix Slater Consultancy & Training Ltd,152
Tunbridge Wells Borough Council,Cultural and related services,104,FI,Finance,Culture & Learning Hub,Computer Hardware,8329,-,-,2022/04/05 00:00:00+00,2022/04/06 00:00:00+00,219342,984.77,Capital,Ccs Media Limited,153
Tunbridge Wells Borough Council,Housing Services,108,HO,Housing,Housing Needs Service,Agency Staff,100,Covid-19 Containment Outbreak,EV0496,2022/04/04 00:00:00+00,2022/04/06 00:00:00+00,219227,962,Revenue,G2 Recruitment Solutions Limited,154
Tunbridge Wells Borough Council,Cultural and Related Services,104,PK,Parks,Parks & Grounds,Horticulture,2061,-,-,2022/04/04 00:00:00+00,2022/04/06 00:00:00+00,219244,875,Revenue,Palmstead Nurseries Ltd,155
Tunbridge Wells Borough Council,Planning Services,110,PL,Planning,Development Management,Planning Consultant Fees,3270,-,-,2022/04/04 00:00:00+00,2022/04/06 00:00:00+00,219272,775,Revenue,Rural Planning Limited,156
Tunbridge Wells Borough Council,Housing Services,108,HP,Housing (Private Sector),Disabled Facilities Grants,Capital Grants Payable,8355,-,-,2022/04/01 00:00:00+00,2022/04/06 00:00:00+00,219254,750,Capital,Peabody South East Limited,157
Tunbridge Wells Borough Council,Central Services,102,FI,Finance,Exchequer Services,Consultants Fees,3292,Avc Consultant Costs,EV0828,2022/04/05 00:00:00+00,2022/04/06 00:00:00+00,219284,639.7,Revenue,Avc Wise Ltd,158
Tunbridge Wells Borough Council,Housing Services,108,HP,Housing (Private Sector),Disabled Facilities Grants,Capital Grants Payable,8355,-,-,2022/04/01 00:00:00+00,2022/04/06 00:00:00+00,219252,630,Capital,Peabody South East Limited,159
Tunbridge Wells Borough Council,Cultural and Related Services,104,ED,Economic Development,Chalybeate Spring,Electricity,2140,-,-,2022/04/14 00:00:00+00,2022/04/20 00:00:00+00,215876,507.29,Revenue,Edf Energy,160
Tunbridge Wells Borough Council,Cultural and Related Services,104,FI,Finance,Tw Ice Rink,Equipment Purchase/Mtce,3000,-,-,2022/04/01 00:00:00+00,2022/04/06 00:00:00+00,219232,618.97,Revenue,Kingfisher Direct Limited,161
Tunbridge Wells Borough Council,Environmental and regulatory services ,105,FM,Facilities Management,Public Conveniences,Projects & Initiatives,3910,Community Toilet Scheme,EV0419,2022/04/06 00:00:00+00,2022/04/06 00:00:00+00,219266,600,Revenue,Horsmonden Parish Council,162
Tunbridge Wells Borough Council,Central Services,102,FM,Facilities Management,Town Hall,Equipment Purchase/Mtce,3000,-,-,2022/04/06 00:00:00+00,2022/04/06 00:00:00+00,219316,582.93,Revenue,Trade Uk,163
Tunbridge Wells Borough Council,Housing Services,108,HP,Housing (Private Sector),Disabled Facilities Grants,Capital Grants Payable,8355,-,-,2022/04/01 00:00:00+00,2022/04/06 00:00:00+00,219253,570,Capital,Peabody South East Limited,164
Tunbridge Wells Borough Council,Highways and Transport Services,107,PA,Parking,Parking Admin & Enforcement,Dvla Enquiry Service,3334,-,-,2022/04/13 00:00:00+00,2022/04/20 00:00:00+00,219504,507.15,Revenue,Imperial Civil Enforcement Solutions Ltd,165
Tunbridge Wells Borough Council,Cultural and related services,104,MU,Museum,Culture & Learning Hub,Capital Fees External,8315,"220506 Hearts, Arts & Drag Que",C22E21,2022/04/06 00:00:00+00,2022/04/06 00:00:00+00,219275,500,Capital,Focus Consultants 2010 Llp,166
Tunbridge Wells Borough Council,Central Services,102,CE,Chief Executive,Chief Executive,Conferences/Seminars,205,-,-,2022/04/20 00:00:00+00,2022/04/20 00:00:00+00,219517,495,Revenue,Local Government Association,167
Tunbridge Wells Borough Council,Central Services,102,RB,Revs & Bens,Revs & Bens Administration,Legal Fees,3260,-,-,2022/04/01 00:00:00+00,2022/04/06 00:00:00+00,219270,490,Revenue,Strategic Intelligence & Risk Services Europe,168
Tunbridge Wells Borough Council,Environmental and regulatory services ,105,EH,Environmental Health,Food & Safety,Agency Staff,100,Covid-19 Test & Trace Support,EV0490,2022/04/04 00:00:00+00,2022/04/06 00:00:00+00,219246,487.5,Revenue,Vivid Resourcing,169
Tunbridge Wells Borough Council,Cultural and Related Services,104,PK,Parks,Parks & Grounds,Ground Maint Non Contract,2060,-,-,2022/04/20 00:00:00+00,2022/04/20 00:00:00+00,219679,480,Revenue,Treework,170
Tunbridge Wells Borough Council,Housing Services,108,HP,Housing (Private Sector),Disabled Facilities Grants,Capital Grants Payable,8355,-,-,2022/04/01 00:00:00+00,2022/04/06 00:00:00+00,219249,474,Capital,Peabody South East Limited,171
Tunbridge Wells Borough Council,Central Services,102,PL,Planning,Accountancy,Photocopying Expenses,3180,Photocopying Consumables,EV0313,2022/04/04 00:00:00+00,2022/04/06 00:00:00+00,219273,462,Revenue,Canon Uk Limited,172
Tunbridge Wells Borough Council,Environmental and regulatory services ,105,CR,Crematorium,Crematorium,Subs To Organisations,3730,-,-,2022/04/04 00:00:00+00,2022/04/06 00:00:00+00,219292,455,Revenue,Iccm,173
Tunbridge Wells Borough Council,Cultural and Related Services,104,PK,Parks,Parks & Grounds,Ground Maint Non Contract,2060,-,-,2022/04/20 00:00:00+00,2022/04/20 00:00:00+00,219705,460,Revenue,Treework,174
Tunbridge Wells Borough Council,Cultural and Related Services,104,AH,Assembly Hall,A-Hall Council Shows,Show Fees,3380,210730 Le Cabaret Rock,A21G03,2022/04/04 00:00:00+00,2022/04/06 00:00:00+00,219229,452,Revenue,London Cabaret Society Ltd,175
Tunbridge Wells Borough Council,Cultural and Related Services,104,AB,Assembly Hall Bar,A-Hall Front Of House,Cogs - Drink,3091,-,-,2022/04/20 00:00:00+00,2022/04/20 00:00:00+00,219542,411.31,Revenue,Lw Drinks     (Formerly Ht White),176
Tunbridge Wells Borough Council,Housing Services,108,HP,Housing (Private Sector),Disabled Facilities Grants,Capital Grants Payable,8355,-,-,2022/04/01 00:00:00+00,2022/04/06 00:00:00+00,219251,381,Capital,Peabody South East Limited,177
Tunbridge Wells Borough Council,Cultural and Related Services,104,AH,Assembly Hall,Tw Ice Rink,Admission & Ticket Charges,5420,-,-,2022/04/14 00:00:00+00,2022/04/20 00:00:00+00,219667,385,Revenue,Benenden School Kent Ltd,178
Tunbridge Wells Borough Council,Planning Services,110,PL,Planning,Planning Policy,Planning Consultant Fees,3270,New Local Plan,EV0589,2022/04/05 00:00:00+00,2022/04/06 00:00:00+00,219311,378,Revenue,Wealden Advertiser Limited,179
Tunbridge Wells Borough Council,Cultural and Related Services,104,PK,Parks,Parks & Grounds,Horticulture,2061,-,-,2022/04/20 00:00:00+00,2022/04/20 00:00:00+00,219677,380,Revenue,Treework,180
Tunbridge Wells Borough Council,Cultural and Related Services,104,AH,Assembly Hall,Cultural Hub,Promotion,3450,-,-,2022/04/20 00:00:00+00,2022/04/20 00:00:00+00,219724,300,Revenue,Aspect County Magazine,181
Tunbridge Wells Borough Council,Central Services,102,FM,Facilities Management,Town Hall,Water Supply,2300,-,-,2022/04/06 00:00:00+00,2022/04/06 00:00:00+00,219245,374.53,Revenue,Castle Water Ltd,182
Tunbridge Wells Borough Council,Central Services,102,HR,Human Resources,Human Resources,In House Training,201,-,-,2022/04/01 00:00:00+00,2022/04/06 00:00:00+00,218607,367.35,Revenue,Hotel Du Vin Trading Ltd,183
Tunbridge Wells Borough Council,Cultural and Related Services,104,FM,Facilities Management,Museum & Art Gallery,Contract Cleaning,2510,-,-,2022/04/14 00:00:00+00,2022/04/20 00:00:00+00,219224,289.71,Revenue,Churchill Contract Services Limited,184
Tunbridge Wells Borough Council,Highways and Transport Services,107,FI,Finance,Parking Admin & Enforcement,Printing,3150,-,-,2022/04/04 00:00:00+00,2022/04/06 00:00:00+00,219303,357.5,Revenue,Corporate Document Services Limited,185
Tunbridge Wells Borough Council,Cultural and Related Services,104,AB,Assembly Hall Bar,A-Hall Front Of House,Cogs - Confectionery,3094,-,-,2022/04/20 00:00:00+00,2022/04/20 00:00:00+00,219658,289.32,Revenue,B.G. Benton Limited,186
Tunbridge Wells Borough Council,Environmental and regulatory services ,105,PK,Parks,Tunbridge Wells-Cemeteries,Grounds Maint Contracts,2050,-,-,2022/04/20 00:00:00+00,2022/04/20 00:00:00+00,219706,280,Revenue,Treework,187
Tunbridge Wells Borough Council,Central Services,102,CE,Chief Executive,Chief Executive,Conferences/Seminars,205,-,-,2022/04/06 00:00:00+00,2022/04/06 00:00:00+00,219353,344,Revenue,Event-X Ltd,188
Tunbridge Wells Borough Council,Cultural and Related Services,104,PK,Parks,Parks & Grounds,Ground Maint Non Contract,2060,-,-,2022/04/20 00:00:00+00,2022/04/20 00:00:00+00,219541,274.5,Revenue,D S Restoration,189
Tunbridge Wells Borough Council,Environmental and regulatory services ,105,EH,Environmental Health,Health & Safety,Equipment Purchase/Mtce,3000,-,-,2022/04/04 00:00:00+00,2022/04/06 00:00:00+00,219228,337.5,Revenue,Medi Aid Uk (Ltd),190
Tunbridge Wells Borough Council,Cultural and Related Services,104,PK,Parks,Parks & Grounds,Water Supply,2300,-,-,2022/04/20 00:00:00+00,2022/04/20 00:00:00+00,219323,269.58,Revenue,Castle Water Ltd,191
Tunbridge Wells Borough Council,Central Services,102,CE,Chief Executive,Democratic Management,Hospitality,3720,-,-,2022/04/05 00:00:00+00,2022/04/06 00:00:00+00,219350,322.5,Revenue,Bournemouth Convention Bureau Ltd,192
Tunbridge Wells Borough Council,Cultural and Related Services,104,FI,Finance,Tw Commons,Precepts & Levies,3900,-,-,2022/04/27 00:00:00+00,2022/04/27 00:00:00+00,219935,87945,Revenue,Tun Wells Commons Conservators,193
Tunbridge Wells Borough Council,Highways and Transport Services,107,FI,Finance,Parking Admin & Enforcement,Fuel & Oil,1010,-,-,2022/04/05 00:00:00+00,2022/04/06 00:00:00+00,219313,317.48,Revenue,Fuel Card Services Ltd,194
Tunbridge Wells Borough Council,Cultural and Related Services,104,PK,Parks,Parks & Grounds,Ground Maint Non Contract,2060,Covid-19 Comf Parks,EV0531,2022/04/21 00:00:00+00,2022/04/27 00:00:00+00,219688,83468,Revenue,Playsafe Playgrounds Limited,195
Tunbridge Wells Borough Council,Housing Services,108,HO,Housing,Housing Needs Service,Projects & Initiatives,3910,Covid-19 Comf Housing,EV0530,2022/04/06 00:00:00+00,2022/04/06 00:00:00+00,219358,307.87,Revenue,South East Water Plc,196
Tunbridge Wells Borough Council,Environmental and regulatory services ,105,FM,Facilities Management,Cctv,External Contract Payments,3220,-,-,2022/04/27 00:00:00+00,2022/04/27 00:00:00+00,219333,17159.18,Revenue,Enigma Cctv Ltd,197
Tunbridge Wells Borough Council,Environmental and regulatory services ,105,FM,Facilities Management,Public Conveniences,Water Supply,2300,Crescent Road Car Park Wc,PH0505,2022/04/06 00:00:00+00,2022/04/06 00:00:00+00,219212,305.18,Revenue,Castle Water Ltd,198
Tunbridge Wells Borough Council,Environmental and regulatory services ,105,CS,Client Services (Depot),Refuse Collection Services,Projects & Initiatives,3910,Waste Minimisation,EV0418,2022/04/26 00:00:00+00,2022/04/27 00:00:00+00,219654,15000,Revenue,Kent County Council,199
Tunbridge Wells Borough Council,Central Services,102,FI,Finance,Building Administration,Printing,3150,-,-,2022/04/04 00:00:00+00,2022/04/06 00:00:00+00,219302,304.59,Revenue,Corporate Document Services Limited,200
Tunbridge Wells Borough Council,Central Services,102,FM,Facilities Management,Emergency Planning,Projects & Initiatives,3910,-,-,2022/04/21 00:00:00+00,2022/04/27 00:00:00+00,219731,13500,Revenue,Kmtfa,201
Tunbridge Wells Borough Council,Cultural and related services,104,MU,Museum,Culture & Learning Hub,Capital Fees External,8315,-,-,2022/04/27 00:00:00+00,2022/04/27 00:00:00+00,219514,13200,Capital,Empire Glass Glazing Ltd,202
Tunbridge Wells Borough Council,Central Services,102,FI,Finance,Democratic Management,Subscriptions - Lga,3731,-,-,2022/04/25 00:00:00+00,2022/04/27 00:00:00+00,219666,11381.46,Revenue,Local Government Association,203
Tunbridge Wells Borough Council,Environmental and regulatory services ,105,EH,Environmental Health,Sustainability,External Contract Payments,3220,Air Quality Monito,PE0400,2022/04/26 00:00:00+00,2022/04/27 00:00:00+00,219851,9593.65,Revenue,Ricardo-Aea,204
Tunbridge Wells Borough Council,Cultural and Related Services,104,AH,Assembly Hall,A-Hall Hire Shows,Ticket Repayment,5421,220319 Banff Film Festival,A22Q02,2022/04/27 00:00:00+00,2022/04/27 00:00:00+00,219848,8194.06,Revenue,Snowline Media Ltd,205
Tunbridge Wells Borough Council,Housing Services,108,HP,Housing (Private Sector),Disabled Facilities Grants,Capital Grants Payable,8355,-,-,2022/04/25 00:00:00+00,2022/04/27 00:00:00+00,219493,3980,Capital,Town And Country Housing Group,206
Tunbridge Wells Borough Council,Environmental and regulatory services ,105,CS,Client Services (Depot),Refuse Collection Services,Equipment Purchase/Mtce,3000,-,-,2022/04/26 00:00:00+00,2022/04/27 00:00:00+00,219906,3480,Revenue,Craemer Uk Limited,207
Tunbridge Wells Borough Council,Central Services,102,GW,Gateway Customer Services,Gateway,Telephone Costs,3510,Call Centre,EV0341,2022/04/27 00:00:00+00,2022/04/27 00:00:00+00,219337,3160.94,Revenue,Daisy Corporate Services Trading Limited,208
Tunbridge Wells Borough Council,Cultural and related services,104,MU,Museum,Culture & Learning Hub,Capital Fees External,8315,-,-,2022/04/22 00:00:00+00,2022/04/27 00:00:00+00,219480,3115,Capital,Harpers Art Ltd,209
Tunbridge Wells Borough Council,Planning Services,110,LG,Legal Services,Development Management,Legal Fees,3260,-,-,2022/04/26 00:00:00+00,2022/04/27 00:00:00+00,219477,3000,Revenue,Town Legal Llp,210
Tunbridge Wells Borough Council,Cultural and Related Services,104,PK,Parks,Parks & Grounds,Ground Maint Non Contract,2060,-,-,2022/04/14 00:00:00+00,2022/04/27 00:00:00+00,219640,2790,Revenue,Treework,211
Tunbridge Wells Borough Council,Cultural and Related Services,104,FI,Finance,Parks & Grounds,Ground Maint Non Contract,2060,-,-,2022/04/21 00:00:00+00,2022/04/27 00:00:00+00,219827,2790,Revenue,Treework,212
Tunbridge Wells Borough Council,Environmental and regulatory services ,105,EH,Environmental Health,Footway Lighting-Tw & Rusthall,Street Lighting Mtce Contract,2035,-,-,2022/04/26 00:00:00+00,2022/04/27 00:00:00+00,219850,2774.52,Revenue,Psr Lighting & Signs Ltd,213
Tunbridge Wells Borough Council,Cultural and Related Services,104,MU,Museum,Cultural Hub,Projects & Initiatives,3910,Benches Commission,AC0003,2022/04/26 00:00:00+00,2022/04/27 00:00:00+00,219695,2000,Revenue,Angus Ross Ltd,214
Tunbridge Wells Borough Council,Central Services,102,PS,Property Services,Building Services,Books & Publications,3190,-,-,2022/04/27 00:00:00+00,2022/04/27 00:00:00+00,219381,1800,Revenue,Bcis Ltd (Rics),215
Tunbridge Wells Borough Council,Cultural and Related Services,104,PK,Parks,Parks & Grounds,Ground Maint Non Contract,2060,-,-,2022/04/14 00:00:00+00,2022/04/27 00:00:00+00,219641,1780,Revenue,Treework,216
Tunbridge Wells Borough Council,Cultural and Related Services,104,FI,Finance,Parks & Grounds,Ground Maint Non Contract,2060,-,-,2022/04/21 00:00:00+00,2022/04/27 00:00:00+00,219825,1780,Revenue,Treework,217
Tunbridge Wells Borough Council,Highways and Transport Services,107,EH,Environmental Health,Street Lighting Columns,Furniture And Equipment,8326,-,-,2022/04/26 00:00:00+00,2022/04/27 00:00:00+00,219634,1670,Capital,Psr Lighting & Signs Ltd,218
Tunbridge Wells Borough Council,Environmental and regulatory services ,105,CR,Crematorium,Crematorium,Agency Staff,100,-,-,2022/04/27 00:00:00+00,2022/04/27 00:00:00+00,219891,1650,Revenue,Lee Snashfold Crematoria Mgmt & Consultancy,219
Tunbridge Wells Borough Council,Central Services,102,RB,Revs & Bens,Revs & Bens Administration,Vat Input Tax - Other,8522,-,-,2022/04/21 00:00:00+00,2022/04/27 00:00:00+00,219740,1547.81,Revenue,Maidstone Borough Council,220
Tunbridge Wells Borough Council,Environmental and regulatory services ,105,CR,Crematorium,Crematorium,Agency Staff,100,-,-,2022/04/27 00:00:00+00,2022/04/27 00:00:00+00,219890,1512.8,Revenue,Lee Snashfold Crematoria Mgmt & Consultancy,221
Tunbridge Wells Borough Council,Cultural and Related Services,104,MU,Museum,Cultural Hub,Consultants Fees,3292,-,-,2022/04/26 00:00:00+00,2022/04/27 00:00:00+00,219672,1167.5,Revenue,Civic Engineers Limited,222
Tunbridge Wells Borough Council,Central Services,102,FM,Facilities Management,Emergency Planning,Projects & Initiatives,3910,-,-,2022/04/26 00:00:00+00,2022/04/27 00:00:00+00,219730,1112.96,Revenue,Kmtfa,223
Tunbridge Wells Borough Council,Housing Services,108,HO,Housing,Housing Needs Service,Projects & Initiatives,3910,Rough Sleepers,EV0582,2022/04/22 00:00:00+00,2022/04/27 00:00:00+00,219844,1100,Revenue,This Data Has Been Redacted Under The Data Protection Act,224
Tunbridge Wells Borough Council,Cultural and Related Services,104,PK,Parks,Parks & Grounds,Horticulture,2061,Britain In Bloom,PL0395,2022/04/22 00:00:00+00,2022/04/27 00:00:00+00,219838,1045,Revenue,Tivoli Group Limited,225
Tunbridge Wells Borough Council,Housing Services,108,HO,Housing,Housing Needs Service,Agency Staff,100,Covid-19 Containment Outbreak,EV0496,2022/04/26 00:00:00+00,2022/04/27 00:00:00+00,219741,780,Revenue,G2 Recruitment Solutions Limited,226
Tunbridge Wells Borough Council,Central Services,102,FI,Finance,Covid-19 Coronavirus Support,Grants,3750,Covid-19 Household Supp Fund,EV0532,2022/04/14 00:00:00+00,2022/04/27 00:00:00+00,219648,750,Revenue,Christ Church Southborough,227
Tunbridge Wells Borough Council,Environmental and regulatory services ,105,CR,Crematorium,Tunbridge Wells-Cemeteries,Cogs - Plaques,3082,-,-,2022/04/25 00:00:00+00,2022/04/27 00:00:00+00,219843,713.28,Revenue,A Burslem & Son Ltd (Burslem Memorials),228
Tunbridge Wells Borough Council,Cultural and Related Services,104,AH,Assembly Hall,Museum & Art Gallery,Promotion,3450,-,-,2022/04/27 00:00:00+00,2022/04/27 00:00:00+00,219922,695,Revenue,Muddy Stilettos Kent,229
Tunbridge Wells Borough Council,Housing Services,108,FI,Finance,Private Sector Housing,Mobile Phone Costs,3520,-,-,2022/04/27 00:00:00+00,2022/04/27 00:00:00+00,219831,676,Revenue,O2 Uk Limited,230
Tunbridge Wells Borough Council,Housing Services,108,HO,Housing,Housing Needs Service,Projects & Initiatives,3910,Rough Sleepers,EV0582,2022/04/26 00:00:00+00,2022/04/27 00:00:00+00,219710,652.34,Revenue,Town And Country Housing Group,231
Tunbridge Wells Borough Council,Cultural and Related Services,104,FM,Facilities Management,Museum & Art Gallery,Contract Cleaning,2510,-,-,2022/04/26 00:00:00+00,2022/04/27 00:00:00+00,219699,613.8,Revenue,Churchill Contract Services Limited,232
Tunbridge Wells Borough Council,Environmental and regulatory services ,105,CS,Client Services (Depot),Refuse Collection Services,Equipment Purchase/Mtce,3000,-,-,2022/05/06 00:00:00+00,2022/05/11 00:00:00+00,220069,13500,Revenue,Mgb Plastics Ltd (One 51 Plastics),233
Tunbridge Wells Borough Council,Environmental and regulatory services ,105,PU,Publications,Refuse Collection Services,Books & Publications,3190,-,-,2022/04/20 00:00:00+00,2022/04/20 00:00:00+00,219048,4646.58,Revenue,Cabinet Office,234
Tunbridge Wells Borough Council,Housing Services,108,HO,Housing,Housing Needs Service,Projects & Initiatives,3910,Covid-19 Comf Housing,EV0530,2022/04/06 00:00:00+00,2022/04/06 00:00:00+00,219357,271.71,Revenue,Town And Country Housing Group,235
Tunbridge Wells Borough Council,Environmental and regulatory services ,105,CS,Client Services (Depot),Refuse Collection Services,Equipment Purchase/Mtce,3000,-,-,2022/05/06 00:00:00+00,2022/05/11 00:00:00+00,220070,13500,Revenue,Mgb Plastics Ltd (One 51 Plastics),236
Tunbridge Wells Borough Council,Housing Services,108,HO,Housing,Bed & Breakfast Costs,Rents/Hire Of Premises,2200,-,-,2022/04/05 00:00:00+00,2022/04/06 00:00:00+00,219293,270,Revenue,High Weald Property Investments,237
Tunbridge Wells Borough Council,Cultural and related services,104,MU,Museum,Culture & Learning Hub,Capital Fees External,8315,-,-,2022/05/10 00:00:00+00,2022/05/11 00:00:00+00,219728,12931,Capital,Focus Consultants 2010 Llp,238
Tunbridge Wells Borough Council,Central Services,102,PS,Property Services,Town Hall Roof,"Construction, Renovation, Etc",8311,-,-,2022/04/07 00:00:00+00,2022/04/12 00:00:00+00,219267,89478.49,Capital,Makers Construction Ltd,239
Tunbridge Wells Borough Council,Cultural and Related Services,104,MU,Museum,The Amelia Scott,Consultants Fees,3292,Covid-19 Culture Recov Grant 2,EV0529,2022/05/10 00:00:00+00,2022/05/11 00:00:00+00,220253,11250,Revenue,Stunn Ltd,240
Tunbridge Wells Borough Council,Environmental and regulatory services ,105,CU,Community Safty Unit,Cctv,Telephones - Cctv Trans Links,3512,-,-,2022/04/12 00:00:00+00,2022/04/12 00:00:00+00,219523,30281.48,Revenue,British Telecommunications Plc,241
Tunbridge Wells Borough Council,Housing Services,108,HO,Housing,Properties On Loan,Rents/Hire Of Premises,2200,-,-,2022/05/09 00:00:00+00,2022/05/11 00:00:00+00,220311,9130.2,Revenue,Town And Country Housing Group,242
Tunbridge Wells Borough Council,Central Services,102,CE,Chief Executive,Borough Elections,Postage,3500,Borough Elections 220505,CS0424,2022/04/12 00:00:00+00,2022/04/12 00:00:00+00,219510,25368.52,Revenue,Financial Data Management Ltd,243
Tunbridge Wells Borough Council,Housing Services,108,HP,Housing (Private Sector),Disabled Facilities Grants,Capital Grants Payable,8355,-,-,2022/05/06 00:00:00+00,2022/05/11 00:00:00+00,220244,5710,Capital,Ascendit Lifts Ltd,244
Tunbridge Wells Borough Council,Central Services,102,IT,Information & Communications Technology,It Strategy,Computer Hardware,8329,-,-,2022/05/05 00:00:00+00,2022/05/11 00:00:00+00,220077,5460,Capital,Complete It Systems Limited,245
Tunbridge Wells Borough Council,Housing Services,108,DS,Sundry Customer,Housing Needs Service,Projects & Initiatives,3910,Covid-19 Comf Housing,EV0530,2022/05/11 00:00:00+00,2022/05/11 00:00:00+00,220316,4800,Revenue,This Data Has Been Redacted Under The Data Protection Act,246
Tunbridge Wells Borough Council,Housing Services,108,HP,Housing (Private Sector),Disabled Facilities Grants,Capital Grants Payable,8355,-,-,2022/05/11 00:00:00+00,2022/05/11 00:00:00+00,220372,4517.68,Capital,Acorn Maintenance Services Limited,247
Tunbridge Wells Borough Council,Housing Services,108,HP,Housing (Private Sector),Disabled Facilities Grants,Capital Grants Payable,8355,-,-,2022/05/11 00:00:00+00,2022/05/11 00:00:00+00,220331,4334.25,Capital,The Build Works Ltd,248
Tunbridge Wells Borough Council,Planning Services,110,PL,Planning,Planning Policy,Planning Consultant Fees,3270,New Local Plan,EV0589,2022/05/11 00:00:00+00,2022/05/11 00:00:00+00,220373,3950,Revenue,Dixon Searle Partnership Ltd,249
Tunbridge Wells Borough Council,Central Services,102,ST,Stationery Orders,Accountancy,Photocopying Expenses,3180,Photocopying Usage,EV0310,2022/05/11 00:00:00+00,2022/05/11 00:00:00+00,219723,3662.03,Revenue,Sharp Business Systems Uk Plc,250
Tunbridge Wells Borough Council,Central Services,102,CE,Chief Executive,Democratic Management,Subs To Organisations,3730,-,-,2022/05/11 00:00:00+00,2022/05/11 00:00:00+00,220266,3152,Revenue,District Councils Network,251
Tunbridge Wells Borough Council,Planning Services,110,PL,Planning,Planning Management,External Training,204,-,-,2022/05/06 00:00:00+00,2022/05/11 00:00:00+00,220254,3000,Revenue,Design South East,252
Tunbridge Wells Borough Council,Cultural and Related Services,104,MU,Museum,Cultural Hub,Consultants Fees,3292,-,-,2022/05/10 00:00:00+00,2022/05/11 00:00:00+00,220245,2850,Revenue,Focus Consultants 2010 Llp,253
Tunbridge Wells Borough Council,Planning Services,110,PL,Planning,Planning Policy,Planning Consultant Fees,3270,New Local Plan,EV0589,2022/05/06 00:00:00+00,2022/05/11 00:00:00+00,220248,2757.5,Revenue,Jeremy Benn Associates Ltd,254
Tunbridge Wells Borough Council,Central Services,102,FI,Finance,Accountancy,Legal Fees,3260,-,-,2022/05/10 00:00:00+00,2022/05/11 00:00:00+00,220374,2733.31,Revenue,Mishcon De Reya,255
Tunbridge Wells Borough Council,Housing Services,108,HP,Housing (Private Sector),Housing Renewal Advances,Capital Grants Payable,8355,-,-,2022/05/11 00:00:00+00,2022/05/11 00:00:00+00,220332,2570,Capital,The Build Works Ltd,256
Tunbridge Wells Borough Council,Environmental and regulatory services ,105,CR,Crematorium,Crematorium,Webcast Costs,3550,-,-,2022/05/06 00:00:00+00,2022/05/11 00:00:00+00,220263,2567,Revenue,Vivedia Ltd,257
Tunbridge Wells Borough Council,Environmental and regulatory services ,105,CU,Community Safty Unit,Cctv,Partnership Agreement,202,-,-,2022/05/11 00:00:00+00,2022/05/11 00:00:00+00,220116,2546.4,Revenue,Sevenoaks District Council,258
Tunbridge Wells Borough Council,Highways and Transport Services,107,PA,Parking,Crescent Road Car Park,External Contract Security,3225,-,-,2022/05/10 00:00:00+00,2022/05/11 00:00:00+00,220340,2240,Revenue,Right Guard Security Uk Ltd,259
Tunbridge Wells Borough Council,Housing Services,108,HO,Housing,Bed & Breakfast Costs,Rents/Hire Of Premises,2200,-,-,2022/05/10 00:00:00+00,2022/05/11 00:00:00+00,220250,1794,Revenue,Paramount Independent Property Services Llp,260
Tunbridge Wells Borough Council,Central Services,102,PS,Property Services,Town Hall Roof,"Construction, Renovation, Etc",8311,-,-,2022/05/06 00:00:00+00,2022/05/11 00:00:00+00,219902,1775.68,Capital,Makers Construction Ltd,261
Tunbridge Wells Borough Council,Cultural and related services,104,MU,Museum,Culture & Learning Hub,Consultants Fees,3292,-,-,2022/05/05 00:00:00+00,2022/05/11 00:00:00+00,220258,1700,Capital,The Fire Surgery Ltd,262
Tunbridge Wells Borough Council,Housing Services,108,HO,Housing,Bed & Breakfast Costs,Rents/Hire Of Premises,2200,Rough Sleepers,EV0582,2022/05/10 00:00:00+00,2022/05/11 00:00:00+00,220086,1669.17,Revenue,The Russell Hotel,263
Tunbridge Wells Borough Council,Environmental and regulatory services ,105,CR,Crematorium,Crematorium,Agency Staff,100,-,-,2022/05/11 00:00:00+00,2022/05/11 00:00:00+00,220363,1650,Revenue,Lee Snashfold Crematoria Mgmt & Consultancy,264
Tunbridge Wells Borough Council,Environmental and regulatory services ,105,CR,Crematorium,Crematorium,Agency Staff,100,-,-,2022/05/11 00:00:00+00,2022/05/11 00:00:00+00,220362,1515.2,Revenue,Lee Snashfold Crematoria Mgmt & Consultancy,265
Tunbridge Wells Borough Council,Central Services,102,FI,Finance,Human Resources,Subs To Organisations,3730,Kcc Subscriptions,EV1070,2022/05/10 00:00:00+00,2022/05/11 00:00:00+00,219873,1500,Revenue,Kent County Council,266
Tunbridge Wells Borough Council,Central Services,102,HR,Human Resources,Human Resources,Salaries,20,-,-,2022/05/09 00:00:00+00,2022/05/11 00:00:00+00,219846,1350.13,Revenue,Recruitment Solutions,267
Tunbridge Wells Borough Council,Housing Services,108,HO,Housing,Bed & Breakfast Costs,Rents/Hire Of Premises,2200,Rough Sleepers,EV0582,2022/05/10 00:00:00+00,2022/05/11 00:00:00+00,220085,1307.3,Revenue,The Russell Hotel,268
Tunbridge Wells Borough Council,Central Services,102,PS,Property Services,Building Services,Property Consultants,3290,-,-,2022/05/11 00:00:00+00,2022/05/11 00:00:00+00,220324,1275,Revenue,This Data Has Been Redacted Under The Data Protection Act,269
Tunbridge Wells Borough Council,Cultural and Related Services,104,AB,Assembly Hall Bar,A-Hall Front Of House,Cogs - Drink,3091,-,-,2022/05/10 00:00:00+00,2022/05/11 00:00:00+00,220342,1157.02,Revenue,Lw Drinks     (Formerly Ht White),270
Tunbridge Wells Borough Council,Central Services,102,HR,Human Resources,Human Resources,In House Training,201,-,-,2022/05/09 00:00:00+00,2022/05/11 00:00:00+00,220252,1134,Revenue,Basil Catering Services Limited,271
Tunbridge Wells Borough Council,Housing Services,108,HO,Housing,Housing Needs Service,Agency Staff,100,Covid-19 Containment Outbreak,EV0496,2022/05/09 00:00:00+00,2022/05/11 00:00:00+00,220270,962,Revenue,G2 Recruitment Solutions Limited,272
Tunbridge Wells Borough Council,Cultural and related services,104,MU,Museum,Culture & Learning Hub,Consultants Fees,3292,-,-,2022/05/05 00:00:00+00,2022/05/11 00:00:00+00,220257,850,Capital,The Fire Surgery Ltd,273
Tunbridge Wells Borough Council,Housing Services,108,HP,Housing (Private Sector),Disabled Facilities Grants,Capital Grants Payable,8355,-,-,2022/05/06 00:00:00+00,2022/05/11 00:00:00+00,219927,702.39,Capital,Peabody South East Limited,274
Tunbridge Wells Borough Council,Central Services,102,FI,Finance,Exchequer Services,Consultants Fees,3292,Avc Consultant Costs,EV0828,2022/05/05 00:00:00+00,2022/05/11 00:00:00+00,220108,587.99,Revenue,Avc Wise Ltd,275
Tunbridge Wells Borough Council,Cultural and Related Services,104,AB,Assembly Hall Bar,A-Hall Front Of House,Cogs - Drink,3091,-,-,2022/05/09 00:00:00+00,2022/05/11 00:00:00+00,220159,575.1,Revenue,Westerham Brewery,276
Tunbridge Wells Borough Council,Cultural and Related Services,104,PK,Parks,Parks & Grounds,Horticulture,2061,-,-,2022/05/10 00:00:00+00,2022/05/11 00:00:00+00,220256,531.5,Revenue,Bourne Amenity Ltd,277
Tunbridge Wells Borough Council,Cultural and Related Services,104,AH,Assembly Hall,Cultural Hub,Promotion,3450,-,-,2022/05/10 00:00:00+00,2022/05/11 00:00:00+00,220247,516.6,Revenue,Kms Media,278
Tunbridge Wells Borough Council,Housing Services,108,HP,Housing (Private Sector),Disabled Facilities Grants,Capital Grants Payable,8355,-,-,2022/05/06 00:00:00+00,2022/05/11 00:00:00+00,219926,465.36,Capital,Peabody South East Limited,279
Tunbridge Wells Borough Council,Cultural and Related Services,104,CO,Communications,Dunorlan Park,Ground Maint.Infrastructure,2063,-,-,2022/05/06 00:00:00+00,2022/05/11 00:00:00+00,220259,450,Revenue,Serious Graphics Limited,280
Tunbridge Wells Borough Council,Cultural and Related Services,104,AB,Assembly Hall Bar,Cultural Hub,Equipment Purchase/Mtce,3000,-,-,2022/05/10 00:00:00+00,2022/05/11 00:00:00+00,220334,384.56,Revenue,B.G. Benton Limited,281
Tunbridge Wells Borough Council,Highways and Transport Services,107,FI,Finance,Parking Admin & Enforcement,Fuel & Oil,1010,-,-,2022/05/09 00:00:00+00,2022/05/11 00:00:00+00,220271,383.11,Revenue,Fuel Card Services Ltd,282
Tunbridge Wells Borough Council,Cultural and Related Services,104,AH,Assembly Hall,A-Hall Technical,Equipment Hire/Rent,3010,220501 Rtwso May 2022,A22S02,2022/05/11 00:00:00+00,2022/05/11 00:00:00+00,220251,360,Revenue,Rase Productions Ltd,283
Tunbridge Wells Borough Council,Cultural and Related Services,104,AH,Assembly Hall,Cultural Hub,Promotion,3450,-,-,2022/05/10 00:00:00+00,2022/05/11 00:00:00+00,220246,350,Revenue,Kms Media,284
Tunbridge Wells Borough Council,Highways and Transport Services,107,FI,Finance,Parking Admin & Enforcement,Fuel & Oil,1010,-,-,2022/05/05 00:00:00+00,2022/05/11 00:00:00+00,219828,341.14,Revenue,Fuel Card Services Ltd,285
Tunbridge Wells Borough Council,Cultural and Related Services,104,PK,Parks,Parks & Grounds,Ground Maint Non Contract,2060,-,-,2022/05/10 00:00:00+00,2022/05/11 00:00:00+00,220354,270,Revenue,D S Restoration,286
Tunbridge Wells Borough Council,Housing Services,108,HO,Housing,Housing Needs Service,Homelessness Expenses,3912,-,-,2022/05/11 00:00:00+00,2022/05/11 00:00:00+00,220355,260,Revenue,Chameleon Service (Se) Ltd,287
Tunbridge Wells Borough Council,Housing Services,108,HO,Housing,Housing Needs Service,Projects & Initiatives,3910,Homelessness Prevention Suppor,EV0592,2022/05/17 00:00:00+00,2022/05/17 00:00:00+00,220554,3590.81,Revenue,Town And Country Housing Group,288
Tunbridge Wells Borough Council,Housing Services,108,HP,Housing (Private Sector),Disabled Facilities Grants,Capital Grants Payable,8355,-,-,2022/04/13 00:00:00+00,2022/04/20 00:00:00+00,219397,3980,Capital,Town And Country Housing Group,289
Tunbridge Wells Borough Council,Cultural and Related Services,104,AB,Assembly Hall Bar,A-Hall Front Of House,Cogs - Ice Creams,3093,-,-,2022/04/26 00:00:00+00,2022/04/27 00:00:00+00,219874,599.04,Revenue,Taywell Ice Creams Limited,290
Tunbridge Wells Borough Council,Planning Services,110,PL,Planning,Development Management,Planning Consultant Fees,3270,-,-,2022/04/12 00:00:00+00,2022/04/12 00:00:00+00,219059,14160,Revenue,Iceni Projects Limited,291
Tunbridge Wells Borough Council,Housing Services,108,HP,Housing (Private Sector),Disabled Facilities Grants,Capital Grants Payable,8355,-,-,2022/04/13 00:00:00+00,2022/04/20 00:00:00+00,219497,3366.36,Capital,Peabody South East Limited,292
Tunbridge Wells Borough Council,Cultural and Related Services,104,AB,Assembly Hall Bar,A-Hall Front Of House,Cogs - Ice Creams,3093,-,-,2022/04/21 00:00:00+00,2022/04/27 00:00:00+00,219709,546,Revenue,Taywell Ice Creams Limited,293
Tunbridge Wells Borough Council,Housing Services,108,HP,Housing (Private Sector),Disabled Facilities Grants,Capital Grants Payable,8355,-,-,2022/04/11 00:00:00+00,2022/04/12 00:00:00+00,219204,11502.92,Capital,Town And Country Housing Group,294
Tunbridge Wells Borough Council,Planning Services,110,PL,Planning,Planning Management,Books & Publications,3190,-,-,2022/04/20 00:00:00+00,2022/04/20 00:00:00+00,219681,3290,Revenue,Haymarket Subscriptions,295
Tunbridge Wells Borough Council,Environmental and regulatory services ,105,EH,Environmental Health,Food & Safety,Agency Staff,100,Covid-19 Test & Trace Support,EV0490,2022/04/26 00:00:00+00,2022/04/27 00:00:00+00,219743,487.5,Revenue,Vivid Resourcing,296
Tunbridge Wells Borough Council,Housing Services,108,HP,Housing (Private Sector),Disabled Facilities Grants,Capital Grants Payable,8355,-,-,2022/04/12 00:00:00+00,2022/04/12 00:00:00+00,219544,8467.94,Capital,Lifestyle (Kent) Ltd,297
Tunbridge Wells Borough Council,Central Services,102,PP,Policy And Performance,Performance Management,Disabledgo Access Guide,3457,-,-,2022/04/13 00:00:00+00,2022/04/20 00:00:00+00,219558,3250,Revenue,Accessable,298
Tunbridge Wells Borough Council,Planning Services,110,PL,Planning,Planning Policy,Planning Consultant Fees,3270,New Local Plan,EV0589,2022/04/26 00:00:00+00,2022/04/27 00:00:00+00,219880,484.92,Revenue,Reach Publishing Services Ltd,299
Tunbridge Wells Borough Council,Housing Services,108,HP,Housing (Private Sector),Disabled Facilities Grants,Capital Grants Payable,8355,-,-,2022/04/12 00:00:00+00,2022/04/12 00:00:00+00,219543,8442.42,Capital,Lifestyle (Kent) Ltd,300
Tunbridge Wells Borough Council,Environmental and regulatory services ,105,EH,Environmental Health,Sustainability,Equipment Purchase/Mtce,3000,Air Quality Assess,EV0412,2022/04/14 00:00:00+00,2022/04/20 00:00:00+00,219557,3050,Revenue,Matts Monitors Ltd,301
Tunbridge Wells Borough Council,Cultural and Related Services,104,AH,Assembly Hall,A-Hall Front Of House,Cogs - Confectionery,3094,-,-,2022/04/27 00:00:00+00,2022/04/27 00:00:00+00,219904,483.68,Revenue,B.G. Benton Limited,302
Tunbridge Wells Borough Council,Central Services,102,HR,Human Resources,Human Resources,Advertising Staff,230,-,-,2022/04/11 00:00:00+00,2022/04/12 00:00:00+00,219277,7676,Revenue,Jgp Resourcing Limited,303
Tunbridge Wells Borough Council,Housing Services,108,HP,Housing (Private Sector),Disabled Facilities Grants,Capital Grants Payable,8355,-,-,2022/04/19 00:00:00+00,2022/04/20 00:00:00+00,219664,2808,Capital,Elite Complete Built Ltd,304
Tunbridge Wells Borough Council,Cultural and Related Services,104,AB,Assembly Hall Bar,A-Hall Front Of House,Cogs - Drink,3091,-,-,2022/04/21 00:00:00+00,2022/04/27 00:00:00+00,219703,472.75,Revenue,Lw Drinks     (Formerly Ht White),305
Tunbridge Wells Borough Council,Cultural and Related Services,104,PK,Parks,Parks & Grounds,Ground Maint Non Contract,2060,Play Areas,PL0399,2022/04/07 00:00:00+00,2022/04/12 00:00:00+00,219385,3665,Revenue,The Play Inspection Company,306
Tunbridge Wells Borough Council,Housing Services,108,PS,Property Services,Property,Fire & Security Property,2089,Property Contracts,PH0600,2022/04/20 00:00:00+00,2022/04/20 00:00:00+00,219216,2524,Revenue,G M Monk Ltd,307
Tunbridge Wells Borough Council,Cultural and Related Services,104,AH,Assembly Hall,A-Hall Council Shows,Show Fees,3380,220315 Eric & Ern,A22C11,2022/04/13 00:00:00+00,2022/04/20 00:00:00+00,219555,2419.59,Revenue,Cube Room Productions Ltd,308
Tunbridge Wells Borough Council,Environmental and regulatory services ,105,EH,Environmental Health,Sustainability,Bus Shelters,2033,-,-,2022/04/26 00:00:00+00,2022/04/27 00:00:00+00,219732,420,Revenue,S K F Contractors Ltd,309
Tunbridge Wells Borough Council,Environmental and regulatory services ,105,FI,Finance,Food & Safety,Equipment Purchase/Mtce,3000,Covid-19 Test & Trace Support,EV0490,2022/04/19 00:00:00+00,2022/04/20 00:00:00+00,219702,2276,Revenue,O2 Uk Limited,310
Tunbridge Wells Borough Council,Housing Services,108,HO,Housing,Housing Needs Service,Projects & Initiatives,3910,Afghan Resettlement Scheme,EV0624,2022/04/11 00:00:00+00,2022/04/12 00:00:00+00,219529,3387,Revenue,Kings Estate Agents,311
Tunbridge Wells Borough Council,Environmental and regulatory services ,105,LI,Licensing,Licensing,Dbs External,3341,-,-,2022/04/27 00:00:00+00,2022/04/27 00:00:00+00,219334,400,Revenue,Disclosure & Baring Service,312
Tunbridge Wells Borough Council,Housing Services,108,HO,Housing,Properties On Loan,Rents/Hire Of Premises,2200,Rough Sleepers,EV0582,2022/04/20 00:00:00+00,2022/04/20 00:00:00+00,219652,2070,Revenue,The Bridge Trust,313
Tunbridge Wells Borough Council,Environmental and regulatory services ,105,CS,Client Services (Depot),Contracts Management,Legal Fees,3260,-,-,2022/04/07 00:00:00+00,2022/04/12 00:00:00+00,219223,3169,Revenue,Bevan Brittan Llp,314
Tunbridge Wells Borough Council,Cultural and Related Services,104,MU,Museum,Cultural Hub,Promotion,3450,-,-,2022/04/27 00:00:00+00,2022/04/27 00:00:00+00,219486,400,Revenue,One Media And Creative Uk Ltd,315
Tunbridge Wells Borough Council,Housing Services,108,HO,Housing,Properties On Loan,Rents/Hire Of Premises,2200,Rough Sleepers,EV0582,2022/04/20 00:00:00+00,2022/04/20 00:00:00+00,219653,2070,Revenue,The Bridge Trust,316
Tunbridge Wells Borough Council,Environmental and regulatory services ,105,EH,Environmental Health,Footway Lighting-Tw & Rusthall,Street Lighting Mtce Contract,2035,-,-,2022/04/12 00:00:00+00,2022/04/12 00:00:00+00,219295,2944.84,Revenue,Psr Lighting & Signs Ltd,317
Tunbridge Wells Borough Council,Cultural and Related Services,104,AH,Assembly Hall,A-Hall Front Of House,Cogs - Confectionery,3094,-,-,2022/04/27 00:00:00+00,2022/04/27 00:00:00+00,219900,387.5,Revenue,Mimi Coco,318
Tunbridge Wells Borough Council,Environmental and regulatory services ,105,CR,Crematorium,Crematorium,Agency Staff,100,-,-,2022/04/20 00:00:00+00,2022/04/20 00:00:00+00,219715,2008.32,Revenue,Lee Snashfold Crematoria Mgmt & Consultancy,319
Tunbridge Wells Borough Council,Housing Services,108,HO,Housing,Housing Needs Service,Projects & Initiatives,3910,Covid-19 Comf Housing,EV0530,2022/04/11 00:00:00+00,2022/04/12 00:00:00+00,219502,2803.84,Revenue,South East Water Plc,320
Tunbridge Wells Borough Council,Environmental and regulatory services ,105,EH,Environmental Health,Land Drainage,Ground Maint-Culvert & Ditches,2066,-,-,2022/04/26 00:00:00+00,2022/04/27 00:00:00+00,219849,350,Revenue,S K F Contractors Ltd,321
Tunbridge Wells Borough Council,Housing Services,108,FM,Facilities Management,Dowding House,Trade Refuse Charges,2520,-,-,2022/04/20 00:00:00+00,2022/04/20 00:00:00+00,219394,1862.75,Revenue,Countrystyle Recycling Ltd,322
Tunbridge Wells Borough Council,Central Services,102,CE,Chief Executive,Gateway,Telephone Costs,3510,Call Centre,EV0341,2022/04/12 00:00:00+00,2022/04/12 00:00:00+00,219553,2715.99,Revenue,Gamma Telecom Ltd,323
Tunbridge Wells Borough Council,Cultural and Related Services,104,AB,Assembly Hall Bar,A-Hall Front Of House,Cogs - Drink,3091,-,-,2022/04/21 00:00:00+00,2022/04/27 00:00:00+00,219716,340.2,Revenue,Westerham Brewery,324
Tunbridge Wells Borough Council,Housing Services,108,HP,Housing (Private Sector),Housing Renewal Advances,Capital Grants Payable,8355,-,-,2022/04/19 00:00:00+00,2022/04/20 00:00:00+00,219665,1768,Capital,Elite Complete Built Ltd,325
Tunbridge Wells Borough Council,Planning Services,110,PL,Planning,Development Management,Planning Consultant Fees,3270,-,-,2022/04/12 00:00:00+00,2022/04/12 00:00:00+00,219235,2500,Revenue,Dixon Searle Partnership Ltd,326
Tunbridge Wells Borough Council,Highways and Transport Services,107,PA,Parking,Parking Admin & Enforcement,Natnl Parking Adjudctn Service,3331,-,-,2022/04/25 00:00:00+00,2022/04/27 00:00:00+00,219847,327,Revenue,Patrol Bus,327
Tunbridge Wells Borough Council,Planning Services,110,PL,Planning,Planning Management,Books & Publications,3190,-,-,2022/04/20 00:00:00+00,2022/04/20 00:00:00+00,219682,1750,Revenue,Haymarket Media Group Ltd,328
Tunbridge Wells Borough Council,Housing Services,108,HO,Housing,Properties On Loan,Rents/Hire Of Premises,2200,-,-,2022/04/12 00:00:00+00,2022/04/12 00:00:00+00,219560,2475,Revenue,Premier Kent Properties Ltd  T/A Kings,329
Tunbridge Wells Borough Council,Environmental and regulatory services ,105,LI,Licensing,Licensing,Subs To Organisations,3730,-,-,2022/04/27 00:00:00+00,2022/04/27 00:00:00+00,219379,310,Revenue,The Institute Of Licensing,330
Tunbridge Wells Borough Council,Environmental and regulatory services ,105,CU,Community Safty Unit,Cctv,Electricity,2140,-,-,2022/04/13 00:00:00+00,2022/04/20 00:00:00+00,219526,1736.97,Revenue,Edf Energy,331
Tunbridge Wells Borough Council,Cultural and Related Services,104,AB,Assembly Hall Bar,A-Hall Front Of House,Cogs - Drink,3091,-,-,2022/04/26 00:00:00+00,2022/04/27 00:00:00+00,219871,303.04,Revenue,Westerham Brewery,332
Tunbridge Wells Borough Council,Environmental and regulatory services ,105,CR,Crematorium,Crematorium,Agency Staff,100,-,-,2022/04/13 00:00:00+00,2022/04/20 00:00:00+00,219559,1650,Revenue,Lee Snashfold Crematoria Mgmt & Consultancy,333
Tunbridge Wells Borough Council,Cultural and Related Services,104,AH,Assembly Hall,Events,Events,3420,Queens Platinum Jubilee,EV0155,2022/04/26 00:00:00+00,2022/04/27 00:00:00+00,219866,300,Revenue,This Data Has Been Redacted Under The Data Protection Act,334
Tunbridge Wells Borough Council,Cultural and Related Services,104,AH,Assembly Hall,A-Hall Marketing,Promotion,3450,-,-,2022/04/13 00:00:00+00,2022/04/20 00:00:00+00,219340,1541.35,Revenue,Force24 Ltd,335
Tunbridge Wells Borough Council,Cultural and Related Services,104,PK,Parks,Parks & Grounds,Grounds Maint. Sodexo Contract,2054,-,-,2022/04/22 00:00:00+00,2022/04/27 00:00:00+00,219832,289.27,Revenue,Tivoli Group Limited,336
Tunbridge Wells Borough Council,Planning Services,110,PL,Planning,Planning Management,Subs To Organisations,3730,-,-,2022/04/20 00:00:00+00,2022/04/20 00:00:00+00,219685,1450,Revenue,Pos Enterprises Ltd,337
Tunbridge Wells Borough Council,Cultural and Related Services,104,AH,Assembly Hall,A-Hall Front Of House,Cogs - Confectionery,3094,-,-,2022/04/27 00:00:00+00,2022/04/27 00:00:00+00,219901,280,Revenue,Mimi Coco,338
Tunbridge Wells Borough Council,Environmental and regulatory services ,105,CR,Crematorium,Crematorium,Agency Staff,100,-,-,2022/04/20 00:00:00+00,2022/04/20 00:00:00+00,219714,1375,Revenue,Lee Snashfold Crematoria Mgmt & Consultancy,339
Tunbridge Wells Borough Council,Environmental and regulatory services ,105,EH,Environmental Health,Health Improvement,Projects & Initiatives,3910,-,-,2022/04/21 00:00:00+00,2022/04/27 00:00:00+00,219720,250,Revenue,This Data Has Been Redacted Under The Data Protection Act,340
Tunbridge Wells Borough Council,Environmental and regulatory services ,105,CU,Community Safty Unit,Cctv,Telephones - Cctv Trans Links,3512,-,-,2022/04/14 00:00:00+00,2022/04/20 00:00:00+00,219657,1339,Revenue,Tonbridge & Malling Borough Co,341
Tunbridge Wells Borough Council,Housing Services,108,PS,Property Services,Property,Electricity,2140,-,-,2021/04/28 00:00:00+00,2022/04/27 00:00:00+00,209977,272.87,Revenue,British Gas Business,342
Tunbridge Wells Borough Council,Central Services,102,FI,Finance,Gateway,Equipment Purchase/Mtce,3000,Channel Shift Drive,EV0347,2022/04/13 00:00:00+00,2022/05/03 00:00:00+00,219554,3604.96,Revenue,Radiotronics Limited,343
Tunbridge Wells Borough Council,Environmental and regulatory services ,105,FI,Finance,Crematorium,Uniforms & Protective Clothing,3100,-,-,2022/04/19 00:00:00+00,2022/04/20 00:00:00+00,219281,1259.36,Revenue,Contego Safety Solutions Ltd,344
Tunbridge Wells Borough Council,Cultural and Related Services,104,AH,Assembly Hall,A-Hall Council Shows,Show Fees,3380,220305 Gangsta Granny,A22C08,2022/04/29 00:00:00+00,2022/05/04 00:00:00+00,220054,29441.27,Revenue,The Birmingham Stage Co (London) Ltd,345
Tunbridge Wells Borough Council,Cultural and Related Services,104,PK,Parks,Parks & Grounds,Horticulture,2061,-,-,2022/04/20 00:00:00+00,2022/04/20 00:00:00+00,219671,1240,Revenue,Treework,346
Tunbridge Wells Borough Council,Cultural and related services,104,MU,Museum,Culture & Learning Hub,Capital Fees External,8315,-,-,2022/04/28 00:00:00+00,2022/05/04 00:00:00+00,219692,22569.73,Capital,Unusual Projects,347
Tunbridge Wells Borough Council,Cultural and Related Services,104,MU,Museum,A-Hall Marketing,Events,3420,-,-,2022/04/13 00:00:00+00,2022/04/20 00:00:00+00,219388,1149.17,Revenue,Kms Media,348
Tunbridge Wells Borough Council,Housing Services,108,HP,Housing (Private Sector),Housing Renewal Advances,Capital Grants Payable,8355,-,-,2022/04/29 00:00:00+00,2022/05/04 00:00:00+00,220037,12276,Capital,Weatherall Roofing Ltd,349
Tunbridge Wells Borough Council,Housing Services,108,PS,Property Services,Temporary Accommodation,Responsive Repairs Property,2029,Property Contracts,PH0600,2022/04/20 00:00:00+00,2022/04/20 00:00:00+00,219213,1067.31,Revenue,G M Monk Ltd,350
Tunbridge Wells Borough Council,Cultural and Related Services,104,PK,Parks,Parks & Grounds,Ground Maint.Infrastructure,2063,-,-,2022/04/28 00:00:00+00,2022/05/04 00:00:00+00,219862,6052.4,Revenue,Miw Water Cooler Experts,351
Tunbridge Wells Borough Council,Cultural and Related Services,104,AH,Assembly Hall,A-Hall Technical,Consumables & Materials,3060,-,-,2022/04/19 00:00:00+00,2022/04/20 00:00:00+00,219476,1040.46,Revenue,Stage Electrics Ptn Ltd,352
Tunbridge Wells Borough Council,Housing Services,108,HP,Housing (Private Sector),Disabled Facilities Grants,Capital Grants Payable,8355,-,-,2022/04/29 00:00:00+00,2022/05/04 00:00:00+00,220039,4738,Capital,Closomat Limited,353
Tunbridge Wells Borough Council,Housing Services,108,HP,Housing (Private Sector),Disabled Facilities Grants,Capital Grants Payable,8355,-,-,2022/04/13 00:00:00+00,2022/04/20 00:00:00+00,219498,1028.15,Capital,Peabody South East Limited,354
Tunbridge Wells Borough Council,Cultural and Related Services,104,FM,Facilities Management,Museum & Art Gallery,Contract Cleaning,2510,Property Cleaning Contract,PH0590,2022/04/29 00:00:00+00,2022/05/04 00:00:00+00,220073,4008.04,Revenue,Churchill Contract Services Limited,355
Tunbridge Wells Borough Council,Cultural and related services,104,MU,Museum,Culture & Learning Hub,Capital Fees External,8315,-,-,2022/04/13 00:00:00+00,2022/04/20 00:00:00+00,219220,1008,Capital,British Fire Advisory Services Limited,356
Tunbridge Wells Borough Council,Cultural and Related Services,104,AH,Assembly Hall,A-Hall Council Shows,Show Fees,3380,"220325 Cinderella, Grown Ups O",A22C06,2022/04/29 00:00:00+00,2022/05/04 00:00:00+00,220043,3744.58,Revenue,Made To Measure Productions Ltd,357
Tunbridge Wells Borough Council,Environmental and regulatory services ,105,PS,Property Services,North Farm Depot,Maint/Serv Plant Property,2039,Property Contracts,PH0600,2022/04/20 00:00:00+00,2022/04/20 00:00:00+00,219662,982.83,Revenue,Guideline Lift Services Ltd,358
Tunbridge Wells Borough Council,Housing Services,108,HO,Housing,Housing Needs Service,Subs To Organisations,3730,-,-,2022/04/29 00:00:00+00,2022/05/04 00:00:00+00,220057,3500,Revenue,Ashford Borough Council,359
Tunbridge Wells Borough Council,Environmental and regulatory services ,105,CR,Crematorium,Tunbridge Wells-Cemeteries,Cogs - Plaques,3082,-,-,2022/04/13 00:00:00+00,2022/04/20 00:00:00+00,219548,971.2,Revenue,A Burslem & Son Ltd (Burslem Memorials),360
Tunbridge Wells Borough Council,Cultural and Related Services,104,AH,Assembly Hall,A-Hall Technical,Wastewater & Drainage,2340,-,-,2022/04/29 00:00:00+00,2022/05/04 00:00:00+00,219897,3006.56,Revenue,Business Stream,361
Tunbridge Wells Borough Council,Housing Services,108,HO,Housing,Housing Needs Service,Agency Staff,100,Covid-19 Containment Outbreak,EV0496,2022/04/20 00:00:00+00,2022/04/20 00:00:00+00,219635,962,Revenue,G2 Recruitment Solutions Limited,362
Tunbridge Wells Borough Council,Cultural and related services,104,MU,Museum,Culture & Learning Hub,Capital Fees External,8315,-,-,2022/04/28 00:00:00+00,2022/05/04 00:00:00+00,220049,2942.44,Capital,Ground Zero Coffee,363
Tunbridge Wells Borough Council,Housing Services,108,HP,Housing (Private Sector),Private Sector Housing,Subs To Organisations,3730,-,-,2022/04/13 00:00:00+00,2022/04/20 00:00:00+00,219642,918,Revenue,R H Environmental Ltd T/A Rhe Global,364
Tunbridge Wells Borough Council,Cultural and related services,104,MU,Museum,Culture & Learning Hub,Capital Fees External,8315,-,-,2022/04/28 00:00:00+00,2022/05/04 00:00:00+00,220051,2593,Capital,Ground Zero Coffee,365
Tunbridge Wells Borough Council,Central Services,102,HR,Human Resources,Staff Welfare,Medical Fees,3340,-,-,2022/04/20 00:00:00+00,2022/04/20 00:00:00+00,219210,872.1,Revenue,The Preventative Healthcare Company Ltd,366
Tunbridge Wells Borough Council,Cultural and related services,104,MU,Museum,Culture & Learning Hub,Capital Fees External,8315,-,-,2022/04/28 00:00:00+00,2022/05/04 00:00:00+00,220046,2168,Capital,Ground Zero Coffee,367
Tunbridge Wells Borough Council,Environmental and regulatory services ,105,CR,Crematorium,Tunbridge Wells-Cemeteries,Cogs - Plaques,3082,-,-,2022/04/14 00:00:00+00,2022/04/20 00:00:00+00,219574,852.8,Revenue,A Burslem & Son Ltd (Burslem Memorials),368
Tunbridge Wells Borough Council,Cultural and related services,104,MU,Museum,Culture & Learning Hub,Capital Fees External,8315,-,-,2022/04/28 00:00:00+00,2022/05/04 00:00:00+00,220048,1977.95,Capital,Ground Zero Coffee,369
Tunbridge Wells Borough Council,Housing Services,108,HP,Housing (Private Sector),Disabled Facilities Grants,Capital Grants Payable,8355,-,-,2022/04/14 00:00:00+00,2022/04/20 00:00:00+00,219568,780,Capital,Lifestyle (Kent) Ltd,370
Tunbridge Wells Borough Council,Housing Services,108,HO,Housing,Dowding House,Wastewater & Drainage,2340,-,-,2022/04/29 00:00:00+00,2022/05/04 00:00:00+00,219942,1918.56,Revenue,South East Water Plc,371
Tunbridge Wells Borough Council,Central Services,102,FI,Finance,Covid-19 Coronavirus Support,Grants,3750,Covid-19 Household Supp Fund,EV0532,2022/04/14 00:00:00+00,2022/04/20 00:00:00+00,219643,750,Revenue,Tunbridge Wells Baptist Church,372
Tunbridge Wells Borough Council,Housing Services,108,HO,Housing,Housing Needs Service,Projects & Initiatives,3910,Covid-19 Comf Housing,EV0530,2022/04/29 00:00:00+00,2022/05/04 00:00:00+00,220059,1892.94,Revenue,Town And Country Housing Group,373
Tunbridge Wells Borough Council,Central Services,102,FI,Finance,Covid-19 Coronavirus Support,Grants,3750,Covid-19 Household Supp Fund,EV0532,2022/04/14 00:00:00+00,2022/04/20 00:00:00+00,219644,750,Revenue,St Pauls Church Rusthall,374
Tunbridge Wells Borough Council,Cultural and Related Services,104,AH,Assembly Hall,A-Hall Front Of House,Cogs - Merchandise,3097,220305 Gangsta Granny,A22C08,2022/04/29 00:00:00+00,2022/05/04 00:00:00+00,220055,1642,Revenue,The Birmingham Stage Co (London) Ltd,375
Tunbridge Wells Borough Council,Central Services,102,FI,Finance,Covid-19 Coronavirus Support,Grants,3750,Covid-19 Household Supp Fund,EV0532,2022/04/14 00:00:00+00,2022/04/20 00:00:00+00,219645,750,Revenue,Pembury Baptist Church,376
Tunbridge Wells Borough Council,Central Services,102,RB,Revs & Bens,Revs & Bens Administration,Computer Software,8341,-,-,2022/04/29 00:00:00+00,2022/05/04 00:00:00+00,219944,1549.85,Revenue,Capita Business Services Ltd,377
Tunbridge Wells Borough Council,Central Services,102,FI,Finance,Covid-19 Coronavirus Support,Grants,3750,Covid-19 Household Supp Fund,EV0532,2022/04/14 00:00:00+00,2022/04/20 00:00:00+00,219646,750,Revenue,Hawkhurst Community Fridge,378
Tunbridge Wells Borough Council,Housing Services,108,HO,Housing,Housing Needs Service,Projects & Initiatives,3910,Covid-19 Comf Housing,EV0530,2022/04/29 00:00:00+00,2022/05/04 00:00:00+00,220038,1392,Revenue,Wood & Pilcher Client Management,379
Tunbridge Wells Borough Council,Central Services,102,FI,Finance,Covid-19 Coronavirus Support,Grants,3750,Covid-19 Household Supp Fund,EV0532,2022/04/14 00:00:00+00,2022/04/20 00:00:00+00,219649,750,Revenue,St Philip'S Church Pcc,380
Tunbridge Wells Borough Council,Cultural and related services,104,MU,Museum,Culture & Learning Hub,Capital Fees External,8315,-,-,2022/04/28 00:00:00+00,2022/05/04 00:00:00+00,220047,1279.49,Capital,Ground Zero Coffee,381
Tunbridge Wells Borough Council,Central Services,102,FI,Finance,Covid-19 Coronavirus Support,Grants,3750,Covid-19 Household Supp Fund,EV0532,2022/04/14 00:00:00+00,2022/04/20 00:00:00+00,219650,750,Revenue,St Matt'S Community Larder,382
Tunbridge Wells Borough Council,Planning Services,110,PL,Planning,Development Management,Planning Consultant Fees,3270,-,-,2022/04/29 00:00:00+00,2022/05/04 00:00:00+00,220060,1200,Revenue,Iceni Projects Limited,383
Tunbridge Wells Borough Council,Central Services,102,FI,Finance,Covid-19 Coronavirus Support,Grants,3750,Covid-19 Household Supp Fund,EV0532,2022/04/14 00:00:00+00,2022/04/20 00:00:00+00,219651,750,Revenue,St Marks Pcc,384
Tunbridge Wells Borough Council,Environmental and regulatory services ,105,CS,Client Services (Depot),Refuse Collection Services,Equipment Purchase/Mtce,3000,-,-,2022/04/28 00:00:00+00,2022/05/04 00:00:00+00,220040,1194,Revenue,Bin Masters (Kent) Limited,385
Tunbridge Wells Borough Council,Cultural and related services,104,MU,Museum,Culture & Learning Hub,Furniture And Equipment,8326,-,-,2022/04/14 00:00:00+00,2022/04/20 00:00:00+00,219669,740.77,Capital,Ground Zero Coffee,386
Tunbridge Wells Borough Council,Cultural and Related Services,104,PK,Parks,Parks & Grounds,Wastewater & Drainage,2340,-,-,2022/04/20 00:00:00+00,2022/05/04 00:00:00+00,219390,1111.37,Revenue,Business Stream,387
Tunbridge Wells Borough Council,Cultural and Related Services,104,PK,Parks,Parks & Grounds,Horticulture,2061,-,-,2022/04/20 00:00:00+00,2022/04/20 00:00:00+00,219717,670,Revenue,Palmstead Nurseries Ltd,388
Tunbridge Wells Borough Council,Cultural and Related Services,104,AB,Assembly Hall Bar,A-Hall Front Of House,Cogs - Drink,3091,-,-,2022/04/28 00:00:00+00,2022/05/04 00:00:00+00,219925,1058.1,Revenue,Lw Drinks     (Formerly Ht White),389
Tunbridge Wells Borough Council,Central Services,102,HR,Human Resources,Staff Welfare,Medical Fees,3340,-,-,2022/04/20 00:00:00+00,2022/04/20 00:00:00+00,219708,661.98,Revenue,The Preventative Healthcare Company Ltd,390
Tunbridge Wells Borough Council,Highways and Transport Services,107,PA,Parking,Parking Admin & Enforcement,Printing - Pcns & Resdts Prmts,3152,-,-,2022/04/29 00:00:00+00,2022/05/04 00:00:00+00,220044,937,Revenue,Securemedia Ltd,391
Tunbridge Wells Borough Council,Housing Services,108,HP,Housing (Private Sector),Disabled Facilities Grants,Capital Grants Payable,8355,-,-,2022/04/19 00:00:00+00,2022/04/20 00:00:00+00,219569,600.38,Capital,Peabody South East Limited,392
Tunbridge Wells Borough Council,Highways and Transport Services,107,PA,Parking,Parking Regulation,Signing & Lining Works,3920,-,-,2022/04/28 00:00:00+00,2022/05/04 00:00:00+00,219947,865.5,Revenue,Archway Highway Services Ltd,393
Tunbridge Wells Borough Council,Environmental and regulatory services ,105,CR,Crematorium,Crematorium,Agency Staff,100,-,-,2022/04/13 00:00:00+00,2022/04/20 00:00:00+00,219562,582.6,Revenue,Lee Snashfold Crematoria Mgmt & Consultancy,394
Tunbridge Wells Borough Council,Housing Services,108,HO,Housing,Housing Needs Service,Homelessness Expenses,3912,-,-,2022/04/29 00:00:00+00,2022/05/04 00:00:00+00,219903,770,Revenue,This Data Has Been Redacted Under The Data Protection Act,395
Tunbridge Wells Borough Council,Central Services,102,IT,Information & Communications Technology,I T Service,Computer Hardware,3580,Hardware Replacement,EV0324,2022/04/20 00:00:00+00,2022/04/20 00:00:00+00,219704,568,Revenue,Insight Direct (Uk) Ltd,396
Tunbridge Wells Borough Council,Cultural and Related Services,104,AB,Assembly Hall Bar,A-Hall Front Of House,Cogs - Drink,3091,-,-,2022/04/28 00:00:00+00,2022/05/04 00:00:00+00,219913,721.68,Revenue,Westerham Brewery,397
Tunbridge Wells Borough Council,Housing Services,108,DS,Sundry Customer,Housing Needs Service,Projects & Initiatives,3910,Covid-19 Household Supp Fund,EV0532,2022/04/20 00:00:00+00,2022/04/20 00:00:00+00,219700,530.4,Revenue,Moorcroft Debt Recovery Limited,398
Tunbridge Wells Borough Council,Central Services,102,PS,Property Services,Building Services,Property Consultants,3290,-,-,2022/04/28 00:00:00+00,2022/05/04 00:00:00+00,219556,637.5,Revenue,This Data Has Been Redacted Under The Data Protection Act,399
Tunbridge Wells Borough Council,Housing Services,108,HO,Housing,Housing Needs Service,Agency Staff,100,Covid-19 Containment Outbreak,EV0496,2022/04/29 00:00:00+00,2022/05/04 00:00:00+00,219941,572,Revenue,G2 Recruitment Solutions Limited,400
Tunbridge Wells Borough Council,Cultural and related services,104,MU,Museum,Culture & Learning Hub,"Construction, Renovation, Etc",8311,-,-,2022/05/18 00:00:00+00,2022/05/18 00:00:00+00,220501,135720,Capital,Factory Settings Ltd,401
Tunbridge Wells Borough Council,Highways and Transport Services,107,PS,Property Services,Torrington Car Park Led Lighti,"Construction, Renovation, Etc",8311,Property Contracts,PH0600,2022/05/18 00:00:00+00,2022/05/18 00:00:00+00,219855,45572,Capital,G M Monk Ltd,402
Tunbridge Wells Borough Council,Cultural and Related Services,104,AH,Assembly Hall,A-Hall Council Shows,Show Fees,3380,220608-09 Jools Holland,A22F01,2022/05/18 00:00:00+00,2022/05/18 00:00:00+00,220548,36000,Revenue,Helicon Mountain Ltd,403
Tunbridge Wells Borough Council,Housing Services,108,PS,Property Services,Temporary Accommodation,Responsive Repairs Property,2029,Property Contracts,PH0600,2022/05/18 00:00:00+00,2022/05/18 00:00:00+00,219859,30485.08,Revenue,G M Monk Ltd,404
Tunbridge Wells Borough Council,Cultural and Related Services,104,PS,Property Services,The Amelia Scott,Planned Maintenance Property,2009,Property Contracts,PH0600,2022/05/18 00:00:00+00,2022/05/18 00:00:00+00,219853,27272.1,Revenue,G M Monk Ltd,405
Tunbridge Wells Borough Council,Environmental and regulatory services ,105,FM,Facilities Management,North Farm Depot,Contract Cleaning,2510,Property Cleaning Contract,PH0590,2022/05/18 00:00:00+00,2022/05/18 00:00:00+00,220379,21873.63,Revenue,Churchill Contract Services Limited,406
Tunbridge Wells Borough Council,Cultural and related services,104,MU,Museum,Culture & Learning Hub,Capital Fees External,8315,-,-,2022/05/13 00:00:00+00,2022/05/18 00:00:00+00,220365,18514.33,Capital,Dauphin Acrylic Design Ltd,407
Tunbridge Wells Borough Council,Environmental and regulatory services ,105,CR,Crematorium,Crematorium,Maint/Serv Plant Departments,2030,-,-,2022/05/12 00:00:00+00,2022/05/18 00:00:00+00,220464,17808.63,Revenue,Facultatieve Technologies Ltd,408
Tunbridge Wells Borough Council,Environmental and regulatory services ,105,LI,Licensing,Licensing,Partnership Agreement,202,-,-,2022/05/16 00:00:00+00,2022/05/18 00:00:00+00,220132,10787,Revenue,Sevenoaks District Council,409
Tunbridge Wells Borough Council,Central Services,102,FI,Finance,Revs & Bens Administration,It Software,3590,-,-,2022/05/17 00:00:00+00,2022/05/18 00:00:00+00,219911,7666.5,Revenue,Maidstone Borough Council,410
Tunbridge Wells Borough Council,Housing Services,108,PS,Property Services,Temporary Accommodation,Maint/Serv Plant Property,2039,Property Contracts,PH0600,2022/05/18 00:00:00+00,2022/05/18 00:00:00+00,219856,7036.66,Revenue,G M Monk Ltd,411
Tunbridge Wells Borough Council,Housing Services,108,PS,Property Services,Temporary Accommodation,Responsive Repairs Property,2029,Property Contracts,PH0600,2022/05/18 00:00:00+00,2022/05/18 00:00:00+00,219858,3535.16,Revenue,G M Monk Ltd,412
Tunbridge Wells Borough Council,Planning Services,110,PL,Planning,Planning Policy,Planning Consultant Fees,3270,New Local Plan,EV0589,2022/05/16 00:00:00+00,2022/05/18 00:00:00+00,220066,3174,Revenue,Land Use Consultants Ltd,413
Tunbridge Wells Borough Council,Cultural and Related Services,104,MU,Museum,The Amelia Scott,Telephone Costs,3510,-,-,2022/05/18 00:00:00+00,2022/05/18 00:00:00+00,220366,3153.42,Revenue,Daisy Corporate Services Trading Limited,414
Tunbridge Wells Borough Council,Housing Services,108,HP,Housing (Private Sector),Disabled Facilities Grants,Capital Grants Payable,8355,-,-,2022/05/12 00:00:00+00,2022/05/18 00:00:00+00,220477,3064.7,Capital,Alfa Electrics Ltd,415
Tunbridge Wells Borough Council,Housing Services,108,HP,Housing (Private Sector),Disabled Facilities Grants,Capital Grants Payable,8355,-,-,2022/05/17 00:00:00+00,2022/05/18 00:00:00+00,220510,3064.7,Capital,Alfa Electrics Ltd,416
Tunbridge Wells Borough Council,Environmental and regulatory services ,105,CU,Community Safty Unit,Community Safety,Partnership Agreement,202,-,-,2022/05/12 00:00:00+00,2022/05/18 00:00:00+00,220389,2597.75,Revenue,Sevenoaks District Council,417
Tunbridge Wells Borough Council,Cultural and related services,104,MU,Museum,Culture & Learning Hub,Capital Fees External,8315,-,-,2022/05/17 00:00:00+00,2022/05/18 00:00:00+00,220068,2100,Capital,Empire Glass Glazing Ltd,418
Tunbridge Wells Borough Council,Housing Services,108,HO,Housing,Properties On Loan,Rents/Hire Of Premises,2200,Rough Sleepers,EV0582,2022/05/17 00:00:00+00,2022/05/18 00:00:00+00,220513,2070,Revenue,The Bridge Trust,419
Tunbridge Wells Borough Council,Housing Services,108,HO,Housing,Properties On Loan,Rents/Hire Of Premises,2200,Rough Sleepers,EV0582,2022/05/17 00:00:00+00,2022/05/18 00:00:00+00,220514,2070,Revenue,The Bridge Trust,420
Tunbridge Wells Borough Council,Cultural and related services,104,MU,Museum,Culture & Learning Hub,Consultants Fees,3292,-,-,2022/05/13 00:00:00+00,2022/05/18 00:00:00+00,220370,2065.25,Capital,British Fire Advisory Services Limited,421
Tunbridge Wells Borough Council,Cultural and Related Services,104,PK,Parks,Dunorlan Park,Ground Maint.Infrastructure,2063,-,-,2022/05/12 00:00:00+00,2022/05/18 00:00:00+00,220120,2050,Revenue,Binnies Uk Limited,422
Tunbridge Wells Borough Council,Central Services,102,PS,Property Services,Town Hall,Fire & Security Property,2089,Property Contracts,PH0600,2022/05/18 00:00:00+00,2022/05/18 00:00:00+00,219857,1836.17,Revenue,G M Monk Ltd,423
Tunbridge Wells Borough Council,Cultural and Related Services,104,MU,Museum,Cultural Hub,Projects & Initiatives,3910,Courtyard Landscaping Commisio,AC0007,2022/05/13 00:00:00+00,2022/05/18 00:00:00+00,220336,1500,Revenue,Catriona Rowbotham,424
Tunbridge Wells Borough Council,Environmental and regulatory services ,105,CS,Client Services (Depot),Cleaner Borough,External Contract Payments,3220,-,-,2022/05/13 00:00:00+00,2022/05/18 00:00:00+00,220338,1383.38,Revenue,Viking Oak Kennels,425
Tunbridge Wells Borough Council,Housing Services,108,HO,Housing,Housing Needs Service,Subs To Organisations,3730,-,-,2022/05/12 00:00:00+00,2022/05/18 00:00:00+00,220053,1363.63,Revenue,Dover District Council,426
Tunbridge Wells Borough Council,Central Services,102,HR,Human Resources,Human Resources,Salaries,20,-,-,2022/05/13 00:00:00+00,2022/05/18 00:00:00+00,220361,1350.13,Revenue,Recruitment Solutions,427
Tunbridge Wells Borough Council,Central Services,102,HR,Human Resources,Human Resources,Agency Staff,100,-,-,2022/05/17 00:00:00+00,2022/05/18 00:00:00+00,220489,1350.13,Revenue,Recruitment Solutions,428
Tunbridge Wells Borough Council,Planning Services,110,PL,Planning,Development Management,Planning Application Fees,5250,-,-,2022/05/17 00:00:00+00,2022/05/18 00:00:00+00,220072,1308,Revenue,Portal Plan Quest Ltd,429
Tunbridge Wells Borough Council,Environmental and regulatory services ,105,CR,Crematorium,Tunbridge Wells-Cemeteries,Cogs - Plaques,3082,-,-,2022/05/17 00:00:00+00,2022/05/18 00:00:00+00,220570,1302.35,Revenue,A Burslem & Son Ltd (Burslem Memorials),430
Tunbridge Wells Borough Council,Cultural and Related Services,104,AH,Assembly Hall,Events,Promotion,3450,Queens Platinum Jubilee,EV0155,2022/05/18 00:00:00+00,2022/05/18 00:00:00+00,220491,1270,Revenue,Green Hippo Print Ltd,431
Tunbridge Wells Borough Council,Environmental and regulatory services ,105,CR,Crematorium,Tunbridge Wells-Cemeteries,Cogs - Plaques,3082,-,-,2022/05/18 00:00:00+00,2022/05/18 00:00:00+00,220591,1143.85,Revenue,A Burslem & Son Ltd (Burslem Memorials),432
Tunbridge Wells Borough Council,Central Services,102,HR,Human Resources,Human Resources,Agency Staff,100,-,-,2022/05/17 00:00:00+00,2022/05/18 00:00:00+00,220503,1094.7,Revenue,Recruitment Solutions,433
Tunbridge Wells Borough Council,Central Services,102,ST,Stationery Orders,Accountancy,Photocopying Expenses,3180,Photocopying Rental,EV0311,2022/05/17 00:00:00+00,2022/05/18 00:00:00+00,211565,1035.6,Revenue,Kent County Council (Kcs),434
Tunbridge Wells Borough Council,Cultural and Related Services,104,AH,Assembly Hall,A-Hall Technical,Advertising Staff,230,-,-,2022/05/17 00:00:00+00,2022/05/18 00:00:00+00,220544,985,Revenue,Wave Advertising Ltd,435
Tunbridge Wells Borough Council,Environmental and regulatory services ,105,PS,Property Services,North Farm Depot,Maint/Serv Plant Property,2039,Property Contracts,PH0600,2022/05/18 00:00:00+00,2022/05/18 00:00:00+00,220483,982.83,Revenue,Guideline Lift Services Ltd,436
Tunbridge Wells Borough Council,Central Services,102,IT,Information & Communications Technology,I T Service,It Software,3590,-,-,2022/05/16 00:00:00+00,2022/05/18 00:00:00+00,220488,950.42,Revenue,Stm Environmental,437
Tunbridge Wells Borough Council,Central Services,102,PS,Property Services,Town Hall,Responsive Repairs Property,2029,Property Contracts,PH0600,2022/05/18 00:00:00+00,2022/05/18 00:00:00+00,219854,925.22,Revenue,G M Monk Ltd,438
Tunbridge Wells Borough Council,Central Services,102,HR,Human Resources,Human Resources,Agency Staff,100,-,-,2022/05/17 00:00:00+00,2022/05/18 00:00:00+00,220359,821.03,Revenue,Recruitment Solutions,439
Tunbridge Wells Borough Council,Central Services,102,HR,Human Resources,Human Resources,Agency Staff,100,-,-,2022/05/17 00:00:00+00,2022/05/18 00:00:00+00,220360,811.9,Revenue,Recruitment Solutions,440
Tunbridge Wells Borough Council,Cultural and Related Services,104,MU,Museum,Cultural Hub,Projects & Initiatives,3910,Main Info Desk Commision,AC0002,2022/05/12 00:00:00+00,2022/05/18 00:00:00+00,220242,776,Revenue,Parveer Braich,441
Tunbridge Wells Borough Council,Housing Services,108,HO,Housing,Housing Needs Service,Agency Staff,100,Covid-19 Containment Outbreak,EV0496,2022/05/17 00:00:00+00,2022/05/18 00:00:00+00,220463,767,Revenue,G2 Recruitment Solutions Limited,442
Tunbridge Wells Borough Council,Cultural and Related Services,104,AH,Assembly Hall,Cultural Hub,Cogs - Drink,3091,-,-,2022/05/13 00:00:00+00,2022/05/18 00:00:00+00,219907,742.32,Revenue,Lw Drinks     (Formerly Ht White),443
Tunbridge Wells Borough Council,Central Services,102,IT,Information & Communications Technology,I T Service,Computer Hardware,3580,-,-,2022/05/17 00:00:00+00,2022/05/18 00:00:00+00,220542,728.5,Revenue,Legacy Telecom Ltd,444
Tunbridge Wells Borough Council,Housing Services,108,DS,Sundry Customer,Disabled Facilities Grants,Capital Grants Payable,8355,-,-,2022/05/12 00:00:00+00,2022/05/18 00:00:00+00,220469,601,Capital,This Data Has Been Redacted Under The Data Protection Act,445
Tunbridge Wells Borough Council,Cultural and Related Services,104,MU,Museum,The Amelia Scott,Exhibition Fees,3400,-,-,2022/05/12 00:00:00+00,2022/05/18 00:00:00+00,220322,600,Revenue,This Data Has Been Redacted Under The Data Protection Act,446
Tunbridge Wells Borough Council,Cultural and Related Services,104,AH,Assembly Hall,A-Hall Technical,Equipment Purchase/Mtce,3000,-,-,2022/05/17 00:00:00+00,2022/05/18 00:00:00+00,220516,583.32,Revenue,Cpc Plc,447
Tunbridge Wells Borough Council,Central Services,102,EL,Elections,Borough Elections,Rents/Hire Of Premises,2200,Borough Elections 220505,CS0424,2022/05/12 00:00:00+00,2022/05/18 00:00:00+00,220304,575,Revenue,Number One Community Trust,448
Tunbridge Wells Borough Council,Central Services,102,FM,Facilities Management,Town Hall,Trade Refuse Charges,2520,-,-,2022/05/17 00:00:00+00,2022/05/18 00:00:00+00,220517,571,Revenue,Green Box Recycling Kent Ltd,449
Tunbridge Wells Borough Council,Cultural and Related Services,104,AH,Assembly Hall,A-Hall Marketing,Promotion,3450,-,-,2022/05/18 00:00:00+00,2022/05/18 00:00:00+00,220492,552,Revenue,Green Hippo Print Ltd,450
Tunbridge Wells Borough Council,Environmental and regulatory services ,105,CU,Community Safty Unit,Cctv,Partnership Agreement,202,-,-,2022/05/26 00:00:00+00,2022/05/30 00:00:00+00,220940,18467.8,Revenue,Enigma Cctv Ltd,451
Tunbridge Wells Borough Council,Housing Services,108,HP,Housing (Private Sector),Housing Renewal Advances,Capital Grants Payable,8355,-,-,2022/05/25 00:00:00+00,2022/05/25 00:00:00+00,220786,2412,Capital,Elite Complete Build Ltd,452
Tunbridge Wells Borough Council,Environmental and regulatory services ,105,EH,Environmental Health,Land Drainage,Ground Maint-Culvert & Ditches,2066,-,-,2022/05/20 00:00:00+00,2022/06/15 00:00:00+00,220767,350,Revenue,S K F Contractors Ltd,453
Tunbridge Wells Borough Council,Environmental and regulatory services ,105,CR,Crematorium,Crematorium,Cogs - Cards,3083,-,-,2022/05/26 00:00:00+00,2022/05/30 00:00:00+00,220832,298.84,Revenue,F G Marshall Ltd,454
Tunbridge Wells Borough Council,Environmental and regulatory services ,105,CR,Crematorium,Crematorium,Agency Staff,100,-,-,2022/05/19 00:00:00+00,2022/05/25 00:00:00+00,220557,1894,Revenue,Lee Snashfold Crematoria Mgmt & Consultancy,455
Tunbridge Wells Borough Council,Cultural and Related Services,104,PK,Parks,Dunorlan Park,Ground Maint Non Contract,2060,-,-,2022/05/20 00:00:00+00,2022/05/30 00:00:00+00,220729,280,Revenue,Treework,456
Tunbridge Wells Borough Council,Cultural and Related Services,104,AH,Assembly Hall,The Amelia Scott,Promotion,3450,-,-,2022/05/18 00:00:00+00,2022/06/15 00:00:00+00,221312,349,Revenue,Green Hippo Print Ltd,457
Tunbridge Wells Borough Council,Cultural and Related Services,104,AH,Assembly Hall,A-Hall Hire Shows,Ticket Repayment,5421,220501 Rtwso May 2022,A22S02,2022/05/27 00:00:00+00,2022/05/30 00:00:00+00,220582,11362.45,Revenue,Rtwso Productions Ltd,458
Tunbridge Wells Borough Council,Environmental and regulatory services ,105,CR,Crematorium,Crematorium,Agency Staff,100,-,-,2022/05/25 00:00:00+00,2022/05/25 00:00:00+00,220804,1894,Revenue,Lee Snashfold Crematoria Mgmt & Consultancy,459
Tunbridge Wells Borough Council,Cultural and Related Services,104,FI,Finance,Dunorlan Park,Ground Maint Non Contract,2060,-,-,2022/05/30 00:00:00+00,2022/05/30 00:00:00+00,220967,280,Revenue,Treework,460
Tunbridge Wells Borough Council,Central Services,102,PS,Property Services,Building Services,Property Consultants,3290,-,-,2022/02/24 00:00:00+00,2022/06/15 00:00:00+00,218177,348,Revenue,Js Facilities Management Ltd,461
Tunbridge Wells Borough Council,Housing Services,108,HO,Housing,Properties On Loan,Rents/Hire Of Premises,2200,-,-,2022/05/20 00:00:00+00,2022/05/30 00:00:00+00,220589,11129.4,Revenue,Town And Country Housing Group,462
Tunbridge Wells Borough Council,Central Services,102,FM,Facilities Management,Postal Charges Account,Cash Transfers,9100,-,-,2022/05/25 00:00:00+00,2022/05/25 00:00:00+00,220736,1781.23,Revenue,Royal Mail  Group Plc,463
Tunbridge Wells Borough Council,Environmental and regulatory services ,105,EH,Environmental Health,Sustainability,Equipment Purchase/Mtce,3000,Pembury Hospital 07/02595,RV0728,2022/05/26 00:00:00+00,2022/06/08 00:00:00+00,220981,1800,Revenue,Matts Monitors Ltd,464
Tunbridge Wells Borough Council,Environmental and regulatory services ,105,EH,Environmental Health,Food & Safety,Medical Fees,3340,-,-,2022/06/06 00:00:00+00,2022/06/15 00:00:00+00,221381,332.22,Revenue,"Blowey, Wood & Turrell",465
Tunbridge Wells Borough Council,Environmental and regulatory services ,105,LI,Licensing,Licensing,Partnership Agreement,202,-,-,2022/05/30 00:00:00+00,2022/05/30 00:00:00+00,220968,10787,Revenue,Sevenoaks District Council,466
Tunbridge Wells Borough Council,Environmental and regulatory services ,105,CR,Crematorium,Crematorium,Agency Staff,100,-,-,2022/05/19 00:00:00+00,2022/05/25 00:00:00+00,220556,1650,Revenue,Lee Snashfold Crematoria Mgmt & Consultancy,467
Tunbridge Wells Borough Council,Cultural and Related Services,104,AH,Assembly Hall,A-Hall Council Shows,Show Fees,3380,220510 Fascinating Aida,A22E05,2022/05/25 00:00:00+00,2022/06/08 00:00:00+00,220978,1230.19,Revenue,Password Productions Limited,468
Tunbridge Wells Borough Council,Central Services,102,HR,Human Resources,Staff Welfare,Medical Fees,3340,-,-,2022/05/20 00:00:00+00,2022/06/15 00:00:00+00,220762,290.19,Revenue,The Preventative Healthcare Company Ltd,469
Tunbridge Wells Borough Council,Cultural and related services,104,MU,Museum,Culture & Learning Hub,Capital Fees External,8315,-,-,2022/05/25 00:00:00+00,2022/05/30 00:00:00+00,220538,10209.38,Capital,Spider Project Management Ltd,470
Tunbridge Wells Borough Council,Environmental and regulatory services ,105,CR,Crematorium,Crematorium,Agency Staff,100,-,-,2022/05/25 00:00:00+00,2022/05/25 00:00:00+00,220805,1650,Revenue,Lee Snashfold Crematoria Mgmt & Consultancy,471
Tunbridge Wells Borough Council,Cultural and Related Services,104,AH,Assembly Hall,A-Hall Council Shows,Show Fees,3380,220420 Reginald D Hunter,A22D04,2022/04/20 00:00:00+00,2022/06/08 00:00:00+00,220993,802.8,Revenue,Mick Perrin Worldwide Ltd,472
Tunbridge Wells Borough Council,Central Services,102,GW,Gateway Customer Services,Gateway,Agency Staff,100,-,-,2022/05/27 00:00:00+00,2022/06/08 00:00:00+00,221015,468.8,Revenue,Recruitment Solutions,473
Tunbridge Wells Borough Council,Planning Services,110,PL,Planning,Planning Management,Advertising Staff,230,-,-,2022/04/25 00:00:00+00,2022/06/08 00:00:00+00,220715,400.72,Revenue,Wave Advertising Ltd,474
Tunbridge Wells Borough Council,Cultural and Related Services,104,AH,Assembly Hall,A-Hall Council Shows,Show Fees,3380,220320 Pop Divas Live,A22C07,2022/04/13 00:00:00+00,2022/06/08 00:00:00+00,220996,1582.29,Revenue,Phoenix Theatre Arts Limited,475
Tunbridge Wells Borough Council,Housing Services,108,FM,Facilities Management,Dowding House,Contract Cleaning,2510,-,-,2022/05/30 00:00:00+00,2022/06/08 00:00:00+00,221106,1208.33,Revenue,Chameleon Service (Se) Ltd,476
Tunbridge Wells Borough Council,Central Services,102,HR,Human Resources,Human Resources,In House Training,201,-,-,2022/05/26 00:00:00+00,2022/06/08 00:00:00+00,221004,1100,Revenue,Interim Collective Ltd,477
Tunbridge Wells Borough Council,Cultural and Related Services,104,AH,Assembly Hall,The Amelia Scott,Promotion,3450,-,-,2022/05/26 00:00:00+00,2022/06/08 00:00:00+00,220984,356,Revenue,Green Hippo Print Ltd,478
Tunbridge Wells Borough Council,Environmental and regulatory services ,105,CR,Crematorium,Crematorium,Grounds Maint. Tivoli Contract,2054,-,-,2022/04/26 00:00:00+00,2022/06/08 00:00:00+00,221175,91274.9,Revenue,Tivoli Group Limited,479
Tunbridge Wells Borough Council,Environmental and regulatory services ,105,CR,Crematorium,Crematorium,Grounds Maint. Tivoli Contract,2054,-,-,2022/05/31 00:00:00+00,2022/06/08 00:00:00+00,221176,91274.9,Revenue,Tivoli Group Limited,480
Tunbridge Wells Borough Council,Housing Services,108,HP,Housing (Private Sector),Disabled Facilities Grants,Capital Grants Payable,8355,-,-,2022/06/06 00:00:00+00,2022/06/08 00:00:00+00,221204,20421.6,Capital,Access And Automation Ltd,481
Tunbridge Wells Borough Council,Housing Services,108,HO,Housing,Dowding House,External Contract Payments,3220,-,-,2022/06/04 00:00:00+00,2022/06/08 00:00:00+00,221230,9875,Revenue,Paramount Independent Property Services Llp,482
Tunbridge Wells Borough Council,Cultural and Related Services,104,AH,Assembly Hall,A-Hall Council Shows,Show Fees,3380,220421 Think Floyd,A22D02,2022/05/30 00:00:00+00,2022/06/08 00:00:00+00,221150,9371.53,Revenue,Sweeney Entertainments Ltd,483
Tunbridge Wells Borough Council,Central Services,102,FI,Finance,Corporate Costs,Treasury Management Fees,3333,-,-,2022/04/07 00:00:00+00,2022/06/08 00:00:00+00,221232,7267,Revenue,Link Treasury Services Limited,484
Tunbridge Wells Borough Council,Housing Services,108,HP,Housing (Private Sector),Cinderhill Wood Caravan Site,Water Supply,2300,-,-,2022/05/19 00:00:00+00,2022/06/08 00:00:00+00,221196,4204.47,Revenue,South East Water Plc,485
Tunbridge Wells Borough Council,Central Services,102,PS,Property Services,Building Services,Property Consultants,3290,-,-,2022/05/18 00:00:00+00,2022/06/08 00:00:00+00,220714,4200,Revenue,Betteridge & Milsom,486
Tunbridge Wells Borough Council,Cultural and Related Services,104,AH,Assembly Hall,A-Hall Council Shows,Show Fees,3380,220405 A Beautiful Noise,A22D06,2022/05/18 00:00:00+00,2022/06/08 00:00:00+00,221103,3715.89,Revenue,Pretty Amazing Productions,487
Tunbridge Wells Borough Council,Planning Services,110,LG,Legal Services,Development Management,Legal Fees,3260,-,-,2022/01/28 00:00:00+00,2022/06/08 00:00:00+00,220766,3000,Revenue,Town Legal Llp,488
Tunbridge Wells Borough Council,Cultural and related services,104,MU,Museum,Culture & Learning Hub,Capital Fees External,8315,-,-,2022/05/31 00:00:00+00,2022/06/08 00:00:00+00,221153,3000,Capital,Focus Consultants 2010 Llp,489
Tunbridge Wells Borough Council,Cultural and Related Services,104,FM,Facilities Management,The Amelia Scott,Contract Cleaning,2510,-,-,2022/04/29 00:00:00+00,2022/06/08 00:00:00+00,220988,2250.06,Revenue,Churchill Contract Services Limited,490
Tunbridge Wells Borough Council,Housing Services,108,FI,Finance,Tn2 Community Centre,Water Supply,2300,-,-,2022/06/07 00:00:00+00,2022/06/08 00:00:00+00,221218,2179.88,Revenue,Castle Water Ltd,491
Tunbridge Wells Borough Council,Environmental and regulatory services ,105,CR,Crematorium,Crematorium,Webcast Costs,3550,-,-,2022/05/31 00:00:00+00,2022/06/08 00:00:00+00,221161,2117,Revenue,Vivedia Ltd,492
Tunbridge Wells Borough Council,Housing Services,108,HP,Housing (Private Sector),Disabled Facilities Grants,Capital Grants Payable,8355,-,-,2022/05/31 00:00:00+00,2022/06/08 00:00:00+00,221177,2100,Capital,Town And Country Housing Group,493
Tunbridge Wells Borough Council,Highways and Transport Services,107,PA,Parking,Parking Regulation,Signing & Lining Works,3920,-,-,2022/03/30 00:00:00+00,2022/06/08 00:00:00+00,221157,2001,Revenue,Buchanan Computing Ltd,494
Tunbridge Wells Borough Council,Central Services,102,PS,Property Services,Building Services,Property Consultants,3290,-,-,2022/05/18 00:00:00+00,2022/06/08 00:00:00+00,220713,2000,Revenue,Betteridge & Milsom,495
Tunbridge Wells Borough Council,Central Services,102,PU,Publications,Single Customer Account,Computer Software,8341,-,-,2022/05/26 00:00:00+00,2022/06/08 00:00:00+00,220982,2000,Capital,Granicus-Firmstep Ltd,496
Tunbridge Wells Borough Council,Housing Services,108,FM,Facilities Management,Dowding House,Trade Refuse Charges,2520,-,-,2022/04/30 00:00:00+00,2022/06/08 00:00:00+00,220574,1942.16,Revenue,Countrystyle Recycling Ltd,497
Tunbridge Wells Borough Council,Environmental and regulatory services ,105,CR,Crematorium,Crematorium,Agency Staff,100,-,-,2022/05/30 00:00:00+00,2022/06/08 00:00:00+00,221096,1894,Revenue,Lee Snashfold Crematoria Mgmt & Consultancy,498
Tunbridge Wells Borough Council,Environmental and regulatory services ,105,CR,Crematorium,Crematorium,Agency Staff,100,-,-,2022/05/30 00:00:00+00,2022/06/08 00:00:00+00,221095,1650,Revenue,Lee Snashfold Crematoria Mgmt & Consultancy,499
Tunbridge Wells Borough Council,Central Services,102,PU,Publications,Single Customer Account,Computer Software,8341,-,-,2022/05/25 00:00:00+00,2022/06/08 00:00:00+00,220985,1250,Capital,Granicus-Firmstep Ltd,500
Tunbridge Wells Borough Council,Housing Services,108,HO,Housing,Housing Needs Service,Subs To Organisations,3730,-,-,2022/05/31 00:00:00+00,2022/06/08 00:00:00+00,221202,1250,Revenue,Dover District Council,501
Tunbridge Wells Borough Council,Central Services,102,MA,Mayoral,Mayoral,Mayoral Expenses,3690,-,-,2022/05/25 00:00:00+00,2022/06/08 00:00:00+00,220721,1198,Revenue,The Complete Lunch Limited,502
Tunbridge Wells Borough Council,Highways and Transport Services,107,PA,Parking,Parking Regulation,Signing & Lining Works,3920,-,-,2022/05/28 00:00:00+00,2022/06/08 00:00:00+00,221144,1175.5,Revenue,Archway Highway Services Ltd,503
Tunbridge Wells Borough Council,Environmental and regulatory services ,105,CR,Crematorium,Crematorium,Agency Staff,100,-,-,2022/06/07 00:00:00+00,2022/06/08 00:00:00+00,221215,1100,Revenue,Lee Snashfold Crematoria Mgmt & Consultancy,504
Tunbridge Wells Borough Council,Housing Services,108,HO,Housing,Housing Needs Service,Agency Staff,100,Covid-19 Containment Outbreak,EV0496,2022/05/30 00:00:00+00,2022/06/08 00:00:00+00,221097,962,Revenue,G2 Recruitment Solutions Limited,505
Tunbridge Wells Borough Council,Cultural and Related Services,104,AH,Assembly Hall,A-Hall Management,Projects & Initiatives,3910,-,-,2022/05/30 00:00:00+00,2022/06/08 00:00:00+00,221163,760,Revenue,Interim Collective Ltd,506
Tunbridge Wells Borough Council,Cultural and Related Services,104,MU,Museum,The Amelia Scott,Projects & Initiatives,3910,-,-,2022/05/27 00:00:00+00,2022/06/08 00:00:00+00,221231,515.73,Revenue,Forum Music & Arts Cic,507
Tunbridge Wells Borough Council,Housing Services,108,PS,Property Services,Property,Ground Maint Non Contract,2060,-,-,2022/05/12 00:00:00+00,2022/06/08 00:00:00+00,220916,480,Revenue,Treework,508
Tunbridge Wells Borough Council,Central Services,102,FI,Finance,Exchequer Services,External Training,204,-,-,2022/05/25 00:00:00+00,2022/06/08 00:00:00+00,220989,445.5,Revenue,Pstax,509
Tunbridge Wells Borough Council,Planning Services,110,PL,Planning,Development Management,Planning Application Fees,5250,-,-,2022/05/26 00:00:00+00,2022/06/08 00:00:00+00,221114,439,Revenue,Portal Plan Quest Ltd,510
Tunbridge Wells Borough Council,Cultural and Related Services,104,AB,Assembly Hall Bar,A-Hall Front Of House,Cogs -Food,3090,-,-,2022/02/17 00:00:00+00,2022/06/08 00:00:00+00,221130,425.5,Revenue,Basil Catering Services Limited,511
Tunbridge Wells Borough Council,Cultural and Related Services,104,AH,Assembly Hall,Events,Equipment Hire/Rent,3010,Queens Platinum Jubilee,EV0155,2022/05/26 00:00:00+00,2022/06/08 00:00:00+00,221162,420,Revenue,Radio Relay,512
Tunbridge Wells Borough Council,Environmental and regulatory services ,105,CR,Crematorium,Crematorium,Agency Staff,100,-,-,2022/06/07 00:00:00+00,2022/06/08 00:00:00+00,221238,378.8,Revenue,Lee Snashfold Crematoria Mgmt & Consultancy,513
Tunbridge Wells Borough Council,Cultural and related services,104,IT,Information & Communications Technology,Culture & Learning Hub,Computer Hardware,8329,-,-,2022/05/16 00:00:00+00,2022/06/08 00:00:00+00,220917,368.5,Capital,Legacy Telecom Ltd,514
Tunbridge Wells Borough Council,Cultural and Related Services,104,AS,The Amelia,The Amelia Scott,Show Fees,3380,220430 Kate Humble - Home Cook,C22D03,2022/05/25 00:00:00+00,2022/06/08 00:00:00+00,221191,312.28,Revenue,United Agents Llp,515
Tunbridge Wells Borough Council,Environmental and regulatory services ,105,EH,Environmental Health,Food & Safety,Agency Staff,100,-,-,2022/05/30 00:00:00+00,2022/06/08 00:00:00+00,221152,292.5,Revenue,Vivid Resourcing,516
Tunbridge Wells Borough Council,Cultural and Related Services,104,FM,Facilities Management,The Amelia Scott,External Contract Security,3225,-,-,2022/05/24 00:00:00+00,2022/05/25 00:00:00+00,220545,1602.4,Revenue,Js Facilities Management Ltd,517
Tunbridge Wells Borough Council,Cultural and Related Services,104,MU,Museum,The Amelia Scott,Show Fees,3380,-,-,2022/05/25 00:00:00+00,2022/05/25 00:00:00+00,220742,1560,Revenue,Dexter Clift [River Medway],518
Tunbridge Wells Borough Council,Central Services,102,EL,Elections,Borough Elections,Postage,3500,Borough Elections 220505,CS0424,2022/05/27 00:00:00+00,2022/05/30 00:00:00+00,220830,9071.16,Revenue,Royal Mail  Group Plc,519
Tunbridge Wells Borough Council,Environmental and regulatory services ,105,CR,Crematorium,Public Health Act Funerals,General Expenses,3950,-,-,2022/05/23 00:00:00+00,2022/05/25 00:00:00+00,220571,1506,Revenue,T W Boorman Funeral Services,520
Tunbridge Wells Borough Council,Cultural and Related Services,104,AH,Assembly Hall,A-Hall Marketing,Promotion,3450,-,-,2022/05/19 00:00:00+00,2022/05/25 00:00:00+00,220569,1481.12,Revenue,Force24 Ltd,521
Tunbridge Wells Borough Council,Cultural and Related Services,104,MU,Museum,The Amelia Scott,Concessionary Bus Permits,3800,220430 Jo Brand - Born Lippy,C22D02,2022/05/26 00:00:00+00,2022/05/30 00:00:00+00,220774,6724.58,Revenue,Vivienne Clore,522
Tunbridge Wells Borough Council,Cultural and Related Services,104,AB,Assembly Hall Bar,A-Hall Front Of House,Cogs - Drink,3091,-,-,2022/05/25 00:00:00+00,2022/05/25 00:00:00+00,220769,1243.35,Revenue,Westerham Brewery,523
Tunbridge Wells Borough Council,Central Services,102,EL,Elections,Borough Elections,Postage,3500,Borough Elections 220505,CS0424,2022/05/27 00:00:00+00,2022/05/30 00:00:00+00,220827,5207.68,Revenue,Royal Mail  Group Plc,524
Tunbridge Wells Borough Council,Housing Services,108,FM,Facilities Management,Dowding House,Contract Cleaning,2510,-,-,2022/05/20 00:00:00+00,2022/05/25 00:00:00+00,220551,1208.33,Revenue,Chameleon Service (Se) Ltd,525
Tunbridge Wells Borough Council,Planning Services,110,FI,Finance,Community & Grants,Grants,3750,-,-,2022/05/26 00:00:00+00,2022/05/30 00:00:00+00,220788,5000,Revenue,Paddock Wood Community Advice Centre,526
Tunbridge Wells Borough Council,Environmental and regulatory services ,105,PK,Parks,Crematorium,Grounds Maint Contracts,2050,-,-,2022/05/20 00:00:00+00,2022/05/25 00:00:00+00,220598,1120,Revenue,Treework,527
Tunbridge Wells Borough Council,Cultural and related services,104,MU,Museum,Culture & Learning Hub,Capital Fees External,8315,-,-,2022/05/26 00:00:00+00,2022/05/30 00:00:00+00,220526,4203.74,Capital,The Textile Conservancy Company Limited,528
Tunbridge Wells Borough Council,Cultural and Related Services,104,AB,Assembly Hall Bar,A-Hall Front Of House,Cogs - Drink,3091,-,-,2022/05/18 00:00:00+00,2022/05/25 00:00:00+00,220549,1111.24,Revenue,Lw Drinks     (Formerly Ht White),529
Tunbridge Wells Borough Council,Cultural and Related Services,104,FI,Finance,Tw Ice Rink,Equipment Purchase/Mtce,3000,-,-,2022/05/30 00:00:00+00,2022/05/30 00:00:00+00,221002,3496.07,Revenue,Kingfisher Direct Limited,530
Tunbridge Wells Borough Council,Central Services,102,FI,Finance,Exchequer Services,Stationery,3160,-,-,2022/05/20 00:00:00+00,2022/05/25 00:00:00+00,220136,1040.53,Revenue,Lyreco Uk Limited,531
Tunbridge Wells Borough Council,Housing Services,108,HO,Housing,Properties On Loan,Rents/Hire Of Premises,2200,-,-,2022/05/27 00:00:00+00,2022/05/30 00:00:00+00,220954,2800,Revenue,This Data Has Been Redacted Under The Data Protection Act,532
Tunbridge Wells Borough Council,Central Services,102,FI,Finance,Gateway,Equipment Purchase/Mtce,3000,-,-,2022/05/24 00:00:00+00,2022/05/25 00:00:00+00,220369,1004.1,Revenue,Straight Manufacturing Ltd,533
Tunbridge Wells Borough Council,Cultural and Related Services,104,FI,Finance,Tw Ice Rink,Equipment Purchase/Mtce,3000,-,-,2022/05/26 00:00:00+00,2022/05/30 00:00:00+00,220944,2529.4,Revenue,Kingfisher Direct Limited,534
Tunbridge Wells Borough Council,Housing Services,108,HO,Housing,Housing Needs Service,Agency Staff,100,Covid-19 Containment Outbreak,EV0496,2022/05/20 00:00:00+00,2022/05/25 00:00:00+00,220716,962,Revenue,G2 Recruitment Solutions Limited,535
Tunbridge Wells Borough Council,Planning Services,110,FI,Finance,Community & Grants,Grants,3750,-,-,2022/05/26 00:00:00+00,2022/05/30 00:00:00+00,220789,2500,Revenue,West Kent Mediation,536
Tunbridge Wells Borough Council,Housing Services,108,HO,Housing,Housing Needs Service,Homelessness Expenses,3912,-,-,2022/05/23 00:00:00+00,2022/05/25 00:00:00+00,220760,918.9,Revenue,This Data Has Been Redacted Under The Data Protection Act,537
Tunbridge Wells Borough Council,Cultural and Related Services,104,PK,Parks,Parks & Grounds,Horticulture,2061,-,-,2022/05/25 00:00:00+00,2022/05/25 00:00:00+00,220784,891.25,Revenue,How Green Nursery Ltd,538
Tunbridge Wells Borough Council,Central Services,102,FM,Facilities Management,Covid-19 Coronavirus Support,Projects & Initiatives,3910,Covid-19 Containment Outbreak,EV0496,2022/05/18 00:00:00+00,2022/05/25 00:00:00+00,218865,816,Revenue,Js Facilities Management Ltd,539
Tunbridge Wells Borough Council,Environmental and regulatory services ,105,EH,Environmental Health,Head Of Housing Health & Env,External Training,204,-,-,2022/05/27 00:00:00+00,2022/05/30 00:00:00+00,220929,2340,Revenue,Abc Food Law Limited,540
Tunbridge Wells Borough Council,Environmental and regulatory services ,105,FM,Facilities Management,Crematorium,Responsive Repairs Property,2029,-,-,2022/05/19 00:00:00+00,2022/05/25 00:00:00+00,220720,790,Revenue,Kent & Sussex Garage Doors,541
Tunbridge Wells Borough Council,Environmental and regulatory services ,105,CU,Community Safty Unit,Community Safety,Projects & Initiatives,3910,Comm.Safety Partne,EV0088,2022/05/30 00:00:00+00,2022/05/30 00:00:00+00,220969,2100,Revenue,Kent County Council,542
Tunbridge Wells Borough Council,Cultural and Related Services,104,PK,Parks,Parks & Grounds,Wastewater & Drainage,2340,-,-,2022/05/20 00:00:00+00,2022/05/25 00:00:00+00,220750,770.09,Revenue,Business Stream,543
Tunbridge Wells Borough Council,Cultural and Related Services,104,MU,Museum,Cultural Hub,Projects & Initiatives,3910,Water Feature Commission,AC0004,2022/05/27 00:00:00+00,2022/05/30 00:00:00+00,220576,1950,Revenue,Circling The Square Ltd,544
Tunbridge Wells Borough Council,Central Services,102,MA,Mayoral,Mayoral,Equipment Purchase/Mtce,3000,-,-,2022/05/20 00:00:00+00,2022/05/25 00:00:00+00,220541,762.5,Revenue,Michaels Civic Robes,545
Tunbridge Wells Borough Council,Environmental and regulatory services ,105,CU,Community Safty Unit,Community Safety,Projects & Initiatives,3910,Traveller Encampment Fund,EV1049,2022/05/26 00:00:00+00,2022/05/30 00:00:00+00,220932,1926.83,Revenue,Paddock Wood Town Council,546
Tunbridge Wells Borough Council,Cultural and Related Services,104,PK,Parks,Dunorlan Park,Ground Maint Non Contract,2060,-,-,2022/05/25 00:00:00+00,2022/05/25 00:00:00+00,217594,759.21,Revenue,Sodexo Ltd,547
Tunbridge Wells Borough Council,Cultural and Related Services,104,PK,Parks,Parks & Grounds,Ground Maint.Infrastructure,2063,-,-,2022/05/31 00:00:00+00,2022/06/15 00:00:00+00,221365,273,Revenue,Pickerings Hire,548
Tunbridge Wells Borough Council,Housing Services,108,HP,Housing (Private Sector),Housing Renewal Advances,Capital Grants Payable,8355,-,-,2022/05/25 00:00:00+00,2022/05/25 00:00:00+00,220785,696,Capital,Elite Complete Build Ltd,549
Tunbridge Wells Borough Council,Cultural and Related Services,104,PU,Publications,The Amelia Scott,Telephone Costs,3510,-,-,2022/05/26 00:00:00+00,2022/05/30 00:00:00+00,220497,1841.57,Revenue,Gamma Telecom Ltd,550
Tunbridge Wells Borough Council,Cultural and Related Services,104,AB,Assembly Hall Bar,A-Hall Front Of House,Cogs - Ice Creams,3093,-,-,2022/05/27 00:00:00+00,2022/06/15 00:00:00+00,221179,262.08,Revenue,Taywell Ice Creams Limited,551
Tunbridge Wells Borough Council,Central Services,102,FM,Facilities Management,Postal Charges Account,Cash Transfers,9100,-,-,2022/05/25 00:00:00+00,2022/05/25 00:00:00+00,220466,689.08,Revenue,Royal Mail  Group Plc,552
Tunbridge Wells Borough Council,Planning Services,110,FI,Finance,Community & Grants,Grants,3750,-,-,2022/05/26 00:00:00+00,2022/05/30 00:00:00+00,220817,1650,Revenue,Forum Music & Arts Cic,553
Tunbridge Wells Borough Council,Environmental and regulatory services ,105,CR,Crematorium,Crematorium,Cogs - Plaques,3082,-,-,2022/04/14 00:00:00+00,2022/06/15 00:00:00+00,219696,254.38,Revenue,Falon Nameplates  Limited,554
Tunbridge Wells Borough Council,Cultural and Related Services,104,PK,Parks,Parks & Grounds,Ground Maint Non Contract,2060,-,-,2022/05/20 00:00:00+00,2022/05/25 00:00:00+00,220599,680,Revenue,Treework,555
Tunbridge Wells Borough Council,Cultural and Related Services,104,PK,Parks,Parks & Grounds,Ground Maint Non Contract,2060,-,-,2022/05/26 00:00:00+00,2022/05/30 00:00:00+00,220813,1625,Revenue,Mainwaring Ditch Associates,556
Tunbridge Wells Borough Council,Housing Services,108,FI,Finance,Tn2 Community Centre,Water Supply,2300,-,-,2022/06/07 00:00:00+00,2022/06/21 00:00:00+00,221543,2179.88,Revenue,Castle Water Ltd,557
Tunbridge Wells Borough Council,Cultural and Related Services,104,AB,Assembly Hall Bar,A-Hall Front Of House,Cogs - Confectionery,3094,-,-,2022/05/25 00:00:00+00,2022/05/25 00:00:00+00,220734,597.42,Revenue,B.G. Benton Limited,558
Tunbridge Wells Borough Council,Cultural and Related Services,104,PK,Parks,Dunorlan Park,Ground Maint Non Contract,2060,-,-,2022/05/30 00:00:00+00,2022/05/30 00:00:00+00,220928,1520,Revenue,Humor Street Art,559
Tunbridge Wells Borough Council,Central Services,102,CO,Communications,Communications And Engagement,Local Magazine,3155,-,-,2022/05/26 00:00:00+00,2022/05/30 00:00:00+00,220499,1443.6,Revenue,Space Marketing Ltd,560
Tunbridge Wells Borough Council,Cultural and related services,104,MU,Museum,Culture & Learning Hub,Capital Fees External,8315,-,-,2022/05/26 00:00:00+00,2022/05/30 00:00:00+00,220930,1343,Capital,Dauphin Acrylic Design Ltd,561
Tunbridge Wells Borough Council,Cultural and Related Services,104,AB,Assembly Hall Bar,A-Hall Front Of House,Cogs - Drink,3091,-,-,2022/05/25 00:00:00+00,2022/05/30 00:00:00+00,220770,1253.78,Revenue,Lw Drinks     (Formerly Ht White),562
Tunbridge Wells Borough Council,Cultural and Related Services,104,MU,Museum,The Amelia Scott,Hospitality,3720,-,-,2022/05/30 00:00:00+00,2022/05/30 00:00:00+00,220973,1235,Revenue,The Tunbridge Wells Hotel,563
Tunbridge Wells Borough Council,Housing Services,108,HO,Housing,Mortgage & Loans Cash,Cash In Hand,8600,-,-,2022/05/30 00:00:00+00,2022/05/30 00:00:00+00,220991,1200,Revenue,This Data Has Been Redacted Under The Data Protection Act,564
Tunbridge Wells Borough Council,Cultural and Related Services,104,AH,Assembly Hall,A-Hall Front Of House,Cogs-Show Riders,3095,220608-09 Jools Holland,A22F01,2022/05/30 00:00:00+00,2022/05/30 00:00:00+00,221017,1160,Revenue,Helicon Mountain Ltd,565
Tunbridge Wells Borough Council,Housing Services,108,HO,Housing,Housing Needs Service,Agency Staff,100,Covid-19 Containment Outbreak,EV0496,2022/05/30 00:00:00+00,2022/05/30 00:00:00+00,220918,962,Revenue,G2 Recruitment Solutions Limited,566
Tunbridge Wells Borough Council,Central Services,102,AH,Assembly Hall,I T Service,It Software,3590,-,-,2022/05/18 00:00:00+00,2022/05/30 00:00:00+00,220240,840,Revenue,This Data Has Been Redacted Under The Data Protection Act,567
Tunbridge Wells Borough Council,Central Services,102,AH,Assembly Hall,I T Service,It Software,3590,-,-,2022/05/19 00:00:00+00,2022/05/30 00:00:00+00,220486,840,Revenue,This Data Has Been Redacted Under The Data Protection Act,568
Tunbridge Wells Borough Council,Central Services,102,FI,Finance,Civica Upgrade,Computer Software,8341,-,-,2022/05/30 00:00:00+00,2022/05/30 00:00:00+00,217961,816.66,Capital,Civica Uk Ltd,569
Tunbridge Wells Borough Council,Housing Services,108,PS,Property Services,Dowding House,Planned Maintenance Property,2009,-,-,2022/05/27 00:00:00+00,2022/05/30 00:00:00+00,220739,800,Revenue,Amstech Asbestos Removals Limited,570
Tunbridge Wells Borough Council,Central Services,102,EL,Elections,Borough Elections,Postage,3500,Ben & Goud Plan Ref 030222,CS0423,2022/05/27 00:00:00+00,2022/05/30 00:00:00+00,220829,752.32,Revenue,Royal Mail  Group Plc,571
Tunbridge Wells Borough Council,Housing Services,108,HP,Housing (Private Sector),Disabled Facilities Grants,Capital Grants Payable,8355,-,-,2022/05/27 00:00:00+00,2022/05/30 00:00:00+00,220826,731.07,Capital,Town And Country Housing Group,572
Tunbridge Wells Borough Council,Housing Services,108,HO,Housing,Disabled Facilities Grants,Capital Grants Payable,8355,-,-,2022/05/27 00:00:00+00,2022/05/30 00:00:00+00,220357,625.2,Capital,Town And Country Housing Group,573
Tunbridge Wells Borough Council,Cultural and Related Services,104,AH,Assembly Hall,A-Hall Marketing,Promotion,3450,220522 The Carpenters Story,A22E07,2022/05/30 00:00:00+00,2022/05/30 00:00:00+00,220921,540.2,Revenue,Kms Media,574
Tunbridge Wells Borough Council,Environmental and regulatory services ,105,CS,Client Services (Depot),North Farm Depot,Fire & Security Property,2089,-,-,2022/05/25 00:00:00+00,2022/05/30 00:00:00+00,220732,528.64,Revenue,Atlas Facilities Management Ltd (Was Emprise),575
Tunbridge Wells Borough Council,Cultural and related services,104,MU,Museum,Culture & Learning Hub,Capital Fees External,8315,-,-,2022/05/26 00:00:00+00,2022/05/30 00:00:00+00,220931,500,Capital,Dauphin Acrylic Design Ltd,576
Tunbridge Wells Borough Council,Cultural and Related Services,104,MU,Museum,The Amelia Scott,Public Transport,1430,-,-,2022/05/30 00:00:00+00,2022/05/30 00:00:00+00,220977,497,Revenue,Tw Express Cars Ltd,577
Tunbridge Wells Borough Council,Housing Services,108,PS,Property Services,Property,Ground Maint Non Contract,2060,-,-,2022/05/26 00:00:00+00,2022/05/30 00:00:00+00,220600,480,Revenue,Treework,578
Tunbridge Wells Borough Council,Housing Services,108,HP,Housing (Private Sector),Disabled Facilities Grants,Capital Grants Payable,8355,-,-,2022/05/27 00:00:00+00,2022/05/30 00:00:00+00,220386,457.77,Capital,Town And Country Housing Group,579
Tunbridge Wells Borough Council,Cultural and Related Services,104,MU,Museum,The Amelia Scott,Show Fees,3380,"220506 Hearts, Arts & Drag Que",C22E21,2022/05/30 00:00:00+00,2022/05/30 00:00:00+00,220987,450,Revenue,Polly Rae,580
Tunbridge Wells Borough Council,Cultural and Related Services,104,AH,Assembly Hall,A-Hall Marketing,Promotion,3450,-,-,2022/05/30 00:00:00+00,2022/05/30 00:00:00+00,220923,440,Revenue,Kms Media,581
Tunbridge Wells Borough Council,Housing Services,108,HP,Housing (Private Sector),Disabled Facilities Grants,Capital Grants Payable,8355,-,-,2022/05/27 00:00:00+00,2022/05/30 00:00:00+00,220385,427.71,Capital,Town And Country Housing Group,582
Tunbridge Wells Borough Council,Cultural and Related Services,104,MU,Museum,The Amelia Scott,Exhibition Fees,3400,-,-,2022/05/27 00:00:00+00,2022/05/30 00:00:00+00,220945,400,Revenue,This Data Has Been Redacted Under The Data Protection Act,583
Tunbridge Wells Borough Council,Cultural and Related Services,104,PK,Parks,Parks & Grounds,Horticulture,2061,-,-,2022/05/20 00:00:00+00,2022/05/30 00:00:00+00,220731,340,Revenue,Treework,584
Tunbridge Wells Borough Council,Cultural and Related Services,104,FI,Finance,Parks & Grounds,Horticulture,2061,-,-,2022/05/30 00:00:00+00,2022/05/30 00:00:00+00,220965,340,Revenue,Treework,585
Tunbridge Wells Borough Council,Central Services,102,EL,Elections,Borough Elections,Rents/Hire Of Premises,2200,Borough Elections 220505,CS0424,2022/05/26 00:00:00+00,2022/05/30 00:00:00+00,220310,321.67,Revenue,Trinity Theatre & Arts Centre Ltd,586
Tunbridge Wells Borough Council,Housing Services,108,HP,Housing (Private Sector),Housing Renewal Advances,Capital Grants Payable,8355,-,-,2022/05/27 00:00:00+00,2022/05/30 00:00:00+00,220384,308.4,Capital,Town And Country Housing Group,587
Tunbridge Wells Borough Council,Environmental and regulatory services ,105,HP,Housing (Private Sector),Community Safety,Projects & Initiatives,3910,Comm.Safety Partne,EV0088,2022/05/25 00:00:00+00,2022/05/25 00:00:00+00,220717,525.5,Revenue,Selectamark Security Systems Plc,588
Tunbridge Wells Borough Council,Cultural and Related Services,104,AH,Assembly Hall,A-Hall Box Office,Ticket Protection-Expenditure,3193,-,-,2022/05/19 00:00:00+00,2022/05/25 00:00:00+00,220579,518,Revenue,Booking Protect Ltd,589
Tunbridge Wells Borough Council,Cultural and Related Services,104,AH,Assembly Hall,A-Hall Council Shows,Show Fees,3380,220412-16 Blood Brothers,A22D11,2022/04/23 00:00:00+00,2022/06/22 00:00:00+00,221536,78735.88,Revenue,Bill Kenwright Ltd,590
Tunbridge Wells Borough Council,Environmental and regulatory services ,105,EH,Environmental Health,Food & Safety,Medical Fees,3340,-,-,2022/05/19 00:00:00+00,2022/05/25 00:00:00+00,220378,450.08,Revenue,"Blowey, Wood & Turrell",591
Tunbridge Wells Borough Council,Cultural and Related Services,104,MU,Museum,The Amelia Scott,It Software,3590,-,-,2022/05/19 00:00:00+00,2022/05/25 00:00:00+00,220540,445,Revenue,Modes Users Association,592
Tunbridge Wells Borough Council,Housing Services,108,PS,Property Services,Town Hall Yard Car Park,"Construction, Renovation, Etc",8311,-,-,2022/05/18 00:00:00+00,2022/06/22 00:00:00+00,220745,34350,Capital,Makers Construction Ltd,593
Tunbridge Wells Borough Council,Cultural and related services,104,MU,Museum,Culture & Learning Hub,Capital Fees External,8315,-,-,2022/05/18 00:00:00+00,2022/05/25 00:00:00+00,220507,432,Capital,Purcell Architecture Ltd,594
Tunbridge Wells Borough Council,Central Services,102,EL,Elections,I T Service,It Software,3590,Software Maintenance,EV0328,2022/05/30 00:00:00+00,2022/06/22 00:00:00+00,221091,14445,Revenue,Civica Uk Ltd,595
Tunbridge Wells Borough Council,Cultural and Related Services,104,PK,Parks,Dunorlan Park,Ground Maint Non Contract,2060,-,-,2022/05/20 00:00:00+00,2022/05/25 00:00:00+00,220601,420,Revenue,Treework,596
Tunbridge Wells Borough Council,Housing Services,108,HO,Housing,Properties On Loan,Rents/Hire Of Premises,2200,-,-,2022/04/20 00:00:00+00,2022/06/22 00:00:00+00,219744,11653.06,Revenue,Town And Country Housing Group,597
Tunbridge Wells Borough Council,Cultural and Related Services,104,MU,Museum,Cultural Hub,Museum Exhibits - Maintenance,3041,-,-,2022/05/24 00:00:00+00,2022/05/25 00:00:00+00,220243,415,Revenue,J & H Friend,598
Tunbridge Wells Borough Council,Environmental and regulatory services ,105,CU,Community Safty Unit,Community Safety,Projects & Initiatives,3910,Comm.Safety Partne,EV0088,2022/06/16 00:00:00+00,2022/06/22 00:00:00+00,221550,7020,Revenue,Kenward Trust,599
Tunbridge Wells Borough Council,Central Services,102,FM,Facilities Management,Postal Charges Account,Cash Transfers,9100,-,-,2022/05/24 00:00:00+00,2022/05/25 00:00:00+00,220465,414.39,Revenue,Royal Mail  Group Plc,600
Tunbridge Wells Borough Council,Cultural and Related Services,104,AH,Assembly Hall,A-Hall Council Shows,Show Fees,3380,220324 Friends The Musical Par,A22C10,2022/05/31 00:00:00+00,2022/06/22 00:00:00+00,221590,5911.19,Revenue,Jendagi Productions Limited,601
Tunbridge Wells Borough Council,Cultural and related services,104,MU,Museum,Culture & Learning Hub,Capital Fees External,8315,-,-,2022/05/25 00:00:00+00,2022/05/25 00:00:00+00,220777,400,Capital,Focus Consultants 2010 Llp,602
Tunbridge Wells Borough Council,Cultural and Related Services,104,AH,Assembly Hall,A-Hall Council Shows,Show Fees,3380,220208 Gordon Buchanan,A22B05,2022/02/17 00:00:00+00,2022/06/22 00:00:00+00,221399,5247.96,Revenue,Jsm,603
Tunbridge Wells Borough Council,Cultural and Related Services,104,IT,Information & Communications Technology,A-Hall Technical,Equipment Purchase/Mtce,3000,-,-,2022/05/19 00:00:00+00,2022/05/25 00:00:00+00,220572,375,Revenue,Symetri Limited,604
Tunbridge Wells Borough Council,Central Services,102,CO,Communications,Communications And Engagement,Local Magazine,3155,-,-,2022/06/13 00:00:00+00,2022/06/22 00:00:00+00,221554,4914.73,Revenue,The National Leaflet Company,605
Tunbridge Wells Borough Council,Cultural and Related Services,104,PK,Parks,Parks & Grounds,Horticulture,2061,-,-,2022/05/20 00:00:00+00,2022/05/25 00:00:00+00,220754,360,Revenue,D S Restoration,606
Tunbridge Wells Borough Council,Cultural and Related Services,104,FI,Finance,The Amelia Scott,Computer Hardware,3580,-,-,2022/05/31 00:00:00+00,2022/06/22 00:00:00+00,221138,4708.33,Revenue,Civica Uk Ltd,607
Tunbridge Wells Borough Council,Environmental and regulatory services ,105,CS,Client Services (Depot),Cleaner Borough,Seats & Bollards,2032,-,-,2022/05/23 00:00:00+00,2022/05/25 00:00:00+00,220768,350,Revenue,S K F Contractors Ltd,608
Tunbridge Wells Borough Council,Highways and Transport Services,107,FI,Finance,Parking Admin & Enforcement,Fuel & Oil,1010,-,-,2022/05/24 00:00:00+00,2022/05/25 00:00:00+00,220593,331.8,Revenue,Fuel Card Services Ltd,609
Tunbridge Wells Borough Council,Cultural and Related Services,104,AH,Assembly Hall,A-Hall Hire Shows,Ticket Repayment,5421,220410 Rtwcs,A22R03,2022/06/13 00:00:00+00,2022/06/22 00:00:00+00,221426,4585,Revenue,The Royal Tunbridge Wells Choral Society,610
Tunbridge Wells Borough Council,Central Services,102,FM,Facilities Management,Covid-19 Coronavirus Support,Projects & Initiatives,3910,Covid-19 Containment Outbreak,EV0496,2022/05/24 00:00:00+00,2022/05/25 00:00:00+00,220546,306,Revenue,Js Facilities Management Ltd,611
Tunbridge Wells Borough Council,Cultural and Related Services,104,AH,Assembly Hall,A-Hall Council Shows,Show Fees,3380,220503 Dreamboats & Petticoats,A22E03,2022/05/03 00:00:00+00,2022/06/22 00:00:00+00,221529,3960.16,Revenue,Flying Entertainment Ltd,612
Tunbridge Wells Borough Council,Central Services,102,LG,Legal Services,Democratic Management,Legal Fees,3260,-,-,2022/05/25 00:00:00+00,2022/05/25 00:00:00+00,220764,300,Revenue,Hoey Ainscough Associates Ltd,613
Tunbridge Wells Borough Council,Planning Services,110,ED,Economic Development,Economic Development,Courier Service,3540,-,-,2022/02/23 00:00:00+00,2022/06/22 00:00:00+00,221596,3795,Revenue,Pear Marketing Ltd,614
Tunbridge Wells Borough Council,Cultural and Related Services,104,PK,Parks,Parks & Grounds,Wastewater & Drainage,2340,-,-,2022/05/20 00:00:00+00,2022/05/25 00:00:00+00,220748,277.17,Revenue,Business Stream,615
Tunbridge Wells Borough Council,Cultural and Related Services,104,AH,Assembly Hall,A-Hall Technical,Water Supply,2300,-,-,2021/10/05 00:00:00+00,2022/06/22 00:00:00+00,220728,3282.27,Revenue,Castle Water Ltd,616
Tunbridge Wells Borough Council,Cultural and Related Services,104,PK,Parks,Parks & Grounds,Ground Maint Non Contract,2060,-,-,2022/05/20 00:00:00+00,2022/05/25 00:00:00+00,220758,270,Revenue,D S Restoration,617
Tunbridge Wells Borough Council,Housing Services,108,HO,Housing,Properties On Loan,Rents/Hire Of Premises,2200,-,-,2022/04/19 00:00:00+00,2022/06/22 00:00:00+00,219711,2947.88,Revenue,Town And Country Housing Group,618
Tunbridge Wells Borough Council,Environmental and regulatory services ,105,CS,Client Services (Depot),Refuse Collection Services,External Contract Payments,3220,-,-,2022/04/30 00:00:00+00,2022/06/15 00:00:00+00,220110,258009.09,Revenue,Urbaser Ltd,619
Tunbridge Wells Borough Council,Cultural and related services,104,FI,Finance,Culture & Learning Hub,"Construction, Renovation, Etc",8311,-,-,2022/05/30 00:00:00+00,2022/05/30 00:00:00+00,220919,312736.61,Capital,Willmott Dixon Interiors Limited,620
Tunbridge Wells Borough Council,Environmental and regulatory services ,105,EH,Environmental Health,Sustainability,Equipment Purchase/Mtce,3000,Pembury Hospital 07/02595,RV0728,2022/06/13 00:00:00+00,2022/06/22 00:00:00+00,221424,2600,Revenue,Matts Monitors Ltd,621
Tunbridge Wells Borough Council,Environmental and regulatory services ,105,PS,Property Services,Benhall Mill Depot,Capital Fees External,8315,-,-,2022/05/26 00:00:00+00,2022/06/15 00:00:00+00,221194,22000,Capital,Perfect Circle Joint Venture Limited,622
Tunbridge Wells Borough Council,Highways and Transport Services,107,FI,Finance,Royal Victoria Place Car Park,Service Charges,2240,-,-,2022/05/26 00:00:00+00,2022/05/30 00:00:00+00,220809,166232.97,Revenue,Bl Tunbridge Wells Ltd,623
Tunbridge Wells Borough Council,Central Services,102,EL,Elections,Borough Elections,Rents/Hire Of Premises,2200,Borough Elections 220505,CS0424,2022/05/12 00:00:00+00,2022/05/18 00:00:00+00,220295,500,Revenue,St Barnabas Pcc,624
Tunbridge Wells Borough Council,Environmental and regulatory services ,105,CS,Client Services (Depot),Cleaner Borough,External Contract Payments,3220,-,-,2022/06/01 00:00:00+00,2022/06/22 00:00:00+00,221210,2412.9,Revenue,Viking Oak Kennels,625
Tunbridge Wells Borough Council,Cultural and Related Services,104,FI,Finance,Tw Ice Rink,Equipment Purchase/Mtce,3000,-,-,2022/05/31 00:00:00+00,2022/06/22 00:00:00+00,221137,2242,Revenue,Civica Uk Ltd,626
Tunbridge Wells Borough Council,Environmental and regulatory services ,105,CR,Crematorium,Crematorium,Agency Staff,100,-,-,2022/06/20 00:00:00+00,2022/06/22 00:00:00+00,221572,1894,Revenue,Lee Snashfold Crematoria Mgmt & Consultancy,627
Tunbridge Wells Borough Council,Central Services,102,FM,Facilities Management,Postal Charges Account,Cash Transfers,9100,-,-,2022/06/10 00:00:00+00,2022/06/22 00:00:00+00,221586,1309.06,Revenue,Royal Mail  Group Plc,628
Tunbridge Wells Borough Council,Cultural and Related Services,104,AH,Assembly Hall,A-Hall Council Shows,Show Fees,3380,220608-09 Jools Holland,A22F01,2022/06/14 00:00:00+00,2022/06/22 00:00:00+00,221591,1272.26,Revenue,Helicon Mountain Ltd,629
Tunbridge Wells Borough Council,Highways and Transport Services,107,PA,Parking,Parking Admin & Enforcement,External Training,204,-,-,2022/06/16 00:00:00+00,2022/06/22 00:00:00+00,221576,1186,Revenue,David Castle,630
Tunbridge Wells Borough Council,Environmental and regulatory services ,105,CR,Crematorium,Crematorium,Agency Staff,100,-,-,2022/06/20 00:00:00+00,2022/06/22 00:00:00+00,221573,1100,Revenue,Lee Snashfold Crematoria Mgmt & Consultancy,631
Tunbridge Wells Borough Council,Planning Services,110,ED,Economic Development,Economic Development,Subs To Organisations,3730,-,-,2022/03/07 00:00:00+00,2022/06/22 00:00:00+00,221417,1000,Revenue,Seven Wonders Of The Weald,632
Tunbridge Wells Borough Council,Environmental and regulatory services ,105,CS,Client Services (Depot),Cleaner Borough,Other Fees,3330,Fly Tipping,EV0353,2022/05/31 00:00:00+00,2022/06/22 00:00:00+00,221542,997.01,Revenue,Waste Way (Southern) Limited,633
Tunbridge Wells Borough Council,Housing Services,108,HO,Housing,Housing Needs Service,Agency Staff,100,Covid-19 Containment Outbreak,EV0496,2022/06/15 00:00:00+00,2022/06/22 00:00:00+00,221526,962,Revenue,G2 Recruitment Solutions Limited,634
Tunbridge Wells Borough Council,Cultural and Related Services,104,AH,Assembly Hall,A-Hall Management,Licences (Inc Prs/Ppl),3390,-,-,2022/05/25 00:00:00+00,2022/06/22 00:00:00+00,221222,960,Revenue,Sevenoaks District Council,635
Tunbridge Wells Borough Council,Central Services,102,LG,Legal Services,Legal Services,Postage,3500,-,-,2022/04/21 00:00:00+00,2022/06/22 00:00:00+00,221140,832.54,Revenue,Dx Network Services Ltd,636
Tunbridge Wells Borough Council,Central Services,102,FI,Finance,Digital Services,It Software,3590,-,-,2022/06/07 00:00:00+00,2022/06/22 00:00:00+00,221223,740,Revenue,Civica Uk Ltd,637
Tunbridge Wells Borough Council,Cultural and Related Services,104,PK,Parks,Parks & Grounds,Ground Maint Non Contract,2060,-,-,2022/06/13 00:00:00+00,2022/06/22 00:00:00+00,221393,675,Revenue,D S Restoration,638
Tunbridge Wells Borough Council,Cultural and Related Services,104,PK,Parks,Parks & Grounds,Ground Maint.Infrastructure,2063,-,-,2022/06/14 00:00:00+00,2022/06/22 00:00:00+00,221412,672,Revenue,Cps Ltd,639
Tunbridge Wells Borough Council,Housing Services,108,HO,Housing,Housing Needs Service,Projects & Initiatives,3910,Homelessness Prevention Suppor,EV0592,2022/05/17 00:00:00+00,2022/06/22 00:00:00+00,221338,650,Revenue,Ewemove Sales And Lettings,640
Tunbridge Wells Borough Council,Central Services,102,IT,Information & Communications Technology,I T Service,Computer Hardware,3580,-,-,2022/06/07 00:00:00+00,2022/06/22 00:00:00+00,221585,630.2,Revenue,Ccs Media Limited,641
Tunbridge Wells Borough Council,Highways and Transport Services,107,PS,Property Services,Crescent Road Car Park,Planned Maintenance Property,2009,-,-,2022/05/27 00:00:00+00,2022/06/22 00:00:00+00,221154,620,Revenue,Vkhp Consulting Limited,642
Tunbridge Wells Borough Council,Cultural and Related Services,104,PK,Parks,Parks & Grounds,Horticulture,2061,Britain In Bloom,PL0395,2022/06/11 00:00:00+00,2022/06/22 00:00:00+00,221418,550,Revenue,Complete Weed Control (Kent),643
Tunbridge Wells Borough Council,Central Services,102,CE,Chief Executive,Democratic Management,Member Development,203,-,-,2022/06/14 00:00:00+00,2022/06/22 00:00:00+00,221533,545,Revenue,Local Government Association,644
Tunbridge Wells Borough Council,Cultural and Related Services,104,PK,Parks,Parks & Grounds,Ground Maint Non Contract,2060,-,-,2022/06/10 00:00:00+00,2022/06/22 00:00:00+00,221414,544,Revenue,Playsafe Playgrounds Limited,645
Tunbridge Wells Borough Council,Central Services,102,PL,Planning,Accountancy,Photocopying Expenses,3180,Photocopying Consumables,EV0313,2022/06/01 00:00:00+00,2022/06/22 00:00:00+00,221198,532.34,Revenue,Canon Uk Limited,646
Tunbridge Wells Borough Council,Housing Services,108,HO,Housing,Temporary Accommodation,Telephone Costs,3510,Crescent Road Properties,EV0622,2022/06/19 00:00:00+00,2022/06/22 00:00:00+00,221635,492.83,Revenue,Bt Payphones,647
Tunbridge Wells Borough Council,Environmental and regulatory services ,105,IT,Information & Communications Technology,Cleaner Borough,Equipment Purchase/Mtce,3000,-,-,2022/06/14 00:00:00+00,2022/06/22 00:00:00+00,221544,450.27,Revenue,Insight Direct (Uk) Ltd,648
Tunbridge Wells Borough Council,Highways and Transport Services,107,PA,Parking,Crescent Road Car Park,Responsive Repairs Departments,2020,-,-,2022/06/13 00:00:00+00,2022/06/22 00:00:00+00,221531,450,Revenue,Hubdean Contracting Limited,649
Tunbridge Wells Borough Council,Planning Services,110,PL,Planning,Development Management,Planning Application Fees,5250,-,-,2022/06/07 00:00:00+00,2022/06/22 00:00:00+00,221339,412,Revenue,Portal Plan Quest Ltd,650
Tunbridge Wells Borough Council,Housing Services,108,HP,Housing (Private Sector),Disabled Facilities Grants,Capital Grants Payable,8355,-,-,2022/05/12 00:00:00+00,2022/05/18 00:00:00+00,220470,499.55,Capital,Alfa Electrics Ltd,651
Tunbridge Wells Borough Council,Central Services,102,FI,Finance,I T Service,Partnership Agreement,202,-,-,2022/05/26 00:00:00+00,2022/05/30 00:00:00+00,220485,128274.11,Revenue,Maidstone Borough Council,652
Tunbridge Wells Borough Council,Environmental and regulatory services ,105,CS,Client Services (Depot),Refuse Collection Services,External Contract Payments,3220,-,-,2021/04/30 00:00:00+00,2022/06/15 00:00:00+00,220107,21539.01,Revenue,Urbaser Ltd,653
Tunbridge Wells Borough Council,Planning Services,110,FI,Finance,Community & Grants,Grants,3750,-,-,2022/05/26 00:00:00+00,2022/05/30 00:00:00+00,220787,125000,Revenue,Tunbridge Wells Citizens Advice Bureau,654
Tunbridge Wells Borough Council,Housing Services,108,HP,Housing (Private Sector),Disabled Facilities Grants,Capital Grants Payable,8355,-,-,2022/05/17 00:00:00+00,2022/05/18 00:00:00+00,220509,499.55,Capital,Alfa Electrics Ltd,655
Tunbridge Wells Borough Council,Environmental and regulatory services ,105,CS,Client Services (Depot),Refuse Collection Services,External Contract Payments,3220,-,-,2022/05/01 00:00:00+00,2022/06/15 00:00:00+00,220816,21539.01,Revenue,Urbaser Ltd,656
Tunbridge Wells Borough Council,Central Services,102,FI,Finance,Revs & Bens Partnership,Partnership Agreement,202,-,-,2022/05/30 00:00:00+00,2022/05/30 00:00:00+00,220484,114889,Revenue,Maidstone Borough Council,657
Tunbridge Wells Borough Council,Cultural and Related Services,104,DS,Sundry Customer,Parks & Grounds,Ground Maint.Infrastructure,2063,-,-,2022/05/16 00:00:00+00,2022/05/18 00:00:00+00,220512,467.04,Revenue,This Data Has Been Redacted Under The Data Protection Act,658
Tunbridge Wells Borough Council,Environmental and regulatory services ,105,CU,Community Safty Unit,Cctv,External Contract Payments,3220,-,-,2022/05/31 00:00:00+00,2022/06/15 00:00:00+00,221212,17273.45,Revenue,Enigma Cctv Ltd,659
Tunbridge Wells Borough Council,Central Services,102,EL,Elections,Borough Elections,Rents/Hire Of Premises,2200,Borough Elections 220505,CS0424,2022/05/12 00:00:00+00,2022/05/18 00:00:00+00,220277,450,Revenue,St Thomas Church,660
Tunbridge Wells Borough Council,Cultural and Related Services,104,AH,Assembly Hall,A-Hall Council Shows,Show Fees,3380,Stewart Lee,A22E06,2022/05/25 00:00:00+00,2022/06/15 00:00:00+00,220979,16817.63,Revenue,Password Productions Limited,661
Tunbridge Wells Borough Council,Central Services,102,FI,Finance,Revs & Bens Administration,It Software,3590,-,-,2022/05/17 00:00:00+00,2022/05/18 00:00:00+00,219912,446.25,Revenue,Maidstone Borough Council,662
Tunbridge Wells Borough Council,Cultural and Related Services,104,AH,Assembly Hall,A-Hall Council Shows,Show Fees,3380,220422 Lost In Music,A22D05,2022/05/10 00:00:00+00,2022/06/15 00:00:00+00,220927,15718.58,Revenue,Entertainers Show Providers Ltd,663
Tunbridge Wells Borough Council,Housing Services,108,PS,Property Services,Dowding House,Responsive Repairs Property,2029,Property Contracts,PH0600,2022/04/30 00:00:00+00,2022/06/15 00:00:00+00,220957,13878.55,Revenue,G M Monk Ltd,664
Tunbridge Wells Borough Council,Cultural and Related Services,104,PK,Parks,Dunorlan Park,Ground Maint Non Contract,2060,-,-,2022/05/12 00:00:00+00,2022/05/18 00:00:00+00,220358,440,Revenue,Treework,665
Tunbridge Wells Borough Council,Housing Services,108,HO,Housing,Properties On Loan,Rents/Hire Of Premises,2200,-,-,2022/06/08 00:00:00+00,2022/06/15 00:00:00+00,221337,10414.35,Revenue,Town And Country Housing Group,666
Tunbridge Wells Borough Council,Environmental and regulatory services ,105,EH,Environmental Health,Food & Safety,Medical Fees,3340,-,-,2022/05/11 00:00:00+00,2022/05/18 00:00:00+00,220328,420.87,Revenue,"Blowey, Wood & Turrell",667
Tunbridge Wells Borough Council,Central Services,102,FI,Finance,Accountancy,Property Consultants,3290,-,-,2022/05/26 00:00:00+00,2022/06/15 00:00:00+00,221371,9950,Revenue,Gl Hearn Limited,668
Tunbridge Wells Borough Council,Cultural and Related Services,104,AH,Assembly Hall,A-Hall Council Shows,Show Fees,3380,220425 Tiger Who Came To Tea,A22D10,2022/05/21 00:00:00+00,2022/06/15 00:00:00+00,220933,9700.39,Revenue,Tigers Tea Ltd,669
Tunbridge Wells Borough Council,Central Services,102,CO,Communications,Communications And Engagement,Local Magazine,3155,-,-,2022/06/03 00:00:00+00,2022/06/15 00:00:00+00,221327,8316,Revenue,Cliffe Enterprise,670
Tunbridge Wells Borough Council,Housing Services,108,PS,Property Services,Dowding House,Maint/Serv Plant Property,2039,Property Contracts,PH0600,2022/04/30 00:00:00+00,2022/06/15 00:00:00+00,220959,7324.46,Revenue,G M Monk Ltd,671
Tunbridge Wells Borough Council,Cultural and Related Services,104,AH,Assembly Hall,A-Hall Council Shows,Show Fees,3380,220608-09 Jools Holland,A22F01,2022/06/08 00:00:00+00,2022/06/15 00:00:00+00,221363,5430,Revenue,Midland Sound & Lighting,672
Tunbridge Wells Borough Council,Cultural and Related Services,104,AH,Assembly Hall,A-Hall Council Shows,Licences (Inc Prs/Ppl),3390,220503 Dreamboats & Petticoats,A22E03,2022/05/23 00:00:00+00,2022/06/15 00:00:00+00,221092,4512.1,Revenue,Ppl Prs Ltd,673
Tunbridge Wells Borough Council,Cultural and Related Services,104,PS,Property Services,Camden Centre,Planned Maintenance Property,2009,Property Contracts,PH0600,2022/04/30 00:00:00+00,2022/06/15 00:00:00+00,220956,2874.06,Revenue,G M Monk Ltd,674
Tunbridge Wells Borough Council,Cultural and Related Services,104,AH,Assembly Hall,A-Hall Council Shows,Show Fees,3380,Stewart Lee,A22E06,2022/05/25 00:00:00+00,2022/06/15 00:00:00+00,221433,2764.73,Revenue,Password Productions Limited,675
Tunbridge Wells Borough Council,Highways and Transport Services,107,PA,Parking,Crescent Road Car Park,External Contract Security,3225,-,-,2022/05/31 00:00:00+00,2022/06/15 00:00:00+00,221336,2603.13,Revenue,Right Guard Security Uk Ltd,676
Tunbridge Wells Borough Council,Cultural and Related Services,104,AH,Assembly Hall,Events,Equipment Hire/Rent,3010,Queens Platinum Jubilee,EV0155,2022/06/09 00:00:00+00,2022/06/15 00:00:00+00,221355,2570,Revenue,Four Jays Group Ltd,677
Tunbridge Wells Borough Council,Housing Services,108,FM,Facilities Management,Dowding House,Trade Refuse Charges,2520,-,-,2022/05/31 00:00:00+00,2022/06/15 00:00:00+00,221356,2196.25,Revenue,Countrystyle Recycling Ltd,678
Tunbridge Wells Borough Council,Environmental and regulatory services ,105,CR,Crematorium,Crematorium,Agency Staff,100,-,-,2022/06/13 00:00:00+00,2022/06/15 00:00:00+00,221389,1894,Revenue,Lee Snashfold Crematoria Mgmt & Consultancy,679
Tunbridge Wells Borough Council,Central Services,102,EL,Elections,Borough Elections,Postage,3500,Borough Elections 220505,CS0424,2022/05/16 00:00:00+00,2022/06/15 00:00:00+00,221156,1842.08,Revenue,Royal Mail  Group Plc,680
Tunbridge Wells Borough Council,Environmental and regulatory services ,105,EH,Environmental Health,Footway Lighting-Tw & Rusthall,Street Lighting Mtce Contract,2035,-,-,2022/05/26 00:00:00+00,2022/06/15 00:00:00+00,220970,1734.57,Revenue,Psr Lighting & Signs Ltd,681
Tunbridge Wells Borough Council,Environmental and regulatory services ,105,CR,Crematorium,Crematorium,Agency Staff,100,-,-,2022/06/13 00:00:00+00,2022/06/15 00:00:00+00,221388,1650,Revenue,Lee Snashfold Crematoria Mgmt & Consultancy,682
Tunbridge Wells Borough Council,Central Services,102,FM,Facilities Management,Postal Charges Account,Cash Transfers,9100,-,-,2022/05/27 00:00:00+00,2022/06/15 00:00:00+00,221380,1579.36,Revenue,Royal Mail  Group Plc,683
Tunbridge Wells Borough Council,Central Services,102,EL,Elections,Borough Elections,Postage,3500,Borough Elections 220505,CS0424,2022/05/31 00:00:00+00,2022/06/15 00:00:00+00,221364,1562.07,Revenue,Royal Mail  Group Plc,684
Tunbridge Wells Borough Council,Housing Services,108,PS,Property Services,Dowding House,Fire & Security Property,2089,Property Contracts,PH0600,2022/04/30 00:00:00+00,2022/06/15 00:00:00+00,220961,1553.27,Revenue,G M Monk Ltd,685
Tunbridge Wells Borough Council,Housing Services,108,HO,Housing,Bed & Breakfast Costs,Rents/Hire Of Premises,2200,-,-,2022/05/31 00:00:00+00,2022/06/15 00:00:00+00,221118,1508,Revenue,Spa Caffe Ltd T/A Riverhill Motel & Teal Cafe,686
Tunbridge Wells Borough Council,Housing Services,108,PS,Property Services,Dowding House,Responsive Repairs Property,2029,Property Contracts,PH0600,2022/04/30 00:00:00+00,2022/06/15 00:00:00+00,220958,1380.19,Revenue,G M Monk Ltd,687
Tunbridge Wells Borough Council,Housing Services,108,HO,Housing,Bed & Breakfast Costs,Rents/Hire Of Premises,2200,-,-,2022/06/01 00:00:00+00,2022/06/15 00:00:00+00,221187,1333,Revenue,Paramount Independent Property Services Llp,688
Tunbridge Wells Borough Council,Central Services,102,FI,Finance,Childcare Vouchers Scheme,Creditors,9009,-,-,2022/06/07 00:00:00+00,2022/06/15 00:00:00+00,221225,1311.19,Revenue,Fideliti Ltd,689
Tunbridge Wells Borough Council,Central Services,102,PS,Property Services,Building Services,Property Consultants,3290,-,-,2021/11/30 00:00:00+00,2022/06/15 00:00:00+00,221229,1000,Revenue,On Architecture Ltd,690
Tunbridge Wells Borough Council,Environmental and regulatory services ,105,CR,Crematorium,Crematorium,Agency Staff,100,-,-,2022/06/07 00:00:00+00,2022/06/15 00:00:00+00,221213,757.6,Revenue,Lee Snashfold Crematoria Mgmt & Consultancy,691
Tunbridge Wells Borough Council,Central Services,102,FI,Finance,Exchequer Services,Consultants Fees,3292,Avc Consultant Costs,EV0828,2022/05/26 00:00:00+00,2022/06/15 00:00:00+00,221116,740.73,Revenue,Avc Wise Ltd,692
Tunbridge Wells Borough Council,Cultural and Related Services,104,MU,Museum,Npo - Arts Development,Projects & Initiatives,3910,-,-,2022/06/09 00:00:00+00,2022/06/15 00:00:00+00,221361,657.1,Revenue,Charles Alexander Distribution Ltd,693
Tunbridge Wells Borough Council,Cultural and Related Services,104,AB,Assembly Hall Bar,A-Hall Front Of House,Cogs-Show Riders,3095,-,-,2022/05/23 00:00:00+00,2022/06/15 00:00:00+00,220821,607,Revenue,Lw Drinks     (Formerly Ht White),694
Tunbridge Wells Borough Council,Environmental and regulatory services ,105,EH,Environmental Health,Food & Safety,Advertising Staff,230,-,-,2022/06/07 00:00:00+00,2022/06/15 00:00:00+00,221325,600,Revenue,Chartered Institute Of Environmental Health,695
Tunbridge Wells Borough Council,Environmental and regulatory services ,105,CR,Crematorium,Crematorium,Maint/Serv Plant Departments,2030,-,-,2022/06/10 00:00:00+00,2022/06/15 00:00:00+00,221419,594.91,Revenue,Facultatieve Technologies Ltd,696
Tunbridge Wells Borough Council,Housing Services,108,HO,Housing,Housing Needs Service,Agency Staff,100,Covid-19 Containment Outbreak,EV0496,2022/06/08 00:00:00+00,2022/06/15 00:00:00+00,221242,585,Revenue,G2 Recruitment Solutions Limited,697
Tunbridge Wells Borough Council,Housing Services,108,HO,Housing,Housing Needs Service,Agency Staff,100,Covid-19 Containment Outbreak,EV0496,2022/06/09 00:00:00+00,2022/06/15 00:00:00+00,221353,585,Revenue,G2 Recruitment Solutions Limited,698
Tunbridge Wells Borough Council,Cultural and Related Services,104,PK,Parks,Parks & Grounds,Horticulture,2061,Britain In Bloom,PL0395,2022/05/25 00:00:00+00,2022/06/15 00:00:00+00,221145,550,Revenue,Complete Weed Control (Kent),699
Tunbridge Wells Borough Council,Cultural and Related Services,104,AH,Assembly Hall,Cultural Events,Promotion,3450,-,-,2022/05/07 00:00:00+00,2022/06/15 00:00:00+00,221323,524,Revenue,Green Hippo Print Ltd,700
Tunbridge Wells Borough Council,Highways and Transport Services,107,PA,Parking,Parking Admin & Enforcement,Equipment Purchase/Mtce,3000,-,-,2022/05/24 00:00:00+00,2022/06/15 00:00:00+00,220934,504.11,Revenue,Francotyp Postalia Ltd,701
Tunbridge Wells Borough Council,Housing Services,108,PS,Property Services,Temporary Accommodation,Wastewater & Drainage,2340,Crescent Road Properties,EV0622,2022/06/01 00:00:00+00,2022/06/15 00:00:00+00,221243,446,Revenue,Southern Water (Sewerage Infrastructure),702
Tunbridge Wells Borough Council,Cultural and related services,104,PS,Property Services,Culture & Learning Hub,"Construction, Renovation, Etc",8311,-,-,2022/05/27 00:00:00+00,2022/06/15 00:00:00+00,221141,412,Capital,Kent Flush Doors & Joinery Ltd,703
Tunbridge Wells Borough Council,Environmental and regulatory services ,105,CU,Community Safty Unit,Community Safety,Projects & Initiatives,3910,Comm.Safety Partne,EV0088,2022/05/20 00:00:00+00,2022/06/15 00:00:00+00,221326,400,Revenue,Best Bar None Professional And Safer Venues,704
Tunbridge Wells Borough Council,Cultural and Related Services,104,MU,Museum,The Amelia Scott,Projects & Initiatives,3910,-,-,2022/05/27 00:00:00+00,2022/06/15 00:00:00+00,221005,375,Revenue,Ual Short Courses Ltd,705
Tunbridge Wells Borough Council,Cultural and Related Services,104,MU,Museum,The Amelia Scott,Projects & Initiatives,3910,-,-,2022/05/27 00:00:00+00,2022/06/15 00:00:00+00,221006,375,Revenue,Ual Short Courses Ltd,706
Tunbridge Wells Borough Council,Cultural and Related Services,104,MU,Museum,The Amelia Scott,Projects & Initiatives,3910,-,-,2022/05/27 00:00:00+00,2022/06/15 00:00:00+00,221007,375,Revenue,Ual Short Courses Ltd,707
Tunbridge Wells Borough Council,Cultural and Related Services,104,MU,Museum,The Amelia Scott,Projects & Initiatives,3910,-,-,2022/05/27 00:00:00+00,2022/06/15 00:00:00+00,221008,375,Revenue,Ual Short Courses Ltd,708
Tunbridge Wells Borough Council,Cultural and Related Services,104,AS,The Amelia,The Amelia Scott,Projects & Initiatives,3910,-,-,2022/05/16 00:00:00+00,2022/05/18 00:00:00+00,220062,400,Revenue,One Media And Creative Uk Ltd,709
Tunbridge Wells Borough Council,Cultural and Related Services,104,AS,The Amelia,The Amelia Scott,Projects & Initiatives,3910,-,-,2022/05/16 00:00:00+00,2022/05/18 00:00:00+00,220063,400,Revenue,One Media And Creative Uk Ltd,710
Tunbridge Wells Borough Council,Central Services,102,EL,Elections,Borough Elections,Rents/Hire Of Premises,2200,Borough Elections 220505,CS0424,2022/05/12 00:00:00+00,2022/05/18 00:00:00+00,220303,400,Revenue,Christ Church Pcc,711
Tunbridge Wells Borough Council,Central Services,102,EL,Elections,Borough Elections,Rents/Hire Of Premises,2200,Borough Elections 220505,CS0424,2022/05/12 00:00:00+00,2022/05/18 00:00:00+00,220307,400,Revenue,St John'S Pcc,712
Tunbridge Wells Borough Council,Central Services,102,EL,Elections,Borough Elections,Rents/Hire Of Premises,2200,Borough Elections 220505,CS0424,2022/05/12 00:00:00+00,2022/05/18 00:00:00+00,220309,400,Revenue,Headway In West Kent,713
Tunbridge Wells Borough Council,Highways and Transport Services,107,PS,Property Services,Crescent Road Car Park,Responsive Repairs Property,2029,Property Contracts,PH0600,2022/05/18 00:00:00+00,2022/05/18 00:00:00+00,219852,362,Revenue,Guideline Lift Services Ltd,714
Tunbridge Wells Borough Council,Environmental and regulatory services ,105,CS,Client Services (Depot),Cleaner Borough,Other Fees,3330,Fly Tipping,EV0353,2022/05/13 00:00:00+00,2022/05/18 00:00:00+00,220493,361.06,Revenue,Waste Way (Southern) Limited,715
Tunbridge Wells Borough Council,Central Services,102,EL,Elections,Borough Elections,Rents/Hire Of Premises,2200,Borough Elections 220505,CS0424,2022/05/12 00:00:00+00,2022/05/18 00:00:00+00,220282,360,Revenue,Matfield Village Hall,716
Tunbridge Wells Borough Council,Central Services,102,EL,Elections,Borough Elections,Rents/Hire Of Premises,2200,Borough Elections 220505,CS0424,2022/05/12 00:00:00+00,2022/05/18 00:00:00+00,220299,350,Revenue,The Salvation Army,717
Tunbridge Wells Borough Council,Central Services,102,EL,Elections,Borough Elections,Rents/Hire Of Premises,2200,Borough Elections 220505,CS0424,2022/05/12 00:00:00+00,2022/05/18 00:00:00+00,220301,350,Revenue,Trustees Of St Mark'S Parish Hall,718
Tunbridge Wells Borough Council,Cultural and Related Services,104,DS,Sundry Customer,The Amelia Scott,Show Fees,3380,220430 Kate Humble - Home Cook,C22D03,2022/05/18 00:00:00+00,2022/05/18 00:00:00+00,220528,350,Revenue,Miss F J Cloake,719
Tunbridge Wells Borough Council,Central Services,102,EL,Elections,Borough Elections,Rents/Hire Of Premises,2200,Borough Elections 220505,CS0424,2022/05/12 00:00:00+00,2022/05/18 00:00:00+00,220279,320,Revenue,Langton Green Charitable Trust,720
Tunbridge Wells Borough Council,Central Services,102,EL,Elections,Borough Elections,Rents/Hire Of Premises,2200,Borough Elections 220505,CS0424,2022/05/12 00:00:00+00,2022/05/18 00:00:00+00,220308,320,Revenue,St Luke'S Church Pcc,721
Tunbridge Wells Borough Council,Cultural and Related Services,104,AB,Assembly Hall Bar,The Amelia Scott,Show Fees,3380,-,-,2022/05/12 00:00:00+00,2022/05/18 00:00:00+00,220380,300,Revenue,Luna Lestrange,722
Tunbridge Wells Borough Council,Cultural and Related Services,104,AH,Assembly Hall,A-Hall Council Shows,Show Fees,3380,220608-09 Jools Holland,A22F01,2022/05/18 00:00:00+00,2022/05/18 00:00:00+00,220547,300,Revenue,Helicon Mountain Ltd,723
Tunbridge Wells Borough Council,Central Services,102,EL,Elections,Borough Elections,Rents/Hire Of Premises,2200,Borough Elections 220505,CS0424,2022/05/12 00:00:00+00,2022/05/18 00:00:00+00,220280,295.2,Revenue,Speldhurst Village Hall,724
Tunbridge Wells Borough Council,Central Services,102,EL,Elections,Borough Elections,Rents/Hire Of Premises,2200,Borough Elections 220505,CS0424,2022/05/12 00:00:00+00,2022/05/18 00:00:00+00,220298,288,Revenue,The Pcc Of St James',725
Tunbridge Wells Borough Council,Environmental and regulatory services ,105,EH,Environmental Health,Food & Safety,Agency Staff,100,Covid-19 Test & Trace Support,EV0490,2022/05/17 00:00:00+00,2022/05/18 00:00:00+00,220467,282.75,Revenue,Vivid Resourcing,726
Tunbridge Wells Borough Council,Cultural and Related Services,104,AB,Assembly Hall Bar,The Amelia Scott,Show Fees,3380,-,-,2022/05/17 00:00:00+00,2022/05/18 00:00:00+00,220498,280,Revenue,Felicity Furore,727
Tunbridge Wells Borough Council,Cultural and Related Services,104,DS,Sundry Customer,The Amelia Scott,Show Fees,3380,220430 Simon James Green - Gay,C22D07,2022/05/18 00:00:00+00,2022/05/18 00:00:00+00,220522,261.4,Revenue,Simon James Green,728
Tunbridge Wells Borough Council,Cultural and Related Services,104,AH,Assembly Hall,A-Hall Marketing,Promotion,3450,-,-,2022/05/18 00:00:00+00,2022/05/18 00:00:00+00,220494,258,Revenue,Green Hippo Print Ltd,729
Tunbridge Wells Borough Council,Central Services,102,EL,Elections,Borough Elections,Rents/Hire Of Premises,2200,Borough Elections 220505,CS0424,2022/05/12 00:00:00+00,2022/05/18 00:00:00+00,220285,256,Revenue,St Andrew'S Church,730
Tunbridge Wells Borough Council,Central Services,102,EL,Elections,Borough Elections,Rents/Hire Of Premises,2200,Borough Elections 220505,CS0424,2022/05/12 00:00:00+00,2022/05/18 00:00:00+00,220287,256,Revenue,Pembury Village Hall A/C,731
Tunbridge Wells Borough Council,Central Services,102,EL,Elections,Borough Elections,Rents/Hire Of Premises,2200,Borough Elections 220505,CS0424,2022/05/12 00:00:00+00,2022/05/18 00:00:00+00,220276,250,Revenue,St Matthew'S Church,732
Tunbridge Wells Borough Council,Cultural and Related Services,104,DS,Sundry Customer,The Amelia Scott,Show Fees,3380,-,-,2022/05/18 00:00:00+00,2022/05/18 00:00:00+00,220524,250,Revenue,The Violet Jive,733
Tunbridge Wells Borough Council,Cultural and Related Services,104,AH,Assembly Hall,A-Hall Council Shows,Show Fees,3380,211019-24 The Play That Goes W,A21K03,2022/05/24 00:00:00+00,2022/05/25 00:00:00+00,220743,76406.68,Revenue,Goes Wrong Tours Ltd,734
Tunbridge Wells Borough Council,Cultural and Related Services,104,AH,Assembly Hall,A-Hall Council Shows,Show Fees,3380,220329 A Murder Is Announced,A22C09,2022/05/20 00:00:00+00,2022/05/25 00:00:00+00,220578,29069.08,Revenue,Middle Ground Theatre Company Ltd,735
Tunbridge Wells Borough Council,Cultural and related services,104,MU,Museum,Culture & Learning Hub,Capital Fees External,8315,-,-,2022/05/19 00:00:00+00,2022/05/25 00:00:00+00,220537,12705,Capital,Spider Project Management Ltd,736
Tunbridge Wells Borough Council,Central Services,102,IT,Information & Communications Technology,I T Service,Computer Hardware,3580,-,-,2022/05/20 00:00:00+00,2022/05/25 00:00:00+00,220249,10351,Revenue,Dataquest Heathrow Ltd Prev Cc Engineering,737
Tunbridge Wells Borough Council,Cultural and Related Services,104,AH,Assembly Hall,A-Hall Council Shows,Show Fees,3380,220424 Nish Kumar,A22D03,2022/05/25 00:00:00+00,2022/05/25 00:00:00+00,220779,8859.6,Revenue,Little Wander Ltd,738
Tunbridge Wells Borough Council,Housing Services,108,HO,Housing,Housing Needs Service,Homelessness Expenses,3912,-,-,2022/05/23 00:00:00+00,2022/05/25 00:00:00+00,220763,6903.67,Revenue,This Data Has Been Redacted Under The Data Protection Act,739
Tunbridge Wells Borough Council,Housing Services,108,HP,Housing (Private Sector),Disabled Facilities Grants,Capital Grants Payable,8355,-,-,2022/05/25 00:00:00+00,2022/05/25 00:00:00+00,220773,6092.28,Capital,The Build Works Ltd,740
Tunbridge Wells Borough Council,Cultural and Related Services,104,AH,Assembly Hall,Events,Events,3420,Queens Platinum Jubilee,EV0155,2022/05/25 00:00:00+00,2022/05/25 00:00:00+00,220775,5500,Revenue,This Data Has Been Redacted Under The Data Protection Act,741
Tunbridge Wells Borough Council,Environmental and regulatory services ,105,FI,Finance,Health & Safety,Equipment Purchase/Mtce,3000,-,-,2022/05/25 00:00:00+00,2022/05/25 00:00:00+00,220133,5287.85,Revenue,Contego Safety Solutions Ltd,742
Tunbridge Wells Borough Council,Cultural and related services,104,MU,Museum,Culture & Learning Hub,Capital Fees External,8315,-,-,2022/05/25 00:00:00+00,2022/05/25 00:00:00+00,220740,5080.95,Capital,Northgate Solar Controls Ltd,743
Tunbridge Wells Borough Council,Environmental and regulatory services ,105,FI,Finance,Health & Safety,Equipment Purchase/Mtce,3000,-,-,2022/05/25 00:00:00+00,2022/05/25 00:00:00+00,220339,3601.5,Revenue,Skyguard Ltd,744
Tunbridge Wells Borough Council,Central Services,102,GW,Gateway Customer Services,Gateway,Agency Staff,100,-,-,2022/05/23 00:00:00+00,2022/05/25 00:00:00+00,220375,3388,Revenue,Recruitment Solutions,745
Tunbridge Wells Borough Council,Planning Services,110,PL,Planning,Development Management,Planning Consultant Fees,3270,-,-,2022/05/24 00:00:00+00,2022/05/25 00:00:00+00,220741,3250,Revenue,Dixon Searle Partnership Ltd,746
Tunbridge Wells Borough Council,Housing Services,108,LG,Legal Services,Property,Legal Fees,3260,-,-,2022/05/25 00:00:00+00,2022/05/25 00:00:00+00,220765,3000,Revenue,Cornerstone Barristers,747
Tunbridge Wells Borough Council,Cultural and Related Services,104,FM,Facilities Management,The Amelia Scott,External Contract Security,3225,-,-,2022/05/18 00:00:00+00,2022/05/25 00:00:00+00,218582,2755,Revenue,Js Facilities Management Ltd,748
Tunbridge Wells Borough Council,Cultural and Related Services,104,AH,Assembly Hall,A-Hall Council Shows,Show Fees,3380,220507 Sound Of Springsteen,A22E01,2022/05/25 00:00:00+00,2022/05/25 00:00:00+00,220776,2708.24,Revenue,Barry Collins Entertainments,749
Tunbridge Wells Borough Council,Housing Services,108,HO,Housing,Housing Needs Service,Homelessness Expenses,3912,-,-,2022/05/25 00:00:00+00,2022/05/25 00:00:00+00,220796,2450.28,Revenue,This Data Has Been Redacted Under The Data Protection Act,750
Tunbridge Wells Borough Council,Cultural and Related Services,104,PS,Property Services,Dunorlan Park,Planned Maintenance Property,2009,-,-,2022/06/14 00:00:00+00,2022/06/22 00:00:00+00,221532,400,Revenue,Stratford Carpentry Services,751
Tunbridge Wells Borough Council,Cultural and Related Services,104,PK,Parks,Parks & Grounds,Equipment Purchase/Mtce,3000,-,-,2022/05/31 00:00:00+00,2022/06/22 00:00:00+00,221164,388,Revenue,Barnsley Lock & Safe Co Ltd,752
Tunbridge Wells Borough Council,Highways and Transport Services,107,FI,Finance,Parking Admin & Enforcement,Fuel & Oil,1010,-,-,2022/05/31 00:00:00+00,2022/06/22 00:00:00+00,221166,344.57,Revenue,Fuel Card Services Ltd,753
Tunbridge Wells Borough Council,Cultural and Related Services,104,AH,Assembly Hall,A-Hall Box Office,Ticket Protection-Expenditure,3193,-,-,2022/06/11 00:00:00+00,2022/06/22 00:00:00+00,221425,340,Revenue,Booking Protect Ltd,754
Tunbridge Wells Borough Council,Central Services,102,IT,Information & Communications Technology,I T Service,Computer Hardware,3580,-,-,2022/06/13 00:00:00+00,2022/06/22 00:00:00+00,221434,338.7,Revenue,Insight Direct (Uk) Ltd,755
Tunbridge Wells Borough Council,Cultural and Related Services,104,AB,Assembly Hall Bar,A-Hall Front Of House,Cogs - Drink,3091,-,-,2022/06/13 00:00:00+00,2022/06/22 00:00:00+00,221436,289.97,Revenue,Lw Drinks     (Formerly Ht White),756
Tunbridge Wells Borough Council,Environmental and regulatory services ,105,CR,Crematorium,Crematorium,Equipment Purchase/Mtce,3000,-,-,2022/05/31 00:00:00+00,2022/06/22 00:00:00+00,221158,250,Revenue,Hospice In The Weald,757
Tunbridge Wells Borough Council,Central Services,102,RB,Revs & Bens,Revs & Bens Administration,Legal Fees,3260,-,-,2022/06/15 00:00:00+00,2022/06/22 00:00:00+00,221540,250,Revenue,Strategic Intelligence & Risk Services Europe,758
Tunbridge Wells Borough Council,Highways and Transport Services,107,FI,Finance,Royal Victoria Place Car Park,Service Charges,2240,-,-,2022/05/17 00:00:00+00,2022/06/29 00:00:00+00,221877,166232.97,Revenue,Bl Tunbridge Wells Ltd,759
Tunbridge Wells Borough Council,Central Services,102,FI,Finance,Fraud & Visiting Partnership,Partnership Agreement,202,-,-,2022/06/16 00:00:00+00,2022/06/29 00:00:00+00,221546,28112.05,Revenue,Maidstone Borough Council,760
Tunbridge Wells Borough Council,Cultural and related services,104,MU,Museum,Culture & Learning Hub,Capital Fees External,8315,-,-,2022/06/27 00:00:00+00,2022/06/29 00:00:00+00,221856,16000,Capital,Purcell Architecture Ltd,761
Tunbridge Wells Borough Council,Environmental and regulatory services ,105,LI,Licensing,Licensing,Partnership Agreement,202,-,-,2022/06/08 00:00:00+00,2022/06/29 00:00:00+00,221349,10787,Revenue,Sevenoaks District Council,762
Tunbridge Wells Borough Council,Planning Services,110,PL,Planning,Development Management,Planning Consultant Fees,3270,-,-,2022/06/20 00:00:00+00,2022/06/29 00:00:00+00,221824,9483,Revenue,Iceni Projects Limited,763
Tunbridge Wells Borough Council,Cultural and Related Services,104,AH,Assembly Hall,A-Hall Hire Shows,Ticket Repayment,5421,220611 Stagecoach,A22T03,2022/06/22 00:00:00+00,2022/06/29 00:00:00+00,221763,8179.6,Revenue,Stagecoach Tunbridge Wells,764
Tunbridge Wells Borough Council,Highways and Transport Services,107,FI,Finance,Parking Admin & Enforcement,Equipment Purchase/Mtce,3000,Bus Lane Enforcement,PT0230,2022/06/23 00:00:00+00,2022/06/29 00:00:00+00,221790,7776.96,Revenue,Systems Engineering & Assessment Ltd,765
Tunbridge Wells Borough Council,Housing Services,108,HP,Housing (Private Sector),Disabled Facilities Grants,Capital Grants Payable,8355,-,-,2022/06/07 00:00:00+00,2022/06/29 00:00:00+00,221224,7500.64,Capital,Town And Country Housing Group,766
Tunbridge Wells Borough Council,Cultural and related services,104,MU,Museum,Culture & Learning Hub,Capital Fees External,8315,-,-,2022/06/06 00:00:00+00,2022/06/29 00:00:00+00,221857,6532.5,Capital,Spider Project Management Ltd,767
Tunbridge Wells Borough Council,Environmental and regulatory services ,105,CU,Community Safty Unit,Cctv,Equipment Purchase/Mtce,3000,-,-,2022/06/16 00:00:00+00,2022/06/29 00:00:00+00,221825,6447.8,Revenue,Chroma Vision Limited,768
Tunbridge Wells Borough Council,Planning Services,110,PL,Planning,Planning Management,Books & Publications,3190,-,-,2022/04/25 00:00:00+00,2022/06/29 00:00:00+00,221778,4600,Revenue,Haymarket Subscriptions,769
Tunbridge Wells Borough Council,Housing Services,108,HP,Housing (Private Sector),Disabled Facilities Grants,Capital Grants Payable,8355,-,-,2022/06/14 00:00:00+00,2022/06/29 00:00:00+00,221429,3980,Capital,Town And Country Housing Group,770
Tunbridge Wells Borough Council,Housing Services,108,HP,Housing (Private Sector),Disabled Facilities Grants,Capital Grants Payable,8355,-,-,2022/06/14 00:00:00+00,2022/06/29 00:00:00+00,221430,3980,Capital,Town And Country Housing Group,771
Tunbridge Wells Borough Council,Housing Services,108,HP,Housing (Private Sector),Disabled Facilities Grants,Capital Grants Payable,8355,-,-,2022/06/15 00:00:00+00,2022/06/29 00:00:00+00,221439,3980,Capital,Town And Country Housing Group,772
Tunbridge Wells Borough Council,Planning Services,110,PL,Planning,Development Management,Planning Consultant Fees,3270,-,-,2022/04/27 00:00:00+00,2022/06/29 00:00:00+00,221377,3707.9,Revenue,Hankinson Duckett Associates,773
Tunbridge Wells Borough Council,Cultural and Related Services,104,AH,Assembly Hall,Events,Equipment Hire/Rent,3010,Queens Platinum Jubilee,EV0155,2022/06/20 00:00:00+00,2022/06/29 00:00:00+00,221756,3000,Revenue,S K F Contractors Ltd,774
Tunbridge Wells Borough Council,Environmental and regulatory services ,105,CU,Community Safty Unit,Community Safety,Projects & Initiatives,3910,Comm.Safety Partne,EV0088,2022/06/18 00:00:00+00,2022/06/29 00:00:00+00,221641,2500,Revenue,Tunbridge Wells Street Pastors,775
Tunbridge Wells Borough Council,Housing Services,108,HO,Housing,Properties On Loan,Rents/Hire Of Premises,2200,-,-,2022/06/24 00:00:00+00,2022/06/29 00:00:00+00,221867,2475,Revenue,Premier Kent Properties Ltd  T/A Kings,776
Tunbridge Wells Borough Council,Housing Services,108,HO,Housing,Properties On Loan,Rents/Hire Of Premises,2200,-,-,2022/06/24 00:00:00+00,2022/06/29 00:00:00+00,221868,2475,Revenue,Premier Kent Properties Ltd  T/A Kings,777
Tunbridge Wells Borough Council,Central Services,102,FM,Facilities Management,Postal Charges Account,Cash Transfers,9100,-,-,2022/06/17 00:00:00+00,2022/06/29 00:00:00+00,221788,2007.57,Revenue,Royal Mail  Group Plc,778
Tunbridge Wells Borough Council,Planning Services,110,FI,Finance,Community & Grants,Grants,3750,-,-,2022/06/27 00:00:00+00,2022/06/29 00:00:00+00,221851,1650,Revenue,Royal Tunbridge Wells Festivals Ltd,779
Tunbridge Wells Borough Council,Cultural and Related Services,104,CE,Chief Executive,The Amelia Scott,Telephone Costs,3510,-,-,2022/03/08 00:00:00+00,2022/06/29 00:00:00+00,221766,1508.01,Revenue,Gamma Telecom Ltd,780
Tunbridge Wells Borough Council,Cultural and related services,104,PS,Property Services,Culture & Learning Hub,"Construction, Renovation, Etc",8311,-,-,2022/06/24 00:00:00+00,2022/06/29 00:00:00+00,221797,1506.8,Capital,Hailsham Roadways Construction Co Limited,781
Tunbridge Wells Borough Council,Cultural and Related Services,104,AH,Assembly Hall,Events,Equipment Hire/Rent,3010,Queens Platinum Jubilee,EV0155,2022/05/30 00:00:00+00,2022/06/29 00:00:00+00,221798,1450,Revenue,Platinum Ambulance Service Ltd,782
Tunbridge Wells Borough Council,Environmental and regulatory services ,105,CR,Crematorium,Crematorium,Agency Staff,100,-,-,2022/06/27 00:00:00+00,2022/06/29 00:00:00+00,221820,1404,Revenue,Lee Snashfold Crematoria Mgmt & Consultancy,783
Tunbridge Wells Borough Council,Housing Services,108,HP,Housing (Private Sector),Disabled Facilities Grants,Capital Grants Payable,8355,-,-,2022/06/08 00:00:00+00,2022/06/29 00:00:00+00,221432,1400,Capital,Town And Country Housing Group,784
Tunbridge Wells Borough Council,Central Services,102,HR,Human Resources,Human Resources,Salaries,20,-,-,2022/06/06 00:00:00+00,2022/06/29 00:00:00+00,221192,1350.13,Revenue,Recruitment Solutions,785
Tunbridge Wells Borough Council,Cultural and Related Services,104,AB,Assembly Hall Bar,A-Hall Front Of House,Cogs - Drink,3091,-,-,2022/06/20 00:00:00+00,2022/06/29 00:00:00+00,221636,1330.36,Revenue,Lw Drinks     (Formerly Ht White),786
Tunbridge Wells Borough Council,Central Services,102,EL,Elections,Borough Elections,Postage,3500,-,-,2022/06/21 00:00:00+00,2022/06/29 00:00:00+00,221753,1249.35,Revenue,Financial Data Management Ltd,787
Tunbridge Wells Borough Council,Cultural and Related Services,104,AH,Assembly Hall,A-Hall Marketing,Promotion,3450,-,-,2022/05/31 00:00:00+00,2022/06/29 00:00:00+00,221645,1215.11,Revenue,Force24 Ltd,788
Tunbridge Wells Borough Council,Environmental and regulatory services ,105,CR,Crematorium,Crematorium,Agency Staff,100,-,-,2022/06/27 00:00:00+00,2022/06/29 00:00:00+00,221819,1100,Revenue,Lee Snashfold Crematoria Mgmt & Consultancy,789
Tunbridge Wells Borough Council,Cultural and Related Services,104,AH,Assembly Hall,The Amelia Scott,Promotion,3450,-,-,2022/04/17 00:00:00+00,2022/06/29 00:00:00+00,221760,960,Revenue,Reach Publishing Services Ltd,790
Tunbridge Wells Borough Council,Central Services,102,HP,Housing (Private Sector),Ukrainian Support,Agency Staff,100,-,-,2022/06/08 00:00:00+00,2022/06/29 00:00:00+00,221372,910.1,Revenue,Vivid Resourcing,791
Tunbridge Wells Borough Council,Cultural and Related Services,104,CE,Chief Executive,The Amelia Scott,Telephone Costs,3510,-,-,2022/06/10 00:00:00+00,2022/06/29 00:00:00+00,221415,886.43,Revenue,Gamma Telecom Ltd,792
Tunbridge Wells Borough Council,Planning Services,110,LG,Legal Services,Head Of Economic Development,Legal Fees,3260,-,-,2022/06/21 00:00:00+00,2022/06/29 00:00:00+00,221649,787.45,Revenue,Beckwith Consulting Ltd,793
Tunbridge Wells Borough Council,Environmental and regulatory services ,105,CR,Crematorium,Crematorium,Agency Staff,100,-,-,2022/06/27 00:00:00+00,2022/06/29 00:00:00+00,221827,757.6,Revenue,Lee Snashfold Crematoria Mgmt & Consultancy,794
Tunbridge Wells Borough Council,Cultural and Related Services,104,AH,Assembly Hall,Events,Equipment Hire/Rent,3010,Queens Platinum Jubilee,EV0155,2022/06/22 00:00:00+00,2022/06/29 00:00:00+00,221784,724,Revenue,Green Hippo Print Ltd,795
Tunbridge Wells Borough Council,Cultural and Related Services,104,AB,Assembly Hall Bar,A-Hall Front Of House,Cogs - Confectionery,3094,-,-,2022/06/20 00:00:00+00,2022/06/29 00:00:00+00,221600,673.92,Revenue,Taywell Ice Creams Limited,796
Tunbridge Wells Borough Council,Cultural and Related Services,104,MU,Museum,Cultural Hub,Projects & Initiatives,3910,Primary Teacher Panel,AP0033,2022/05/27 00:00:00+00,2022/06/29 00:00:00+00,221642,630,Revenue,Copper Leaf Media Ltd,797
Tunbridge Wells Borough Council,Cultural and Related Services,104,MU,Museum,The Amelia Scott,Projects & Initiatives,3910,-,-,2022/06/23 00:00:00+00,2022/06/29 00:00:00+00,221791,611.6,Revenue,Trinity Theatre & Arts Centre Ltd,798
Tunbridge Wells Borough Council,Planning Services,110,BC,Building Control,Building Control,External Training,204,-,-,2022/04/13 00:00:00+00,2022/06/29 00:00:00+00,221332,600,Revenue,District Surveyors Association Limited,799
Tunbridge Wells Borough Council,Planning Services,110,CF,Confidential Internal Payment Requests,Head Of Economic Development,Legal Fees,3260,-,-,2022/06/01 00:00:00+00,2022/06/29 00:00:00+00,221400,600,Revenue,Robson & Co,800
Tunbridge Wells Borough Council,Planning Services,110,PL,Planning,Kcc - Planning Contributions,Creditors,9009,19/01099 Plot29 12Maidstone Rd,RV0851,2022/06/23 00:00:00+00,2022/07/27 00:00:00+00,222548,253683.07,Revenue,Kent County Council,801
Tunbridge Wells Borough Council,Environmental and regulatory services ,105,CR,Crematorium,Crematorium,Agency Staff,100,-,-,2022/07/04 00:00:00+00,2022/07/13 00:00:00+00,222051,1100,Revenue,Lee Snashfold Crematoria Mgmt & Consultancy,802
Tunbridge Wells Borough Council,Cultural and Related Services,104,AH,Assembly Hall,A-Hall Hire Shows,Administration Fee Income,5430,220711 Anton & Giovanni,A22U01,2022/07/20 00:00:00+00,2022/07/27 00:00:00+00,222567,40034,Revenue,Strictly Theatre Co,803
Tunbridge Wells Borough Council,Housing Services,108,HO,Housing,Housing Needs Service,Agency Staff,100,Covid-19 Containment Outbreak,EV0496,2022/07/06 00:00:00+00,2022/07/13 00:00:00+00,222129,962,Revenue,G2 Recruitment Solutions Limited,804
Tunbridge Wells Borough Council,Environmental and regulatory services ,105,FM,Facilities Management,North Farm Depot,Contract Cleaning,2510,-,-,2022/05/31 00:00:00+00,2022/07/27 00:00:00+00,222344,18299.93,Revenue,Churchill Contract Services Limited,805
Tunbridge Wells Borough Council,Environmental and regulatory services ,105,EH,Environmental Health,Health Improvement,External Training,204,-,-,2022/07/06 00:00:00+00,2022/07/13 00:00:00+00,222119,900,Revenue,Counterweight Limited,806
Tunbridge Wells Borough Council,Environmental and regulatory services ,105,FM,Facilities Management,North Farm Depot,Contract Cleaning,2510,-,-,2022/07/13 00:00:00+00,2022/07/27 00:00:00+00,222348,18299.93,Revenue,Churchill Contract Services Limited,807
Tunbridge Wells Borough Council,Planning Services,110,PL,Planning,Development Management,Planning Consultant Fees,3270,-,-,2022/07/06 00:00:00+00,2022/07/13 00:00:00+00,222121,900,Revenue,Dixon Searle Partnership Ltd,808
Tunbridge Wells Borough Council,Environmental and regulatory services ,105,CR,Crematorium,Crematorium,Maint/Serv Plant Departments,2030,-,-,2022/07/21 00:00:00+00,2022/07/27 00:00:00+00,222587,17808.63,Revenue,Facultatieve Technologies Ltd,809
Tunbridge Wells Borough Council,Central Services,102,HR,Human Resources,Human Resources,Salaries,20,-,-,2022/06/10 00:00:00+00,2022/07/13 00:00:00+00,221386,886.81,Revenue,Recruitment Solutions,810
Tunbridge Wells Borough Council,Housing Services,108,PS,Property Services,Temporary Accommodation,Planned Maintenance Property,2009,Property Contracts,PH0600,2022/05/31 00:00:00+00,2022/07/13 00:00:00+00,221860,882.44,Revenue,G M Monk Ltd,811
Tunbridge Wells Borough Council,Cultural and Related Services,104,AH,Assembly Hall,A-Hall Technical,Equipment Purchase/Mtce,3000,-,-,2022/06/29 00:00:00+00,2022/07/13 00:00:00+00,222122,790,Revenue,Aluminium Access Products Ltd,812
Tunbridge Wells Borough Council,Environmental and regulatory services ,105,EH,Environmental Health,Food & Safety,Medical Fees,3340,-,-,2022/06/30 00:00:00+00,2022/07/13 00:00:00+00,222042,756.27,Revenue,Anton Vets Ltd,813
Tunbridge Wells Borough Council,Environmental and regulatory services ,105,FM,Facilities Management,Public Conveniences,Projects & Initiatives,3910,Community Toilet Scheme,EV0419,2022/02/25 00:00:00+00,2022/07/13 00:00:00+00,222155,600,Revenue,Capel Parish Council,814
Tunbridge Wells Borough Council,Central Services,102,EL,Elections,Borough Elections,Postage,3500,Borough Elections 220505,CS0424,2022/06/20 00:00:00+00,2022/07/13 00:00:00+00,221959,579.65,Revenue,Royal Mail  Group Plc,815
Tunbridge Wells Borough Council,Planning Services,110,PL,Planning,Development Management,Planning Application Fees,5250,-,-,2022/06/30 00:00:00+00,2022/07/13 00:00:00+00,222017,462,Revenue,Portal Plan Quest Ltd,816
Tunbridge Wells Borough Council,Environmental and regulatory services ,105,CS,Client Services (Depot),Cleaner Borough,Lease Of Vehicles,1090,-,-,2022/04/27 00:00:00+00,2022/07/13 00:00:00+00,222032,400.72,Revenue,Ton Tyre Auto Ltd Ta Ton Hire,817
Tunbridge Wells Borough Council,Planning Services,110,PL,Planning,Planning Policy,Planning Consultant Fees,3270,New Local Plan,EV0589,2022/04/29 00:00:00+00,2022/07/13 00:00:00+00,222130,378,Revenue,Wealden Advertiser Limited,818
Tunbridge Wells Borough Council,Environmental and regulatory services ,105,EH,Environmental Health,Food & Safety,Agency Staff,100,-,-,2022/06/29 00:00:00+00,2022/07/13 00:00:00+00,222011,312,Revenue,Vivid Resourcing,819
Tunbridge Wells Borough Council,Cultural and Related Services,104,AH,Assembly Hall,A-Hall Marketing,Promotion,3450,-,-,2022/06/29 00:00:00+00,2022/07/13 00:00:00+00,222014,288,Revenue,Green Hippo Print Ltd,820
Tunbridge Wells Borough Council,Central Services,102,FI,Finance,Ukrainian Support,Mobile Phone Costs,3520,-,-,2022/07/07 00:00:00+00,2022/07/13 00:00:00+00,222132,278,Revenue,O2 Uk Limited,821
Tunbridge Wells Borough Council,Cultural and Related Services,104,AH,Assembly Hall,The Amelia Scott,Promotion,3450,-,-,2022/05/16 00:00:00+00,2022/07/13 00:00:00+00,222170,2926.07,Revenue,Modus Film Productions Ltd,822
Tunbridge Wells Borough Council,Environmental and regulatory services ,105,CU,Community Safty Unit,Cctv,External Contract Payments,3220,-,-,2022/05/09 00:00:00+00,2022/07/13 00:00:00+00,222145,2614,Revenue,Sevenoaks District Council,823
Tunbridge Wells Borough Council,Environmental and regulatory services ,105,CU,Community Safty Unit,Cctv,External Contract Payments,3220,-,-,2022/06/07 00:00:00+00,2022/07/13 00:00:00+00,222146,2529.5,Revenue,Sevenoaks District Council,824
Tunbridge Wells Borough Council,Central Services,102,HR,Human Resources,Staff Welfare,Awards & Prizes,3430,-,-,2022/07/11 00:00:00+00,2022/07/13 00:00:00+00,222202,2000,Revenue,Edenred (Uk Group) Limited,825
Tunbridge Wells Borough Council,Environmental and regulatory services ,105,CR,Crematorium,Crematorium,Agency Staff,100,-,-,2022/07/11 00:00:00+00,2022/07/13 00:00:00+00,222185,1894,Revenue,Lee Snashfold Crematoria Mgmt & Consultancy,826
Tunbridge Wells Borough Council,Cultural and Related Services,104,MU,Museum,The Amelia Scott,Show Fees,3380,-,-,2022/06/30 00:00:00+00,2022/07/13 00:00:00+00,222113,1718.3,Revenue,Constantine Limited,827
Tunbridge Wells Borough Council,Environmental and regulatory services ,105,CR,Crematorium,Crematorium,Agency Staff,100,-,-,2022/07/11 00:00:00+00,2022/07/13 00:00:00+00,222184,1650,Revenue,Lee Snashfold Crematoria Mgmt & Consultancy,828
Tunbridge Wells Borough Council,Cultural and Related Services,104,PK,Parks,Parks & Grounds,Ground Maint.Infrastructure,2063,-,-,2022/07/06 00:00:00+00,2022/07/13 00:00:00+00,222157,1210.31,Revenue,Streetmaster (South Wales) Ltd,829
Tunbridge Wells Borough Council,Environmental and regulatory services ,105,PS,Property Services,North Farm Depot,Maint/Serv Plant Property,2039,Property Contracts,PH0600,2022/06/17 00:00:00+00,2022/07/13 00:00:00+00,221558,982.83,Revenue,Guideline Lift Services Ltd,830
Tunbridge Wells Borough Council,Cultural and Related Services,104,CE,Chief Executive,The Amelia Scott,Telephone Costs,3510,-,-,2022/07/08 00:00:00+00,2022/07/13 00:00:00+00,222208,821.62,Revenue,Gamma Telecom Ltd,831
Tunbridge Wells Borough Council,Environmental and regulatory services ,105,HP,Housing (Private Sector),Crematorium,Cogs - Urns,3081,-,-,2022/06/29 00:00:00+00,2022/06/30 00:00:00+00,222013,810,Revenue,Town And Country Housing Group,832
Tunbridge Wells Borough Council,Environmental and regulatory services ,105,CS,Client Services (Depot),Cleaner Borough,Seats & Bollards,2032,-,-,2022/07/18 00:00:00+00,2022/07/27 00:00:00+00,222428,350,Revenue,S K F Contractors Ltd,833
Tunbridge Wells Borough Council,Cultural and Related Services,104,AH,Assembly Hall,Events,Equipment Hire/Rent,3010,Queens Platinum Jubilee,EV0155,2022/07/26 00:00:00+00,2022/08/03 00:00:00+00,222734,1162.8,Revenue,Royal Tunbridge Wells Round Table,834
Tunbridge Wells Borough Council,Environmental and regulatory services ,105,CS,Client Services (Depot),Refuse Collection Services,Equipment Purchase/Mtce,3000,-,-,2022/07/20 00:00:00+00,2022/07/27 00:00:00+00,222612,13500,Revenue,Mgb Plastics Ltd (One 51 Plastics),835
Tunbridge Wells Borough Council,Housing Services,108,HO,Housing,Housing Needs Service,Projects & Initiatives,3910,Rough Sleepers,EV0582,2022/07/08 00:00:00+00,2022/07/13 00:00:00+00,222183,788.84,Revenue,Town And Country Housing Group,836
Tunbridge Wells Borough Council,Planning Services,110,PL,Planning,Development Management,Planning Consultant Fees,3270,-,-,2022/04/20 00:00:00+00,2022/07/13 00:00:00+00,222209,720,Revenue,Iceni Projects Limited,837
Tunbridge Wells Borough Council,Environmental and regulatory services ,105,CS,Client Services (Depot),North Farm Depot,Fire & Security Property,2089,-,-,2022/07/01 00:00:00+00,2022/07/13 00:00:00+00,222191,512.12,Revenue,Atlas Facilities Management Ltd (Was Emprise),838
Tunbridge Wells Borough Council,Planning Services,110,FM,Facilities Management,Building Control,Vehicle Repairs & Sundries,1040,-,-,2022/07/07 00:00:00+00,2022/07/13 00:00:00+00,222165,288.45,Revenue,John Page Trailers Limited,839
Tunbridge Wells Borough Council,Planning Services,110,FM,Facilities Management,Community & Grants,Grants,3750,Chewing Gum Remova,EV0417,2022/03/11 00:00:00+00,2022/07/20 00:00:00+00,218837,45000,Revenue,Environment Agency,840
Tunbridge Wells Borough Council,Housing Services,108,DS,Sundry Customer,Disabled Facilities Grants,Capital Grants Payable,8355,-,-,2022/07/13 00:00:00+00,2022/07/20 00:00:00+00,222343,25527,Capital,Access & Automation Ltd,841
Tunbridge Wells Borough Council,Cultural and Related Services,104,AH,Assembly Hall,A-Hall Hire Shows,Ticket Repayment,5421,220508 Tony Hadley,A22S01,2022/07/13 00:00:00+00,2022/07/20 00:00:00+00,222386,21288,Revenue,Kilimanjaro Live Ltd,842
Tunbridge Wells Borough Council,Central Services,102,FI,Finance,I T Service,It Software,3590,Software Maintenance,EV0328,2022/06/22 00:00:00+00,2022/07/20 00:00:00+00,221866,20123.39,Revenue,Maidstone Borough Council,843
Tunbridge Wells Borough Council,Environmental and regulatory services ,105,CU,Community Safty Unit,Cctv,External Contract Payments,3220,-,-,2022/06/30 00:00:00+00,2022/07/20 00:00:00+00,222409,17753.3,Revenue,Enigma Cctv Ltd,844
Tunbridge Wells Borough Council,Central Services,102,RB,Revs & Bens,Revs & Bens Administration,"Printing - Ndr, Cncl Tx & Inst",3153,-,-,2022/06/29 00:00:00+00,2022/07/20 00:00:00+00,221872,16503.55,Revenue,Maidstone Borough Council,845
Tunbridge Wells Borough Council,Housing Services,108,HO,Housing,Properties On Loan,Rents/Hire Of Premises,2200,-,-,2022/05/16 00:00:00+00,2022/07/20 00:00:00+00,222335,11820.6,Revenue,Town And Country Housing Group,846
Tunbridge Wells Borough Council,Environmental and regulatory services ,105,LI,Licensing,Licensing,Partnership Agreement,202,-,-,2022/07/15 00:00:00+00,2022/07/20 00:00:00+00,222357,10787,Revenue,Sevenoaks District Council,847
Tunbridge Wells Borough Council,Central Services,102,FI,Finance,Corporate Costs,Audit & Accounting Fees,3280,-,-,2022/06/29 00:00:00+00,2022/07/20 00:00:00+00,221960,10562,Revenue,Grant Thornton Uk Llp,848
Tunbridge Wells Borough Council,Planning Services,110,PL,Planning,Planning Policy,Planning Consultant Fees,3270,New Local Plan,EV0589,2022/07/11 00:00:00+00,2022/07/20 00:00:00+00,222328,8710.6,Revenue,Public Interest Planning Limited,849
Tunbridge Wells Borough Council,Planning Services,110,PL,Planning,Development Management,Planning Consultant Fees,3270,-,-,2022/05/20 00:00:00+00,2022/07/20 00:00:00+00,222317,6240,Revenue,Iceni Projects Limited,850
Tunbridge Wells Borough Council,Cultural and related services,104,MU,Museum,Culture & Learning Hub,Capital Fees External,8315,-,-,2022/06/27 00:00:00+00,2022/07/20 00:00:00+00,221823,5890,Capital,De Pass Montgomery,851
Tunbridge Wells Borough Council,Environmental and regulatory services ,105,CS,Client Services (Depot),Street Sweeping,Equipment Purchase/Mtce,3000,-,-,2022/07/07 00:00:00+00,2022/07/20 00:00:00+00,222338,5654,Revenue,Onsite Wheelie Washers Ltd,852
Tunbridge Wells Borough Council,Housing Services,108,PS,Property Services,Dowding House,Maint/Serv Plant Property,2039,Property Contracts,PH0600,2022/01/14 00:00:00+00,2022/07/20 00:00:00+00,217138,5363.67,Revenue,Oco Limited,853
Tunbridge Wells Borough Council,Housing Services,108,PS,Property Services,Dowding House,Maint/Serv Plant Property,2039,-,-,2022/04/11 00:00:00+00,2022/07/20 00:00:00+00,219639,5363.67,Revenue,Oco Limited,854
Tunbridge Wells Borough Council,Environmental and regulatory services ,105,CS,Client Services (Depot),Contracts Management,Legal Fees,3260,-,-,2022/03/30 00:00:00+00,2022/07/20 00:00:00+00,222402,5302.3,Revenue,Bevan Brittan Llp,855
Tunbridge Wells Borough Council,Central Services,102,PS,Property Services,Building Services,Property Consultants,3290,-,-,2022/06/10 00:00:00+00,2022/07/20 00:00:00+00,222326,3500,Revenue,Cluttons Llp,856
Tunbridge Wells Borough Council,Cultural and Related Services,104,MU,Museum,The Amelia Scott,Telephone Costs,3510,-,-,2022/06/01 00:00:00+00,2022/07/20 00:00:00+00,222150,3131.09,Revenue,Daisy Corporate Services Trading Limited,857
Tunbridge Wells Borough Council,Central Services,102,HR,Human Resources,Human Resources,In House Training,201,-,-,2022/06/29 00:00:00+00,2022/07/20 00:00:00+00,222399,3116,Revenue,Flick Learning Limited,858
Tunbridge Wells Borough Council,Cultural and Related Services,104,MU,Museum,The Amelia Scott,Promotion,3450,-,-,2022/05/27 00:00:00+00,2022/07/20 00:00:00+00,222408,3015,Revenue,Copper Leaf Media Ltd,859
Tunbridge Wells Borough Council,Cultural and Related Services,104,PK,Parks,Parks & Grounds,Equipment Purchase/Mtce,3000,-,-,2022/07/19 00:00:00+00,2022/07/27 00:00:00+00,222589,332.36,Revenue,Kidmans,860
Tunbridge Wells Borough Council,Highways and Transport Services,107,PA,Parking,Parking Regulation,Signing & Lining Works,3920,-,-,2022/07/17 00:00:00+00,2022/08/03 00:00:00+00,222747,1144.5,Revenue,Archway Highway Services Ltd,861
Tunbridge Wells Borough Council,Central Services,102,CS,Client Services (Depot),Ukrainian Support,Agency Staff,100,-,-,2022/06/22 00:00:00+00,2022/06/30 00:00:00+00,221759,769.2,Revenue,Ashdown Supplies,862
Tunbridge Wells Borough Council,Central Services,102,HP,Housing (Private Sector),Exchequer Services,Consultants Fees,3292,Avc Consultant Costs,EV0828,2022/06/27 00:00:00+00,2022/06/30 00:00:00+00,221852,748.13,Revenue,Vivid Resourcing,863
Tunbridge Wells Borough Council,Housing Services,108,HO,Housing,Properties On Loan,Rents/Hire Of Premises,2200,-,-,2022/07/20 00:00:00+00,2022/07/27 00:00:00+00,222547,10939.6,Revenue,Town And Country Housing Group,864
Tunbridge Wells Borough Council,Environmental and regulatory services ,105,CR,Crematorium,Crematorium,Cogs - Plaques,3082,-,-,2022/07/19 00:00:00+00,2022/07/27 00:00:00+00,222432,328.65,Revenue,Falon Nameplates  Limited,865
Tunbridge Wells Borough Council,Housing Services,108,FI,Finance,Bed & Breakfast Costs,Rents/Hire Of Premises,2200,-,-,2022/06/30 00:00:00+00,2022/06/30 00:00:00+00,221982,742.86,Revenue,Avc Wise Ltd,866
Tunbridge Wells Borough Council,Cultural and Related Services,104,PK,Parks,Parks & Grounds,Ground Maint Non Contract,2060,-,-,2022/07/29 00:00:00+00,2022/08/03 00:00:00+00,222842,1130,Revenue,Treework,867
Tunbridge Wells Borough Council,Environmental and regulatory services ,105,LI,Licensing,Licensing,Dbs External,3341,-,-,2022/06/30 00:00:00+00,2022/07/27 00:00:00+00,222047,304,Revenue,Disclosure & Baring Service,868
Tunbridge Wells Borough Council,Environmental and regulatory services ,105,EH,Environmental Health,Sustainability,External Contract Payments,3220,Air Quality Monito,PE0400,2022/07/25 00:00:00+00,2022/07/27 00:00:00+00,222622,9593.65,Revenue,Ricardo-Aea,869
Tunbridge Wells Borough Council,Housing Services,108,HO,Housing,Private Sector Housing,Capital Grants Payable,8355,Disabled Facilities Grant,TAC,2022/06/20 00:00:00+00,2022/06/30 00:00:00+00,221808,690,Revenue,Spa Caffe Ltd T/A Riverhill Motel & Teal Cafe,870
